{"text_format":"1","workbook":"xlsx","n_sheets":10,"sheets":["Doucment Allocation","logistics","AllDocs","TP","REQ","ARC","PRO","SEC","MAS","TST"],"not_rendered":{"charts":0,"images":1,"macros":1,"external_links":0,"defined_names":14,"comments":0,"pivot_tables":0},"unopened":[],"bounds":{"document_bytes":16777216,"sheet_cells":100000,"rows_first":2000,"rows_last":500,"rows_between":2000,"halvings":0,"cell_chars":16384,"cell_head_chars":4096},"cells_cut":0,"cells_raw":0,"read":"whole","date_system":"1900"}

{"sheet":"Doucment Allocation","index":0,"n_rows":64,"n_cols":13,"rows_kept":64,"cut":false,"hidden":false,"merged":[]}
["Slot","Room","WG","Doc-Number","Title","Source","Upload Time","WG disposition (Agreed, Noted, Postponed, Withdrawn)","Type (INC, CR, AG, MIN)","Work Item","Rel","Purpose","Notes"]
["Mon-3 (13:30-15:00)",{"$f":"VLOOKUP(A2,logistics!G:I,2,0)","v":"Breakout"},{"$f":"VLOOKUP(A2,logistics!G:I,3,0)","v":"MAS"},"MAS-2015-0600",{"$f":"VLOOKUP(D2,AllDocs!A:D,2,0)","v":"Agenda MAS#18"},{"$f":"VLOOKUP(D2,AllDocs!A:D,3,0)","v":"Yongjing Zhang (Huawei, Chair)"},{"$f":"VLOOKUP(D2,AllDocs!A:D,4,0)","v":"2015-07-16T06:58:24"},"Agreed",{"$f":"VLOOKUP(D2,AllDocs!A:F,6,0)","v":"AG"}]
["Mon-3 (13:30-15:00)",{"$f":"VLOOKUP(A3,logistics!G:I,2,0)","v":"Breakout"},{"$f":"VLOOKUP(A3,logistics!G:I,3,0)","v":"MAS"},"MAS-2015-0601",{"$f":"VLOOKUP(D3,AllDocs!A:D,2,0)","v":"MAS#18 Doc allocation"},{"$f":"VLOOKUP(D3,AllDocs!A:D,3,0)","v":"Yongjing Zhang (Huawei, Chair)"},{"$f":"VLOOKUP(D3,AllDocs!A:D,4,0)","v":"2015-07-16T06:58:36"},"Noted",{"$f":"VLOOKUP(D3,AllDocs!A:F,6,0)","v":"AG"}]
["Mon-3 (13:30-15:00)",{"$f":"VLOOKUP(A4,logistics!G:I,2,0)","v":"Breakout"},{"$f":"VLOOKUP(A4,logistics!G:I,3,0)","v":"MAS"},"MAS-2015-0593",{"$f":"VLOOKUP(D4,AllDocs!A:D,2,0)","v":"TS-0005 Align Resource Names and Attributes"},{"$f":"VLOOKUP(D4,AllDocs!A:D,3,0)","v":"Gemalto N.V"},{"$f":"VLOOKUP(D4,AllDocs!A:D,4,0)","v":"2015-07-10T21:17:53"},"Noted",{"$f":"VLOOKUP(D4,AllDocs!A:F,6,0)","v":"CR"},"TS-0005 (WI-0010)",1,"Decision"]
["Mon-3 (13:30-15:00)",{"$f":"VLOOKUP(A5,logistics!G:I,2,0)","v":"Breakout"},{"$f":"VLOOKUP(A5,logistics!G:I,3,0)","v":"MAS"},"MAS-2015-0593R01",{"$f":"VLOOKUP(D5,AllDocs!A:D,2,0)","v":"TS-0005 Align Resource Names and Attributes"},{"$f":"VLOOKUP(D5,AllDocs!A:D,3,0)","v":"Gemalto N.V"},{"$f":"VLOOKUP(D5,AllDocs!A:D,4,0)","v":"2015-07-20T19:13:26"},"Agreed",{"$f":"VLOOKUP(D5,AllDocs!A:F,6,0)","v":"CR"},"TS-0005 (WI-0010)",1,"Decision"]
["Mon-3 (13:30-15:00)",{"$f":"VLOOKUP(A6,logistics!G:I,2,0)","v":"Breakout"},{"$f":"VLOOKUP(A6,logistics!G:I,3,0)","v":"MAS"},"MAS-2015-0591",{"$f":"VLOOKUP(D6,AllDocs!A:D,2,0)","v":"TS-0012-V0_3_0 Base Ontology update after MAS#17.3"},{"$f":"VLOOKUP(D6,AllDocs!A:D,3,0)","v":"NEC (rapporteur)"},{"$f":"VLOOKUP(D6,AllDocs!A:D,4,0)","v":"2015-07-07T10:23:36"},"Agreed",{"$f":"VLOOKUP(D6,AllDocs!A:F,6,0)","v":"INC"},"TS-0012 (WI-0025)",2,"Decision"]
["Mon-3 (13:30-15:00)",{"$f":"VLOOKUP(A7,logistics!G:I,2,0)","v":"Breakout"},{"$f":"VLOOKUP(A7,logistics!G:I,3,0)","v":"MAS"},"MAS-2015-0597",{"$f":"VLOOKUP(D7,AllDocs!A:D,2,0)","v":"TR-0017 Home Domain Abstract Information Model V0.5.0 Draft Baseline"},{"$f":"VLOOKUP(D7,AllDocs!A:D,3,0)","v":"KETI"},{"$f":"VLOOKUP(D7,AllDocs!A:D,4,0)","v":"2015-07-14T06:38:28"},"Agreed",{"$f":"VLOOKUP(D7,AllDocs!A:F,6,0)","v":"INC"},"TR-0017 (WI-0017)",2,"Decision"]
["Mon-3 (13:30-15:00)",{"$f":"VLOOKUP(A8,logistics!G:I,2,0)","v":"Breakout"},{"$f":"VLOOKUP(A8,logistics!G:I,3,0)","v":"MAS"},"MAS-2015-0596",{"$f":"VLOOKUP(D8,AllDocs!A:D,2,0)","v":"Proposed modification for Section 7 on mapping of the base ontoloy and external ontologies"},{"$f":"VLOOKUP(D8,AllDocs!A:D,3,0)","v":"Modacom"},{"$f":"VLOOKUP(D8,AllDocs!A:D,4,0)","v":"2015-07-11T12:48:04"},"Noted",{"$f":"VLOOKUP(D8,AllDocs!A:F,6,0)","v":"INC"},"TS-0012 (WI-0025)",2,"Decision","Revision expected.\nKeep original 7.1, add 7.2 for general mapping rules between Base Ontology & external ones."]
["Mon-3 (13:30-15:00)",{"$f":"VLOOKUP(A9,logistics!G:I,2,0)","v":"Breakout"},{"$f":"VLOOKUP(A9,logistics!G:I,3,0)","v":"MAS"},"MAS-2015-0599",{"$f":"VLOOKUP(D9,AllDocs!A:D,2,0)","v":"HGI activities transfer to oneM2M WG5"},{"$f":"VLOOKUP(D9,AllDocs!A:D,3,0)","v":"Patricia MARTIGNE, ORANGE"},{"$f":"VLOOKUP(D9,AllDocs!A:D,4,0)","v":"2015-07-20T00:36:15"},"Noted",{"$f":"VLOOKUP(D9,AllDocs!A:F,6,0)","v":"INC"},null,null,null,"Continue discussion on Tue"]
["Tue-1 (08:30-10:00)",{"$f":"VLOOKUP(A10,logistics!G:I,2,0)","v":"Adhoc"},{"$f":"VLOOKUP(A10,logistics!G:I,3,0)","v":"MAS"},"MAS-2015-0592",{"$f":"VLOOKUP(D10,AllDocs!A:D,2,0)","v":"Modeling M2M app data"},{"$f":"VLOOKUP(D10,AllDocs!A:D,3,0)","v":"FUJITSU"},{"$f":"VLOOKUP(D10,AllDocs!A:D,4,0)","v":"2015-07-12T02:39:38"},"Draft",{"$f":"VLOOKUP(D10,AllDocs!A:F,6,0)","v":"INC"},"TS-0002 (WI-0001)",2,"Discussion"]
["Tue-1 (08:30-10:00)",{"$f":"VLOOKUP(A11,logistics!G:I,2,0)","v":"Adhoc"},{"$f":"VLOOKUP(A11,logistics!G:I,3,0)","v":"MAS"},"MAS-2015-0592R01",{"$f":"VLOOKUP(D11,AllDocs!A:D,2,0)","v":"Modeling M2M app data"},{"$f":"VLOOKUP(D11,AllDocs!A:D,3,0)","v":"FUJITSU"},{"$f":"VLOOKUP(D11,AllDocs!A:D,4,0)","v":"2015-07-20T16:17:14"},"Draft",{"$f":"VLOOKUP(D11,AllDocs!A:F,6,0)","v":"INC"},"TS-0002 (WI-0001)",2,"Discussion","Scenarios/assumptions/intention clarified. Proposed requirements need to be revised accordingly."]
["Tue-1 (08:30-10:00)",{"$f":"VLOOKUP(A12,logistics!G:I,2,0)","v":"Adhoc"},{"$f":"VLOOKUP(A12,logistics!G:I,3,0)","v":"MAS"},"MAS-2015-0598",{"$f":"VLOOKUP(D12,AllDocs!A:D,2,0)","v":"Semantic_Filtering_and_Discovery"},{"$f":"VLOOKUP(D12,AllDocs!A:D,3,0)","v":"NEC"},{"$f":"VLOOKUP(D12,AllDocs!A:D,4,0)","v":"2015-07-14T14:58:45"},"Draft",{"$f":"VLOOKUP(D12,AllDocs!A:F,6,0)","v":"CR"},"TR-0007 (WI-0005)",2,"Decision","filtering based on values need FFS.\nCorresponding requirement should be covered by this Meeting."]
["Tue-4 (15:30-17:00)",{"$f":"VLOOKUP(A13,logistics!G:I,2,0)","v":"Adhoc"},{"$f":"VLOOKUP(A13,logistics!G:I,3,0)","v":"MAS"},"MAS-2015-0596R01",{"$f":"VLOOKUP(D13,AllDocs!A:D,2,0)","v":"Proposed modification for Section 7 on mapping of the base ontoloy and external ontologies"},{"$f":"VLOOKUP(D13,AllDocs!A:D,3,0)","v":"Modacom"},{"$f":"VLOOKUP(D13,AllDocs!A:D,4,0)","v":"2015-07-21T14:34:37"},"Draft",{"$f":"VLOOKUP(D13,AllDocs!A:F,6,0)","v":"INC"},"TS-0012 (WI-0025)",2,"Decision","Revision needed."]
["Tue-4 (15:30-17:00)",{"$f":"VLOOKUP(A14,logistics!G:I,2,0)","v":"Adhoc"},{"$f":"VLOOKUP(A14,logistics!G:I,3,0)","v":"MAS"},"TP-2015-0745",{"$f":"VLOOKUP(D14,AllDocs!A:D,2,0)","v":"WI-0017-Home_Domain_Enablement_normative_work"},{"$f":"VLOOKUP(D14,AllDocs!A:D,3,0)","v":"LG Electronics"},{"$f":"VLOOKUP(D14,AllDocs!A:D,4,0)","v":"2015-07-13T09:38:07"},"Draft",{"$f":"VLOOKUP(D14,AllDocs!A:F,6,0)","v":"CR"},null,null,null,"Still concerns of opening a new TS, or too early to start the normative work before TR-17 is mature."]
["Wed-1 (08:30-10:00)",{"$f":"VLOOKUP(A15,logistics!G:I,2,0)","v":"Main"},{"$f":"VLOOKUP(A15,logistics!G:I,3,0)","v":"MAS/ARC"},"ARC-2015-1947",{"$f":"VLOOKUP(D15,AllDocs!A:D,2,0)","v":"Multiplicity correction to objectAttribute R1"},{"$f":"VLOOKUP(D15,AllDocs!A:D,3,0)","v":"Yongjing Zhang (Huawei)"},{"$f":"VLOOKUP(D15,AllDocs!A:D,4,0)","v":"2015-07-08T03:57:43"},"Agreed",{"$f":"VLOOKUP(D15,AllDocs!A:F,6,0)","v":"CR"},"TS-0001 (WI-0002)",1,"Decision"]
["Wed-1 (08:30-10:00)",{"$f":"VLOOKUP(A16,logistics!G:I,2,0)","v":"Main"},{"$f":"VLOOKUP(A16,logistics!G:I,3,0)","v":"MAS/ARC"},"ARC-2015-1948",{"$f":"VLOOKUP(D16,AllDocs!A:D,2,0)","v":"Multiplicity correction to objectAttribute R2"},{"$f":"VLOOKUP(D16,AllDocs!A:D,3,0)","v":"Yongjing Zhang (Huawei)"},{"$f":"VLOOKUP(D16,AllDocs!A:D,4,0)","v":"2015-07-08T03:57:56"},"Agreed",{"$f":"VLOOKUP(D16,AllDocs!A:F,6,0)","v":"CR"},"TS-0001 (WI-0002)",2,"Decision","Additional CR is expected to align with the naming convention.\nStage 3 xsd impact need to be checked."]
["Wed-1 (08:30-10:00)",{"$f":"VLOOKUP(A17,logistics!G:I,2,0)","v":"Main"},{"$f":"VLOOKUP(A17,logistics!G:I,3,0)","v":"MAS/ARC"},"ARC-2015-1970",{"$f":"VLOOKUP(D17,AllDocs!A:D,2,0)","v":"Group update semantics"},{"$f":"VLOOKUP(D17,AllDocs!A:D,3,0)","v":"InterDigital"},{"$f":"VLOOKUP(D17,AllDocs!A:D,4,0)","v":"2015-07-12T19:29:14"},"Noted",{"$f":"VLOOKUP(D17,AllDocs!A:F,6,0)","v":"CR"},"TS-0001 (WI-0002)",2,"Decision"]
["Wed-1 (08:30-10:00)",{"$f":"VLOOKUP(A18,logistics!G:I,2,0)","v":"Main"},{"$f":"VLOOKUP(A18,logistics!G:I,3,0)","v":"MAS/ARC"},"ARC-2015-1970R01",{"$f":"VLOOKUP(D18,AllDocs!A:D,2,0)","v":"Group update semantics"},{"$f":"VLOOKUP(D18,AllDocs!A:D,3,0)","v":"InterDigital"},{"$f":"VLOOKUP(D18,AllDocs!A:D,4,0)","v":"2015-07-20T15:09:16"},"Noted",{"$f":"VLOOKUP(D18,AllDocs!A:F,6,0)","v":"CR"},"TS-0001 (WI-0002)",2,"Decision","More concrete use cases may help for justification.\nRevision expected."]
["Wed-1 (08:30-10:00)",{"$f":"VLOOKUP(A19,logistics!G:I,2,0)","v":"Main"},{"$f":"VLOOKUP(A19,logistics!G:I,3,0)","v":"MAS/ARC"},"ARC-2015-1971",{"$f":"VLOOKUP(D19,AllDocs!A:D,2,0)","v":"Node update semantics"},{"$f":"VLOOKUP(D19,AllDocs!A:D,3,0)","v":"InterDigital"},{"$f":"VLOOKUP(D19,AllDocs!A:D,4,0)","v":"2015-07-12T19:29:28"},"Noted",{"$f":"VLOOKUP(D19,AllDocs!A:F,6,0)","v":"CR"},"TS-0001 (WI-0002)",2,"Decision"]
["Wed-1 (08:30-10:00)",{"$f":"VLOOKUP(A20,logistics!G:I,2,0)","v":"Main"},{"$f":"VLOOKUP(A20,logistics!G:I,3,0)","v":"MAS/ARC"},"ARC-2015-1971R01",{"$f":"VLOOKUP(D20,AllDocs!A:D,2,0)","v":"Node update semantics"},{"$f":"VLOOKUP(D20,AllDocs!A:D,3,0)","v":"InterDigital"},{"$f":"VLOOKUP(D20,AllDocs!A:D,4,0)","v":"2015-07-20T15:10:03"},"Noted",{"$f":"VLOOKUP(D20,AllDocs!A:F,6,0)","v":"CR"},"TS-0001 (WI-0002)",2,"Decision","Revision expected with better understanding about the functionalities that to be semantically represented by  <node>"]
["Wed-1 (08:30-10:00)",{"$f":"VLOOKUP(A21,logistics!G:I,2,0)","v":"Main"},{"$f":"VLOOKUP(A21,logistics!G:I,3,0)","v":"MAS/ARC"},"ARC-2015-2019",{"$f":"VLOOKUP(D21,AllDocs!A:D,2,0)","v":"SemanticFilterCriteria"},{"$f":"VLOOKUP(D21,AllDocs!A:D,3,0)","v":"NEC"},{"$f":"VLOOKUP(D21,AllDocs!A:D,4,0)","v":"2015-07-13T13:22:22"},"Agreed",{"$f":"VLOOKUP(D21,AllDocs!A:F,6,0)","v":"CR"},"TS-0001 (WI-0002)",2,"Decision"]
["Wed-2 (10:30-12:00)",{"$f":"VLOOKUP(A22,logistics!G:I,2,0)","v":"Adhoc"},{"$f":"VLOOKUP(A22,logistics!G:I,3,0)","v":"MAS"},"MAS-2015-0599R01",{"$f":"VLOOKUP(D22,AllDocs!A:D,2,0)","v":"HGI activities transfer to oneM2M WG5"},{"$f":"VLOOKUP(D22,AllDocs!A:D,3,0)","v":"Patricia MARTIGNE, ORANGE"},{"$f":"VLOOKUP(D22,AllDocs!A:D,4,0)","v":"2015-07-21T22:49:56"},"Draft",{"$f":"VLOOKUP(D22,AllDocs!A:F,6,0)","v":"INC"},null,null,null,"1. prefer to integrate HGI into our current work rather than maintain as is. \n2. SDT relationship with Home domain abstract info model?\n3. SDT relationship with Base ontology? - long term consideration\n\njoint call proposed on Aug 31 to: 1) exchange opinions on how to transit HGI into oneM2M;2) education of HGI SDT3.0 and RWD036.\n\nR02 is used as MAS suggestion to TP."]
["Wed-2 (10:30-12:00)",{"$f":"VLOOKUP(A23,logistics!G:I,2,0)","v":"Adhoc"},{"$f":"VLOOKUP(A23,logistics!G:I,3,0)","v":"MAS"},"MAS-2015-0605",{"$f":"VLOOKUP(D23,AllDocs!A:D,2,0)","v":"Proposal for a new WI"},{"$f":"VLOOKUP(D23,AllDocs!A:D,3,0)","v":"Patricia Martigne (Orange)"},{"$f":"VLOOKUP(D23,AllDocs!A:D,4,0)","v":"2015-07-21T19:50:45"},"Draft",{"$f":"VLOOKUP(D23,AllDocs!A:F,6,0)","v":"INC"},null,null,null,"Title/scope is reivsed so as to not  only tracking but also technical study.\nSupporters added.\nR01 to be submitted to interim TP."]
["Wed-2 (10:30-12:00)",{"$f":"VLOOKUP(A24,logistics!G:I,2,0)","v":"Adhoc"},{"$f":"VLOOKUP(A24,logistics!G:I,3,0)","v":"MAS"},"MAS-2015-0595R03",{"$f":"VLOOKUP(D24,AllDocs!A:D,2,0)","v":"TS-0012 Update on Base Ontology and Mapping to oneM2M Resources"},{"$f":"VLOOKUP(D24,AllDocs!A:D,3,0)","v":"NEC"},{"$f":"VLOOKUP(D24,AllDocs!A:D,4,0)","v":"2015-07-22T13:28:55"},"Draft",{"$f":"VLOOKUP(D24,AllDocs!A:F,6,0)","v":"INC"},"TS-0012 (WI-0025)",2,"Decision","Continue discussion in afternoon."]
["Wed-3 (13:30-15:00)",{"$f":"VLOOKUP(A25,logistics!G:I,2,0)","v":"Main"},{"$f":"VLOOKUP(A25,logistics!G:I,3,0)","v":"MAS"},"MAS-2015-0596R02",{"$f":"VLOOKUP(D25,AllDocs!A:D,2,0)","v":"Proposed modification for Section 7 on mapping of the base ontoloy and external ontologies"},{"$f":"VLOOKUP(D25,AllDocs!A:D,3,0)","v":"Modacom"},{"$f":"VLOOKUP(D25,AllDocs!A:D,4,0)","v":"2015-07-21T21:04:16"},"Noted",{"$f":"VLOOKUP(D25,AllDocs!A:F,6,0)","v":"INC"},"TS-0012 (WI-0025)",2,"Decision"]
["Wed-3 (13:30-15:00)",{"$f":"VLOOKUP(A26,logistics!G:I,2,0)","v":"Main"},{"$f":"VLOOKUP(A26,logistics!G:I,3,0)","v":"MAS"},"MAS-2015-0596R03",{"$f":"VLOOKUP(D26,AllDocs!A:D,2,0)","v":"Proposed modification for Section 7 on mapping of the base ontoloy and external ontologies"},{"$f":"VLOOKUP(D26,AllDocs!A:D,3,0)","v":"Modacom"},{"$f":"VLOOKUP(D26,AllDocs!A:D,4,0)","v":"2015-07-22T18:56:04"},"Agreed",{"$f":"VLOOKUP(D26,AllDocs!A:F,6,0)","v":"INC"},"TS-0012 (WI-0025)",2,"Decision"]
["Wed-3 (13:30-15:00)",{"$f":"VLOOKUP(A27,logistics!G:I,2,0)","v":"Main"},{"$f":"VLOOKUP(A27,logistics!G:I,3,0)","v":"MAS"},"MAS-2015-0598",{"$f":"VLOOKUP(D27,AllDocs!A:D,2,0)","v":"Semantic_Filtering_and_Discovery"},{"$f":"VLOOKUP(D27,AllDocs!A:D,3,0)","v":"NEC"},{"$f":"VLOOKUP(D27,AllDocs!A:D,4,0)","v":"2015-07-14T14:58:45"},"Agreed",{"$f":"VLOOKUP(D27,AllDocs!A:F,6,0)","v":"CR"},"TR-0007 (WI-0005)",2,"Decision"]
["Wed-3 (13:30-15:00)",{"$f":"VLOOKUP(A28,logistics!G:I,2,0)","v":"Main"},{"$f":"VLOOKUP(A28,logistics!G:I,3,0)","v":"MAS"},"MAS-2015-0595R03",{"$f":"VLOOKUP(D28,AllDocs!A:D,2,0)","v":"TS-0012 Update on Base Ontology and Mapping to oneM2M Resources"},{"$f":"VLOOKUP(D28,AllDocs!A:D,3,0)","v":"NEC"},{"$f":"VLOOKUP(D28,AllDocs!A:D,4,0)","v":"2015-07-22T13:28:55"},"Draft",{"$f":"VLOOKUP(D28,AllDocs!A:F,6,0)","v":"INC"},"TS-0012 (WI-0025)",2,"Decision","Keep Open. offline discussion needed on the class of 'command' and 'semantic input/output'"]
["Wed-3 (13:30-15:00)",{"$f":"VLOOKUP(A29,logistics!G:I,2,0)","v":"Main"},{"$f":"VLOOKUP(A29,logistics!G:I,3,0)","v":"MAS"},"MAS-2015-0603",{"$f":"VLOOKUP(D29,AllDocs!A:D,2,0)","v":"Ontology Resource Discussion"},{"$f":"VLOOKUP(D29,AllDocs!A:D,3,0)","v":"InterDigital"},{"$f":"VLOOKUP(D29,AllDocs!A:D,4,0)","v":"2015-07-20T16:39:31"},"Draft",{"$f":"VLOOKUP(D29,AllDocs!A:F,6,0)","v":"INC"},"TS-0001 (WI-0002)",2,"Discussion","Continue discussion in adhoc on Thu."]
["Wed-3 (13:30-15:00)",{"$f":"VLOOKUP(A30,logistics!G:I,2,0)","v":"Main"},{"$f":"VLOOKUP(A30,logistics!G:I,3,0)","v":"MAS"},"TP-2015-0745R01",{"$f":"VLOOKUP(D30,AllDocs!A:D,2,0)","v":"WI-0017-Home_Domain_Enablement_normative_work"},{"$f":"VLOOKUP(D30,AllDocs!A:D,3,0)","v":"LG Electronics"},{"$f":"VLOOKUP(D30,AllDocs!A:D,4,0)","v":"2015-07-22T19:35:54"},"Draft",{"$f":"VLOOKUP(D30,AllDocs!A:F,6,0)","v":"CR"},null,null,null,"Agreed to go for Interim TP decision."]
["Thu-1 (08:30-10:00)",{"$f":"VLOOKUP(A31,logistics!G:I,2,0)","v":"Breakout"},{"$f":"VLOOKUP(A31,logistics!G:I,3,0)","v":"MAS"},"MAS-2015-0604",{"$f":"VLOOKUP(D31,AllDocs!A:D,2,0)","v":"SemanticFilteringUsingDistributedSemanticDescriptors"},{"$f":"VLOOKUP(D31,AllDocs!A:D,3,0)","v":"NEC"},{"$f":"VLOOKUP(D31,AllDocs!A:D,4,0)","v":"2015-07-21T12:18:37"},"Noted",{"$f":"VLOOKUP(D31,AllDocs!A:F,6,0)","v":"CR"},"TR-0007 (WI-0005)",2,"Discussion","Alternative approach is to put all triples in one triple store, but the access right check is a problem.\nWhether \nRevision may be provided to give more generic examples."]
["Thu-1 (08:30-10:00)",{"$f":"VLOOKUP(A32,logistics!G:I,2,0)","v":"Breakout"},{"$f":"VLOOKUP(A32,logistics!G:I,3,0)","v":"MAS"},"MAS-2015-0595R04",{"$f":"VLOOKUP(D32,AllDocs!A:D,2,0)","v":"TS-0012 Update on Base Ontology and Mapping to oneM2M Resources"},{"$f":"VLOOKUP(D32,AllDocs!A:D,3,0)","v":"NEC"},{"$f":"VLOOKUP(D32,AllDocs!A:D,4,0)","v":"2015-07-23T13:36:57"},"Noted",{"$f":"VLOOKUP(D32,AllDocs!A:F,6,0)","v":"INC"},"TS-0012 (WI-0025)",2,"Decision"]
["Thu-2 (10:30-12:00)",{"$f":"VLOOKUP(A33,logistics!G:I,2,0)","v":"Main"},{"$f":"VLOOKUP(A33,logistics!G:I,3,0)","v":"ARC/MAS/REQ"},"MAS-2015-0592R01",{"$f":"VLOOKUP(D33,AllDocs!A:D,2,0)","v":"Modeling M2M app data"},{"$f":"VLOOKUP(D33,AllDocs!A:D,3,0)","v":"FUJITSU"},{"$f":"VLOOKUP(D33,AllDocs!A:D,4,0)","v":"2015-07-20T16:17:14"},"Noted",{"$f":"VLOOKUP(D33,AllDocs!A:F,6,0)","v":"INC"},"TS-0002 (WI-0001)",2,"Discussion"]
["Thu-2 (10:30-12:00)",{"$f":"VLOOKUP(A34,logistics!G:I,2,0)","v":"Main"},{"$f":"VLOOKUP(A34,logistics!G:I,3,0)","v":"ARC/MAS/REQ"},"REQ-2015-0593",{"$f":"VLOOKUP(D34,AllDocs!A:D,2,0)","v":"Requirement for collecting data from M2M device"},{"$f":"VLOOKUP(D34,AllDocs!A:D,3,0)","v":"FUJITSU"},{"$f":"VLOOKUP(D34,AllDocs!A:D,4,0)","v":"2015-07-12T02:53:39"},"Noted",{"$f":"VLOOKUP(D34,AllDocs!A:F,6,0)","v":"CR"},"TS-0002 (WI-0001)",2,"Decision","offline disussion. Revision expected."]
["Thu-2 (10:30-12:00)",{"$f":"VLOOKUP(A35,logistics!G:I,2,0)","v":"Main"},{"$f":"VLOOKUP(A35,logistics!G:I,3,0)","v":"ARC/MAS/REQ"},"ARC-2015-2044",{"$f":"VLOOKUP(D35,AllDocs!A:D,2,0)","v":"Multiplicity Naming Convention Alignment R1"},{"$f":"VLOOKUP(D35,AllDocs!A:D,3,0)","v":"Huawei"},{"$f":"VLOOKUP(D35,AllDocs!A:D,4,0)","v":"2015-07-22T20:33:33"},"Agreed",{"$f":"VLOOKUP(D35,AllDocs!A:F,6,0)","v":"CR"},"TS-0001 (WI-0002)",1,"Decision"]
["Thu-2 (10:30-12:00)",{"$f":"VLOOKUP(A36,logistics!G:I,2,0)","v":"Main"},{"$f":"VLOOKUP(A36,logistics!G:I,3,0)","v":"ARC/MAS/REQ"},"ARC-2015-2045",{"$f":"VLOOKUP(D36,AllDocs!A:D,2,0)","v":"Multiplicity Naming Convention Alignment R2"},{"$f":"VLOOKUP(D36,AllDocs!A:D,3,0)","v":"Huawei"},{"$f":"VLOOKUP(D36,AllDocs!A:D,4,0)","v":"2015-07-22T20:33:58"},"Agreed",{"$f":"VLOOKUP(D36,AllDocs!A:F,6,0)","v":"CR"},"TS-0001 (WI-0002)",2,"Decision"]
["Thu-2 (10:30-12:00)",{"$f":"VLOOKUP(A37,logistics!G:I,2,0)","v":"Main"},{"$f":"VLOOKUP(A37,logistics!G:I,3,0)","v":"ARC/MAS/REQ"},"ARC-2015-1970R02",{"$f":"VLOOKUP(D37,AllDocs!A:D,2,0)","v":"Group update semantics"},{"$f":"VLOOKUP(D37,AllDocs!A:D,3,0)","v":"InterDigital"},{"$f":"VLOOKUP(D37,AllDocs!A:D,4,0)","v":"2015-07-23T16:01:48"},"Agreed",{"$f":"VLOOKUP(D37,AllDocs!A:F,6,0)","v":"CR"},"TS-0001 (WI-0002)",2,"Decision"]
["Thu-2 (10:30-12:00)",{"$f":"VLOOKUP(A38,logistics!G:I,2,0)","v":"Main"},{"$f":"VLOOKUP(A38,logistics!G:I,3,0)","v":"ARC/MAS/REQ"},"ARC-2015-1971R02",{"$f":"VLOOKUP(D38,AllDocs!A:D,2,0)","v":"Node update semantics"},{"$f":"VLOOKUP(D38,AllDocs!A:D,3,0)","v":"InterDigital"},{"$f":"VLOOKUP(D38,AllDocs!A:D,4,0)","v":"2015-07-23T16:01:09"},"Agreed",{"$f":"VLOOKUP(D38,AllDocs!A:F,6,0)","v":"CR"},"TS-0001 (WI-0002)",2,"Decision","Postpone to a ARC session later."]
["Thu-2 (10:30-12:00)",{"$f":"VLOOKUP(A39,logistics!G:I,2,0)","v":"Main"},{"$f":"VLOOKUP(A39,logistics!G:I,3,0)","v":"ARC/MAS/REQ"},"ARC-2015-2027",{"$f":"VLOOKUP(D39,AllDocs!A:D,2,0)","v":"appObj_new_resource_type"},{"$f":"VLOOKUP(D39,AllDocs!A:D,3,0)","v":"LG Electronics"},{"$f":"VLOOKUP(D39,AllDocs!A:D,4,0)","v":"2015-07-14T09:47:15"},"Noted",{"$f":"VLOOKUP(D39,AllDocs!A:F,6,0)","v":"CR"},"TS-0001 (WI-0002)",2,"Decision","May come back later according to the Home Domain WI update."]
["Thu-4 (15:30-17:00)",{"$f":"VLOOKUP(A40,logistics!G:I,2,0)","v":"Adhoc"},{"$f":"VLOOKUP(A40,logistics!G:I,3,0)","v":"MAS"},"MAS-2015-0595R04",{"$f":"VLOOKUP(D40,AllDocs!A:D,2,0)","v":"TS-0012 Update on Base Ontology and Mapping to oneM2M Resources"},{"$f":"VLOOKUP(D40,AllDocs!A:D,3,0)","v":"NEC"},{"$f":"VLOOKUP(D40,AllDocs!A:D,4,0)","v":"2015-07-23T13:36:57"},null,{"$f":"VLOOKUP(D40,AllDocs!A:F,6,0)","v":"INC"},"TS-0012 (WI-0025)",2,"Decision","1. need to agree on semantic interpretation of 'input' and 'output'.\n2. Multiple 'input' vs single 'input' results in different mapping.\n3.Triggering of operation with multiple input need further study: new resource type? Reuse <mgmtCmd> or <mgmtObj>? "]
["Thu-5 (17:00-18:30)",{"$f":"VLOOKUP(A41,logistics!G:I,2,0)","v":"Main"},{"$f":"VLOOKUP(A41,logistics!G:I,3,0)","v":"MAS"},"MAS-2015-0603",{"$f":"VLOOKUP(D41,AllDocs!A:D,2,0)","v":"Ontology Resource Discussion"},{"$f":"VLOOKUP(D41,AllDocs!A:D,3,0)","v":"InterDigital"},{"$f":"VLOOKUP(D41,AllDocs!A:D,4,0)","v":"2015-07-20T16:39:31"},"Noted",{"$f":"VLOOKUP(D41,AllDocs!A:F,6,0)","v":"INC"},"TS-0001 (WI-0002)",2,"Discussion","the benefits of breaking down ontology into sub-resources/attributes is not clear. Using SPARQL against a whole OWL file may be more efficient. \nEnabling semantic discovery for non-semantic-capable AE seems desirable.\nMapping between external ontologies and base ontology needs to be explored in the <ontology> resource."]
["Fri-1 (08:30-10:00)",{"$f":"VLOOKUP(A42,logistics!G:I,2,0)","v":"Adhoc"},{"$f":"VLOOKUP(A42,logistics!G:I,3,0)","v":"MAS"},"MAS-2015-0606",{"$f":"VLOOKUP(D42,AllDocs!A:D,2,0)","v":"oneM2MBaseOntology-AssumptionsAndApproaches"},{"$f":"VLOOKUP(D42,AllDocs!A:D,3,0)","v":"NEC"},{"$f":"VLOOKUP(D42,AllDocs!A:D,4,0)","v":"2015-07-24T04:59:03"},null,{"$f":"VLOOKUP(D42,AllDocs!A:F,6,0)","v":"CR"},"TR-0007 (WI-0005)",2,"Discussion"]
["Fri-1 (08:30-10:00)",{"$f":"VLOOKUP(A43,logistics!G:I,2,0)","v":"Adhoc"},{"$f":"VLOOKUP(A43,logistics!G:I,3,0)","v":"MAS"},"MAS-2015-0604R01",{"$f":"VLOOKUP(D43,AllDocs!A:D,2,0)","v":"SemanticFilteringUsingDistributedSemanticDescriptors"},{"$f":"VLOOKUP(D43,AllDocs!A:D,3,0)","v":"NEC"},{"$f":"VLOOKUP(D43,AllDocs!A:D,4,0)","v":"2015-07-24T03:31:28"},null,{"$f":"VLOOKUP(D43,AllDocs!A:F,6,0)","v":"CR"},"TR-0007 (WI-0005)",2,"Discussion","1. change 'sub-container' to child resource"]
["Fri-2 (10:30-12:00)",{"$f":"VLOOKUP(A44,logistics!G:I,2,0)","v":"Breakout"},{"$f":"VLOOKUP(A44,logistics!G:I,3,0)","v":"MAS"},"MAS-2015-0594",{"$f":"VLOOKUP(D44,AllDocs!A:D,2,0)","v":"Discussions on semantic description  rules"},{"$f":"VLOOKUP(D44,AllDocs!A:D,3,0)","v":"China Unicom"},{"$f":"VLOOKUP(D44,AllDocs!A:D,4,0)","v":"2015-07-10T15:44:34"},"Postponed",{"$f":"VLOOKUP(D44,AllDocs!A:F,6,0)","v":"INC"},"TS-0012 (WI-0025)",2,"Discussion","Postponed to next conf-call/TP"]
["Fri-2 (10:30-12:00)",{"$f":"VLOOKUP(A45,logistics!G:I,2,0)","v":"Breakout"},{"$f":"VLOOKUP(A45,logistics!G:I,3,0)","v":"MAS"},"MAS-2015-0592",{"$f":"VLOOKUP(D45,AllDocs!A:D,2,0)","v":"Modeling M2M app data"},{"$f":"VLOOKUP(D45,AllDocs!A:D,3,0)","v":"FUJITSU"},{"$f":"VLOOKUP(D45,AllDocs!A:D,4,0)","v":"2015-07-12T02:39:38"},"Noted",{"$f":"VLOOKUP(D45,AllDocs!A:F,6,0)","v":"INC"},"TS-0002 (WI-0001)",2,"Discussion"]
["Fri-2 (10:30-12:00)",{"$f":"VLOOKUP(A46,logistics!G:I,2,0)","v":"Breakout"},{"$f":"VLOOKUP(A46,logistics!G:I,3,0)","v":"MAS"},"MAS-2015-0592R01",{"$f":"VLOOKUP(D46,AllDocs!A:D,2,0)","v":"Modeling M2M app data"},{"$f":"VLOOKUP(D46,AllDocs!A:D,3,0)","v":"FUJITSU"},{"$f":"VLOOKUP(D46,AllDocs!A:D,4,0)","v":"2015-07-20T16:17:14"},"Noted",{"$f":"VLOOKUP(D46,AllDocs!A:F,6,0)","v":"INC"},"TS-0002 (WI-0001)",2,"Discussion"]
["Fri-2 (10:30-12:00)",{"$f":"VLOOKUP(A47,logistics!G:I,2,0)","v":"Breakout"},{"$f":"VLOOKUP(A47,logistics!G:I,3,0)","v":"MAS"},"MAS-2015-0599R01",{"$f":"VLOOKUP(D47,AllDocs!A:D,2,0)","v":"HGI activities transfer to oneM2M WG5"},{"$f":"VLOOKUP(D47,AllDocs!A:D,3,0)","v":"Patricia MARTIGNE, ORANGE"},{"$f":"VLOOKUP(D47,AllDocs!A:D,4,0)","v":"2015-07-21T22:49:56"},"Noted",{"$f":"VLOOKUP(D47,AllDocs!A:F,6,0)","v":"INC"}]
["Fri-2 (10:30-12:00)",{"$f":"VLOOKUP(A48,logistics!G:I,2,0)","v":"Breakout"},{"$f":"VLOOKUP(A48,logistics!G:I,3,0)","v":"MAS"},"MAS-2015-0599R02",{"$f":"VLOOKUP(D48,AllDocs!A:D,2,0)","v":"HGI activities transfer to oneM2M WG5"},{"$f":"VLOOKUP(D48,AllDocs!A:D,3,0)","v":"Patricia MARTIGNE, ORANGE"},{"$f":"VLOOKUP(D48,AllDocs!A:D,4,0)","v":"2015-07-22T17:53:47"},"Agreed",{"$f":"VLOOKUP(D48,AllDocs!A:F,6,0)","v":"INC"}]
["Fri-2 (10:30-12:00)",{"$f":"VLOOKUP(A49,logistics!G:I,2,0)","v":"Breakout"},{"$f":"VLOOKUP(A49,logistics!G:I,3,0)","v":"MAS"},"MAS-2015-0605",{"$f":"VLOOKUP(D49,AllDocs!A:D,2,0)","v":"Proposal for a new WI"},{"$f":"VLOOKUP(D49,AllDocs!A:D,3,0)","v":"Patricia Martigne (Orange)"},{"$f":"VLOOKUP(D49,AllDocs!A:D,4,0)","v":"2015-07-21T19:50:45"},"Noted",{"$f":"VLOOKUP(D49,AllDocs!A:F,6,0)","v":"INC"}]
["Fri-2 (10:30-12:00)",{"$f":"VLOOKUP(A50,logistics!G:I,2,0)","v":"Breakout"},{"$f":"VLOOKUP(A50,logistics!G:I,3,0)","v":"MAS"},"MAS-2015-0605R01",{"$f":"VLOOKUP(D50,AllDocs!A:D,2,0)","v":"Proposal for a new WI"},{"$f":"VLOOKUP(D50,AllDocs!A:D,3,0)","v":"Patricia Martigne (Orange)"},{"$f":"VLOOKUP(D50,AllDocs!A:D,4,0)","v":"2015-07-22T18:14:21"},"Noted",{"$f":"VLOOKUP(D50,AllDocs!A:F,6,0)","v":"INC"}]
["Fri-2 (10:30-12:00)",{"$f":"VLOOKUP(A51,logistics!G:I,2,0)","v":"Breakout"},{"$f":"VLOOKUP(A51,logistics!G:I,3,0)","v":"MAS"},"MAS-2015-0595",{"$f":"VLOOKUP(D51,AllDocs!A:D,2,0)","v":"TS-0012 Update on Base Ontology and Mapping to oneM2M Resources"},{"$f":"VLOOKUP(D51,AllDocs!A:D,3,0)","v":"NEC"},{"$f":"VLOOKUP(D51,AllDocs!A:D,4,0)","v":"2015-07-13T15:25:39"},"Noted",{"$f":"VLOOKUP(D51,AllDocs!A:F,6,0)","v":"INC"},"TS-0012 (WI-0025)",2,"Decision"]
["Fri-2 (10:30-12:00)",{"$f":"VLOOKUP(A52,logistics!G:I,2,0)","v":"Breakout"},{"$f":"VLOOKUP(A52,logistics!G:I,3,0)","v":"MAS"},"MAS-2015-0595R01",{"$f":"VLOOKUP(D52,AllDocs!A:D,2,0)","v":"TS-0012 Update on Base Ontology and Mapping to oneM2M Resources"},{"$f":"VLOOKUP(D52,AllDocs!A:D,3,0)","v":"NEC"},{"$f":"VLOOKUP(D52,AllDocs!A:D,4,0)","v":"2015-07-21T14:52:02"},"Noted",{"$f":"VLOOKUP(D52,AllDocs!A:F,6,0)","v":"INC"},"TS-0012 (WI-0025)",2,"Decision"]
["Fri-2 (10:30-12:00)",{"$f":"VLOOKUP(A53,logistics!G:I,2,0)","v":"Breakout"},{"$f":"VLOOKUP(A53,logistics!G:I,3,0)","v":"MAS"},"MAS-2015-0595R02",{"$f":"VLOOKUP(D53,AllDocs!A:D,2,0)","v":"TS-0012 Update on Base Ontology and Mapping to oneM2M Resources"},{"$f":"VLOOKUP(D53,AllDocs!A:D,3,0)","v":"NEC"},{"$f":"VLOOKUP(D53,AllDocs!A:D,4,0)","v":"2015-07-21T20:44:15"},"Noted",{"$f":"VLOOKUP(D53,AllDocs!A:F,6,0)","v":"INC"},"TS-0012 (WI-0025)",2,"Decision"]
["Fri-2 (10:30-12:00)",{"$f":"VLOOKUP(A54,logistics!G:I,2,0)","v":"Breakout"},{"$f":"VLOOKUP(A54,logistics!G:I,3,0)","v":"MAS"},"MAS-2015-0595R03",{"$f":"VLOOKUP(D54,AllDocs!A:D,2,0)","v":"TS-0012 Update on Base Ontology and Mapping to oneM2M Resources"},{"$f":"VLOOKUP(D54,AllDocs!A:D,3,0)","v":"NEC"},{"$f":"VLOOKUP(D54,AllDocs!A:D,4,0)","v":"2015-07-22T13:28:55"},"Noted",{"$f":"VLOOKUP(D54,AllDocs!A:F,6,0)","v":"INC"},"TS-0012 (WI-0025)",2,"Decision"]
["Fri-2 (10:30-12:00)",{"$f":"VLOOKUP(A55,logistics!G:I,2,0)","v":"Breakout"},{"$f":"VLOOKUP(A55,logistics!G:I,3,0)","v":"MAS"},"MAS-2015-0595R04",{"$f":"VLOOKUP(D55,AllDocs!A:D,2,0)","v":"TS-0012 Update on Base Ontology and Mapping to oneM2M Resources"},{"$f":"VLOOKUP(D55,AllDocs!A:D,3,0)","v":"NEC"},{"$f":"VLOOKUP(D55,AllDocs!A:D,4,0)","v":"2015-07-23T13:36:57"},"Noted",{"$f":"VLOOKUP(D55,AllDocs!A:F,6,0)","v":"INC"},"TS-0012 (WI-0025)",2,"Decision"]
["Fri-2 (10:30-12:00)",{"$f":"VLOOKUP(A56,logistics!G:I,2,0)","v":"Breakout"},{"$f":"VLOOKUP(A56,logistics!G:I,3,0)","v":"MAS"},"MAS-2015-0595R05",{"$f":"VLOOKUP(D56,AllDocs!A:D,2,0)","v":"TS-0012 Update on Base Ontology and Mapping to oneM2M Resources"},{"$f":"VLOOKUP(D56,AllDocs!A:D,3,0)","v":"NEC"},{"$f":"VLOOKUP(D56,AllDocs!A:D,4,0)","v":"2015-07-24T12:57:44"},"Noted",{"$f":"VLOOKUP(D56,AllDocs!A:F,6,0)","v":"INC"},"TS-0012 (WI-0025)",2,"Decision"]
["Fri-2 (10:30-12:00)",{"$f":"VLOOKUP(A57,logistics!G:I,2,0)","v":"Breakout"},{"$f":"VLOOKUP(A57,logistics!G:I,3,0)","v":"MAS"},"MAS-2015-0595R06",{"$f":"VLOOKUP(D57,AllDocs!A:D,2,0)","v":"TS-0012 Update on Base Ontology and Mapping to oneM2M Resources"},{"$f":"VLOOKUP(D57,AllDocs!A:D,3,0)","v":"NEC"},{"$f":"VLOOKUP(D57,AllDocs!A:D,4,0)","v":"2015-07-24T15:24:38"},"Noted",{"$f":"VLOOKUP(D57,AllDocs!A:F,6,0)","v":"INC"},"TS-0012 (WI-0025)",2,"Decision"]
["Fri-2 (10:30-12:00)",{"$f":"VLOOKUP(A58,logistics!G:I,2,0)","v":"Breakout"},{"$f":"VLOOKUP(A58,logistics!G:I,3,0)","v":"MAS"},"MAS-2015-0595R07",{"$f":"VLOOKUP(D58,AllDocs!A:D,2,0)","v":"TS-0012 Update on Base Ontology and Mapping to oneM2M Resources"},{"$f":"VLOOKUP(D58,AllDocs!A:D,3,0)","v":"NEC"},{"$f":"VLOOKUP(D58,AllDocs!A:D,4,0)","v":"2015-07-24T16:09:51"},"Agreed",{"$f":"VLOOKUP(D58,AllDocs!A:F,6,0)","v":"INC"},"TS-0012 (WI-0025)",2,"Decision"]
["Fri-2 (10:30-12:00)",{"$f":"VLOOKUP(A59,logistics!G:I,2,0)","v":"Breakout"},{"$f":"VLOOKUP(A59,logistics!G:I,3,0)","v":"MAS"},"MAS-2015-0604R01",{"$f":"VLOOKUP(D59,AllDocs!A:D,2,0)","v":"SemanticFilteringUsingDistributedSemanticDescriptors"},{"$f":"VLOOKUP(D59,AllDocs!A:D,3,0)","v":"NEC"},{"$f":"VLOOKUP(D59,AllDocs!A:D,4,0)","v":"2015-07-24T03:31:28"},"Noted",{"$f":"VLOOKUP(D59,AllDocs!A:F,6,0)","v":"CR"},"TR-0007 (WI-0005)",2,"Discussion"]
["Fri-2 (10:30-12:00)",{"$f":"VLOOKUP(A60,logistics!G:I,2,0)","v":"Breakout"},{"$f":"VLOOKUP(A60,logistics!G:I,3,0)","v":"MAS"},"MAS-2015-0606",{"$f":"VLOOKUP(D60,AllDocs!A:D,2,0)","v":"oneM2MBaseOntology-AssumptionsAndApproaches"},{"$f":"VLOOKUP(D60,AllDocs!A:D,3,0)","v":"NEC"},{"$f":"VLOOKUP(D60,AllDocs!A:D,4,0)","v":"2015-07-24T04:59:03"},"Noted",{"$f":"VLOOKUP(D60,AllDocs!A:F,6,0)","v":"CR"},"TS-0012 (WI-0025)",2,"Discussion"]
["Fri-2 (10:30-12:00)",{"$f":"VLOOKUP(A61,logistics!G:I,2,0)","v":"Breakout"},{"$f":"VLOOKUP(A61,logistics!G:I,3,0)","v":"MAS"},"TP-2015-0773",{"$f":"VLOOKUP(D61,AllDocs!A:D,2,0)","v":"LSout to HGI"},{"$f":"VLOOKUP(D61,AllDocs!A:D,3,0)","v":"Patricia MARTIGNE - Orange"},{"$f":"VLOOKUP(D61,AllDocs!A:D,4,0)","v":"2015-07-24T16:30:21"},"Noted",{"$f":"VLOOKUP(D61,AllDocs!A:F,6,0)","v":"LS"}]
["Fri-2 (10:30-12:00)",{"$f":"VLOOKUP(A62,logistics!G:I,2,0)","v":"Breakout"},{"$f":"VLOOKUP(A62,logistics!G:I,3,0)","v":"MAS"},"TP-2015-0773R01",{"$f":"VLOOKUP(D62,AllDocs!A:D,2,0)","v":"LSout to HGI"},{"$f":"VLOOKUP(D62,AllDocs!A:D,3,0)","v":"Patricia MARTIGNE - Orange"},{"$f":"VLOOKUP(D62,AllDocs!A:D,4,0)","v":"2015-07-24T17:08:47"},"Agreed",{"$f":"VLOOKUP(D62,AllDocs!A:F,6,0)","v":"LS"},null,null,null,"Agreed to go for TP approval"]
["Fri-2 (10:30-12:00)",{"$f":"VLOOKUP(A63,logistics!G:I,2,0)","v":"Breakout"},{"$f":"VLOOKUP(A63,logistics!G:I,3,0)","v":"MAS"},"TP-2015-0774",{"$f":"VLOOKUP(D63,AllDocs!A:D,2,0)","v":"MAS WG report at TP#18"},{"$f":"VLOOKUP(D63,AllDocs!A:D,3,0)","v":"Yongjing Zhang (Huawei, MAS WG Chair)"},{"$f":"VLOOKUP(D63,AllDocs!A:D,4,0)","v":"2015-07-24T16:52:46"},"Noted",{"$f":"VLOOKUP(D63,AllDocs!A:F,6,0)","v":"STR"}]
[null,{"$f":"VLOOKUP(A64,logistics!G:I,2,0)","v":{"$error":"#N/A"}},{"$f":"VLOOKUP(A64,logistics!G:I,3,0)","v":{"$error":"#N/A"}},null,{"$f":"VLOOKUP(D64,AllDocs!A:D,2,0)","v":{"$error":"#N/A"}},{"$f":"VLOOKUP(D64,AllDocs!A:D,3,0)","v":{"$error":"#N/A"}},{"$f":"VLOOKUP(D64,AllDocs!A:D,4,0)","v":{"$error":"#N/A"}},null,{"$f":"VLOOKUP(D64,AllDocs!A:F,6,0)","v":{"$error":"#N/A"}}]

{"sheet":"logistics","index":1,"n_rows":25,"n_cols":12,"rows_kept":25,"cut":false,"hidden":false,"merged":[]}
["WeekDay","SlotTime","Day","Slot","Time","AllSlots","MAS Slots","Rooms","WGs","WIs","Short Name","Deadline (GMT)"]
["Mon","08:30–10:30","Mon",1,"08:30–10:30",{"$f":"CONCATENATE(C2,\"-\",D2,\" (\",E2,\")\")","v":"Mon-1 (08:30–10:30)"},null,null,null,"TR-0001 (WI-0015)","Use Case Continuation","2015-07-13T13:00:00"]
["Tue","10:30-11:00","Mon",2,"11:00-12:30",{"$f":"CONCATENATE(C3,\"-\",D3,\" (\",E3,\")\")","v":"Mon-2 (11:00-12:30)"},null,null,null,"TR-0007 (WI-0005)","Semantic Study"]
["Wed","11:00-12:30","Mon",3,"13:30-15:00","Mon-3 (13:30-15:00)","Mon-3 (13:30-15:00)","Breakout","MAS","TR-0014 (WI-0018)","oneM2M AllJoyn Interworking"]
["Thu","12:30-13:30","Mon",4,"16:30-17:00",{"$f":"CONCATENATE(C5,\"-\",D5,\" (\",E5,\")\")","v":"Mon-4 (16:30-17:00)"},null,null,null,"TR-0017 (WI-0017)","Home Domain Abstract Information Model"]
["Fri","13:30-15:00","Mon",5,"17:00-20:00","Mon-5 (17:00-20:00)",null,null,null,"TS-0001 (WI-0002)","Architecture"]
[null,"15:00-16:30","Tue",1,"08:30-10:00","Tue-1 (08:30-10:00)","Tue-1 (08:30-10:00)","Adhoc","MAS","TS-0002 (WI-0001)","Requirement"]
[null,"16:30-17:00","Tue",2,"10:30-12:00","Tue-2 (10:30-12:00)",null,null,null,"TS-0004 (WI-0009)","Protocol Core"]
[null,"17:00-20:00","Tue",3,"13:30-15:00","Tue-3 (13:30-15:00)",null,null,null,"TS-0005 (WI-0010)","OMA Mapping"]
[null,null,"Tue",4,"15:30-17:00","Tue-4 (15:30-17:00)","Tue-4 (15:30-17:00)","Adhoc","MAS","TS-0006 (WI-0010)","BBF Mapping"]
[null,"08:30-10:00","Tue",5,"17:00-18:30","Tue-5 (17:00-18:30)",null,null,null,"TS-0007 (WI-0011)","SOA Architecture"]
[null,"10:00-10:30","Wed",1,"08:30-10:00","Wed-1 (08:30-10:00)","Wed-1 (08:30-10:00)","Main","MAS/ARC","TS-0012 (WI-0025)","oneM2M Base Ontology"]
[null,"10:30-12:00","Wed",2,"10:30-12:00","Wed-2 (10:30-12:00)","Wed-2 (10:30-12:00)","Adhoc","MAS","TS-0014 (WI-0024)","LWM2M_Interworking"]
[null,"12:00-13:30","Wed",3,"13:30-15:00","Wed-3 (13:30-15:00)","Wed-3 (13:30-15:00)","Main","MAS"]
[null,"13:30-15:00","Wed",4,"15:30-17:00","Wed-4 (15:30-17:00)"]
[null,"15:00-15:30","Wed",5,"17:00-18:30","Wed-5 (17:00-18:30)"]
[null,"15:30-17:00","Thu",1,"08:30-10:00","Thu-1 (08:30-10:00)","Thu-1 (08:30-10:00)","Breakout","MAS"]
[null,"17:00-18:30","Thu",2,"10:30-12:00","Thu-2 (10:30-12:00)","Thu-2 (10:30-12:00)","Main","ARC/MAS/REQ"]
[null,null,"Thu",3,"13:30-15:00","Thu-3 (13:30-15:00)"]
[null,null,"Thu",4,"15:30-17:00","Thu-4 (15:30-17:00)","Thu-4 (15:30-17:00)","Adhoc","MAS"]
[null,null,"Thu",5,"17:00-18:30","Thu-5 (17:00-18:30)","Thu-5 (17:00-18:30)","Main","MAS"]
[null,null,"Fri",1,"08:30-10:00","Fri-1 (08:30-10:00)","Fri-1 (08:30-10:00)","Adhoc","MAS"]
[null,null,"Fri",2,"10:30-12:00","Fri-2 (10:30-12:00)","Fri-2 (10:30-12:00)","Breakout","MAS"]
[null,null,"Fri",3,"13:30-15:00","Fri-3 (13:30-15:00)"]
[null,null,"Fri",4,"15:30-17:00","Fri-4 (15:30-17:00)"]

{"sheet":"AllDocs","index":2,"n_rows":678,"n_cols":8,"rows_kept":678,"cut":false,"hidden":false,"merged":[]}
["SHORT DOC NB","SHORTNAME","SOURCE","UPLOADED","STATUS","DOC TYPE","VERS","MEETING"]
["ARC-2015-1902R01","CR_structured_resource_ID_clarification","LG Electronics","2015-07-13T09:07:33","Draft","CR",null,"ARC 18"]
["ARC-2015-1903R01","CR_structured_resource_ID_clarification(R2)","LG Electronics","2015-07-13T09:09:50","Draft","CR",null,"ARC 18"]
["ARC-2015-1934","CR CSEBase resource type (R1)","LG Electronics","2015-06-11T08:42:27","Agreed","CR",null,"ARC 18"]
["ARC-2015-1935","CR CSEBase resource type (R2)","LG Electronics","2015-06-11T08:43:53","Agreed","CR",null,"ARC 18"]
["ARC-2015-1940R01","CR for hostedCSEID attribute name correction","C-DOT","2015-06-25T05:51:19","Draft","CR",null,"ARC 18"]
["ARC-2015-1941","CR for serviceSubscribedNode - ruleLinks attribute","C-DOT (Anupama,Poornima)","2015-06-25T06:30:30","Draft","CR",null,"ARC 18"]
["ARC-2015-1942","CR for CRUD on m2mServiceSubscriptionProfile and serviceSubscribedNode","C-DOT (Anupama,Poornima)","2015-07-02T05:43:50","Draft","CR",null,"ARC 18"]
["ARC-2015-1944","Minutes ARC17-3","Karen Hughes, Secretariat","2015-07-02T15:08:23","Agreed","MIN",null,"ARC 18"]
["ARC-2015-1945","Simple word errors correction","LG Electronics","2015-07-03T09:36:47","Agreed","CR",null,"ARC 18"]
["ARC-2015-1946","TR-0014-oneM2M_and_AllJoyn_interworking-V0_4_0_Draft","LG Electronics","2015-07-08T05:24:56","Noted","INC",null,"ARC 18"]
["ARC-2015-1946R01","TR-0014-oneM2M_and_AllJoyn_interworking-V0_4_0_Draft","LG Electronics","2015-07-20T21:42:10","Draft","INC",null,"ARC 18"]
["ARC-2015-1947","Multiplicity correction to objectAttribute R1","Yongjing Zhang (Huawei)","2015-07-08T03:57:43","Draft","CR",null,"ARC 18"]
["ARC-2015-1948","Multiplicity correction to objectAttribute R2","Yongjing Zhang (Huawei)","2015-07-08T03:57:56","Draft","CR",null,"ARC 18"]
["ARC-2015-1949","Target-Notification-Disposition-Policy-Editorial-Enhancements","Ericsson","2015-07-10T12:14:12","Draft","CR",null,"ARC 18"]
["ARC-2015-1949R01","Target-Notification-Disposition-Policy-Editorial-Enhancements","Ericsson","2015-07-21T19:25:49","Draft","CR",null,"ARC 18"]
["ARC-2015-1950","Procedure-notification-target-removal-Editorial-Enhancements","Ericsson","2015-07-10T12:16:58","Draft","CR",null,"ARC 18"]
["ARC-2015-1950R01","Procedure-notification-target-removal-Editorial-Enhancements","Ericsson","2015-07-23T22:18:42","Draft","CR",null,"ARC 18"]
["ARC-2015-1951","Mirror1915R01-Resource-Request-Attributes-Duplication","Ericsson","2015-07-10T12:18:26","Draft","CR",null,"ARC 18"]
["ARC-2015-1952","Name-Change-Notification-Target-Deletion-Policies","Ericsson","2015-07-10T12:19:37","Noted","CR",null,"ARC 18"]
["ARC-2015-1952R01","Name-Change-Notification-Target-Deletion-Policies","Ericsson","2015-07-21T19:26:35","Noted","CR",null,"ARC 18"]
["ARC-2015-1952R02","Name-Change-Notification-Target-Deletion-Policies","Ericsson","2015-07-23T22:56:47","Draft","CR",null,"ARC 18"]
["ARC-2015-1953","Result-content-parameter-clarification","Ericsson","2015-07-10T12:21:20","Draft","CR",null,"ARC 18"]
["ARC-2015-1953R01","Result-content-parameter-clarification","Ericsson","2015-07-21T21:11:44","Draft","CR",null,"ARC 18"]
["ARC-2015-1953R02","Result-content-parameter-clarification","Ericsson","2015-07-22T12:48:56","Draft","CR",null,"ARC 18"]
["ARC-2015-1953R03","Result-content-parameter-clarification","Ericsson","2015-07-22T15:56:52","Draft","CR",null,"ARC 18"]
["ARC-2015-1953R04","Result-content-parameter-clarification","Ericsson","2015-07-23T22:16:58","Draft","CR",null,"ARC 18"]
["ARC-2015-1954","Discovery-Procedure-Clarification","Ericsson","2015-07-10T12:22:44","Draft","CR",null,"ARC 18"]
["ARC-2015-1954R01","Discovery-Procedure-Clarification","Ericsson","2015-07-23T22:08:17","Draft","CR",null,"ARC 18"]
["ARC-2015-1955","App-ID format and required attributes","Darold Hemphill - iconectiv","2015-07-10T16:52:20","Noted","CR",null,"ARC 18"]
["ARC-2015-1955R01","App-ID format and required attributes","Darold Hemphill - iconectiv","2015-07-17T14:33:31","Noted","CR",null,"ARC 18"]
["ARC-2015-1956","Data Streaming support","FUJITSU","2015-07-12T03:43:16","Noted","INC",null,"ARC 18"]
["ARC-2015-1957","App-ID naming convention","FUJITSU","2015-07-12T07:21:41","Draft","INC",null,"ARC 18"]
["ARC-2015-1958","skeleton of TR for WI0034","Huawei Technologies Co., Ltd.","2015-07-12T06:59:19","Noted","CR",null,"ARC 18"]
["ARC-2015-1958R01","skeleton of TR for WI0034","Huawei Technologies Co., Ltd.; ZTE","2015-07-16T08:03:05","Noted","CR",null,"ARC 18"]
["ARC-2015-1958R02","skeleton of TR for WI0034","Huawei Technologies Co., Ltd.; ZTE","2015-07-20T19:40:43","Agreed","CR",null,"ARC 18"]
["ARC-2015-1959","skeleton of TR for WI0035","Huawei Technologies Co., Ltd.","2015-07-12T07:01:09","Noted","INC",null,"ARC 18"]
["ARC-2015-1959R01","skeleton of TR for WI0035","Huawei Technologies Co., Ltd.; China Unicom","2015-07-13T03:19:28","Agreed","INC",null,"ARC 18"]
["ARC-2015-1960","group access control","Huawei Technologies Co., Ltd.","2015-07-12T07:02:47","Noted","CR",null,"ARC 18"]
["ARC-2015-1960R01","group access control","Huawei Technologies Co., Ltd.; China Unicom","2015-07-13T03:18:41","Noted","CR",null,"ARC 18"]
["ARC-2015-1960R02","group access control","Huawei Technologies Co., Ltd.; China Unicom","2015-07-23T19:45:31","Draft","CR",null,"ARC 18"]
["ARC-2015-1961","group-confirmation","Huawei Technologies Co., Ltd.","2015-07-12T07:04:41","Noted","CR",null,"ARC 18"]
["ARC-2015-1962","group-responses","Huawei Technologies Co., Ltd.","2015-07-12T07:05:38","Noted","CR",null,"ARC 18"]
["ARC-2015-1962R01","group-responses","Huawei Technologies Co., Ltd.","2015-07-23T22:23:15","Draft","CR",null,"ARC 18"]
["ARC-2015-1963","Response Status Code Release 1","KT Corp.","2015-07-12T10:43:57","Noted","CR",null,"ARC 18"]
["ARC-2015-1963R01","Response Status Code Release 1","KT Corp.","2015-07-21T12:03:51","Noted","CR",null,"ARC 18"]
["ARC-2015-1963R02","Response Status Code Release 1","KT Corp.","2015-07-22T13:53:58","Draft","CR",null,"ARC 18"]
["ARC-2015-1964","Response Status Code Release 2","KT Corp.","2015-07-12T10:48:37","Noted","CR",null,"ARC 18"]
["ARC-2015-1964R01","Response Status Code Release 2","KT Corp.","2015-07-21T12:04:39","Noted","CR",null,"ARC 18"]
["ARC-2015-1964R02","Response Status Code Release 2","KT Corp.","2015-07-22T13:55:44","Agreed","CR",null,"ARC 18"]
["ARC-2015-1965","OET parameter and Resource Type schedule Release 2","KT Corp.","2015-07-12T10:54:11","Noted","CR",null,"ARC 18"]
["ARC-2015-1965R01","OET parameter and Resource Type schedule Release 2","KT Corp.","2015-07-21T15:11:27","Draft","CR",null,"ARC 18"]
["ARC-2015-1965R02","OET parameter and Resource Type schedule Release 2","KT Corp.","2015-07-22T06:29:28","Draft","CR",null,"ARC 18"]
["ARC-2015-1965R03","OET parameter and Resource Type schedule Release 2","KT Corp.","2015-07-22T16:41:15","Draft","CR",null,"ARC 18"]
["ARC-2015-1966","Non-Blocking Asynch Target List","Qualcomm Inc. (TIA)","2015-07-13T12:12:18","Noted","CR",null,"ARC 18"]
["ARC-2015-1966R01","Non-Blocking Asynch Target List","Qualcomm Inc. (TIA)","2015-07-13T12:57:13","Agreed","CR",null,"ARC 18"]
["ARC-2015-1967","Mirror CR Non-Blocking Asynch Target List","Qualcomm Inc. (TIA)","2015-07-13T12:55:47","Noted","CR",null,"ARC 18"]
["ARC-2015-1967R01","Mirror CR Non-Blocking Asynch Target List","Qualcomm Inc. (TIA)","2015-07-13T12:57:38","Agreed","CR",null,"ARC 18"]
["ARC-2015-1968","CR for subscription labels multiplicity","InterDigital","2015-07-12T18:48:21","Noted","CR",null,"ARC 18"]
["ARC-2015-1968R01","CR for subscription labels multiplicity","InterDigital","2015-07-12T18:57:05","Agreed","CR",null,"ARC 18"]
["ARC-2015-1969","Mirror-CR for subscription labels multiplicity","InterDigital","2015-07-12T18:54:22","Agreed","CR",null,"ARC 18"]
["ARC-2015-1970","Group update semantics","InterDigital","2015-07-12T19:29:14","Draft","CR",null,"ARC 18"]
["ARC-2015-1970R01","Group update semantics","InterDigital","2015-07-20T15:09:16","Draft","CR",null,"ARC 18"]
["ARC-2015-1970R02","Group update semantics","InterDigital","2015-07-23T16:01:48","Draft","CR",null,"ARC 18"]
["ARC-2015-1971","Node update semantics","InterDigital","2015-07-12T19:29:28","Draft","CR",null,"ARC 18"]
["ARC-2015-1971R01","Node update semantics","InterDigital","2015-07-20T15:10:03","Draft","CR",null,"ARC 18"]
["ARC-2015-1971R02","Node update semantics","InterDigital","2015-07-23T16:01:09","Draft","CR",null,"ARC 18"]
["ARC-2015-1972","location_request_clarification","ZTE","2015-07-13T01:33:00","Draft","CR",null,"ARC 18"]
["ARC-2015-1972R01","location_request_clarification","ZTE","2015-07-23T19:58:33","Draft","CR",null,"ARC 18"]
["ARC-2015-1973","CR_for_resourceID_announce","InterDigital","2015-07-13T01:42:08","Draft","CR",null,"ARC 18"]
["ARC-2015-1974","Mirror_CR_for_resourceID_announce","InterDigital","2015-07-13T01:47:23","Draft","CR",null,"ARC 18"]
["ARC-2015-1975","location_request_clarification_R2_mirror","ZTE","2015-07-13T01:49:48","Draft","CR",null,"ARC 18"]
["ARC-2015-1975R01","location_request_clarification_R2_mirror","ZTE","2015-07-23T19:59:16","Draft","CR",null,"ARC 18"]
["ARC-2015-1976","CR_for_announced_RO_attributes","InterDigital","2015-07-13T01:52:08","Noted","CR",null,"ARC 18"]
["ARC-2015-1976R01","CR_for_announced_RO_attributes_(R1)","InterDigital, LG Eletronics","2015-07-21T14:38:19","Noted","CR",null,"ARC 18"]
["ARC-2015-1976R02","CR_for_announced_RO_attributes_(R2)","InterDigital, LG Eletronics, Ericsson","2015-07-23T16:12:46","Noted","CR",null,"ARC 18"]
["ARC-2015-1976R03","CR_for_announced_RO_attributes_(R3)","InterDigital, LG Eletronics, Ericsson","2015-07-23T16:42:14","Noted","CR",null,"ARC 18"]
["ARC-2015-1976R04","CR_for_announced_RO_attributes","InterDigital, LG Eletronics, Ericsson","2015-07-23T23:17:16","Draft","CR",null,"ARC 18"]
["ARC-2015-1977","Mirror_CR_for_announced_RO_attributes","InterDigital","2015-07-13T01:53:25","Noted","CR",null,"ARC 18"]
["ARC-2015-1977R01","Mirror_CR_for_announced_RO_attributes_(R1)","InterDigital, LG Eletronics","2015-07-21T14:40:46","Noted","CR",null,"ARC 18"]
["ARC-2015-1977R02","Mirror_CR_for_announced_RO_attributes_(R2)","InterDigital, LG Eletronics, Ericsson","2015-07-23T16:14:05","Noted","CR",null,"ARC 18"]
["ARC-2015-1977R03","Mirror_CR_for_announced_RO_attributes_(R3)","InterDigital, LG Eletronics, Ericsson","2015-07-23T16:43:12","Noted","CR",null,"ARC 18"]
["ARC-2015-1977R04","Mirror_CR_for_announced_RO_attributes","InterDigital, LG Eletronics, Ericsson","2015-07-23T23:24:48","Draft","CR",null,"ARC 18"]
["ARC-2015-1978","WebSocket registration procedure","FUJITSU",null,"Draft","CR",null,"PRO 18"]
["ARC-2015-1979","clause 9.6.1 clarification","ZTE","2015-07-13T03:50:15","Noted","CR",null,"ARC 18"]
["ARC-2015-1979R01","clause 9.6.1 clarification","ZTE","2015-07-13T04:10:35","Noted","CR",null,"ARC 18"]
["ARC-2015-1979R02","clause 9.6.1 clarification","ZTE","2015-07-22T17:51:01","Noted","CR",null,"ARC 18"]
["ARC-2015-1979R03","clause 9.6.1 clarification","ZTE","2015-07-23T22:52:38","Draft","CR",null,"ARC 18"]
["ARC-2015-1980","resource for spooling message","FUJITSU","2015-07-13T03:51:13","Noted","INC",null,"ARC 18"]
["ARC-2015-1981","clause 9.6.1 clarification mirror","ZTE","2015-07-13T03:53:54","Noted","CR",null,"ARC 18"]
["ARC-2015-1981R01","clause 9.6.1 clarification mirror","ZTE","2015-07-22T17:52:12","Noted","CR",null,"ARC 18"]
["ARC-2015-1981R02","clause 9.6.1 clarification mirror","ZTE","2015-07-23T22:54:15","Draft","CR",null,"ARC 18"]
["ARC-2015-1982","CR clause 9.4.2","ZTE","2015-07-13T03:57:25","Noted","CR",null,"ARC 18"]
["ARC-2015-1982R01","CR clause 9.4.2","ZTE","2015-07-21T12:46:54","Agreed","CR",null,"ARC 18"]
["ARC-2015-1983","CR clause 9.4.2 mirror","ZTE","2015-07-13T04:03:55","Noted","CR",null,"ARC 18"]
["ARC-2015-1983R01","CR clause 9.4.2 mirror","ZTE","2015-07-21T12:53:53","Agreed","CR",null,"ARC 18"]
["ARC-2015-1984","Supporting Time Series Data","Huawei Technologies","2015-07-13T04:30:16","Noted","INC",null,"ARC 18"]
["ARC-2015-1984R01","Supporting Time Series Data","Huawei Technologies","2015-07-21T13:47:33","Noted","INC",null,"ARC 18"]
["ARC-2015-1984R02","Supporting Time Series Data","Huawei Technologies","2015-07-22T18:41:49","Noted","INC",null,"ARC 18"]
["ARC-2015-1985","New resource for supporting time series data","Huawei Technologies","2015-07-13T04:32:48","Draft","CR",null,"ARC 18"]
["ARC-2015-1986","CR_for_subscription-_notificationContentType_attribute","Huawei Technologies","2015-07-13T04:51:28","Draft","CR",null,"ARC 18"]
["ARC-2015-1986R01","CR_for_subscription-_notificationContentType_attribute(R2)","Huawei Technologies","2015-07-22T13:30:30","Draft","CR",null,"ARC 18"]
["ARC-2015-1986R02","CR_for_subscription-_notificationContentType_attribute(R2)","Huawei Technologies","2015-07-22T14:44:21","Draft","CR",null,"ARC 18"]
["ARC-2015-1987","CR for subscription- notificationContentType attribute","Huawei Technologies","2015-07-13T04:55:11","Withdrawn","CR",null,"ARC 18"]
["ARC-2015-1988","CR for subscription- notificationContentType attribute","Huawei Technologies","2015-07-13T04:56:40","Withdrawn","CR",null,"ARC 18"]
["ARC-2015-1989","Transit CSE Behavior Correction","LG Electronics","2015-07-13T08:47:24","Draft","CR",null,"ARC 18"]
["ARC-2015-1990","From Parameter When Announcing Resource","LG Electronics","2015-07-13T08:55:05","Noted","CR",null,"ARC 18"]
["ARC-2015-1991","MNT_CR_batchNotify_(R1)","LG Electronics, VIA Telecom","2015-07-13T09:41:53","Noted","CR",null,"ARC 18"]
["ARC-2015-1991R01","MNT_CR_batchNotify_(R1)","LG Electronics, VIA Telecom","2015-07-21T17:03:44","Noted","CR",null,"ARC 18"]
["ARC-2015-1991R02","MNT_CR_batchNotify_(R1)","LG Electronics, VIA Telecom","2015-07-23T22:08:02","Draft","CR",null,"ARC 18"]
["ARC-2015-1992","MNT_CR_batchNotify_(R2)","LG Electronics, VIA Telecom","2015-07-13T09:42:10","Noted","CR",null,"ARC 18"]
["ARC-2015-1992R01","MNT_CR_batchNotify_(R2)","LG Electronics, VIA Telecom","2015-07-21T17:04:06","Draft","CR",null,"ARC 18"]
["ARC-2015-1992R02","MNT_CR_batchNotify_(R2)","LG Electronics, VIA Telecom","2015-07-23T22:09:04","Agreed","CR",null,"ARC 18"]
["ARC-2015-1993","MNT_CR_accessControlPolicy_procedure_(R1)","LG Electronics","2015-07-13T09:43:50","Noted","CR",null,"ARC 18"]
["ARC-2015-1993R01","MNT_CR_accessControlPolicy_procedure_(R1)","LG Electronics","2015-07-23T15:04:41","Draft","CR",null,"ARC 18"]
["ARC-2015-1994","MNT_CR_accessControlPolicy_procedure_(R2)","LG Electronics","2015-07-13T09:44:11","Noted","CR",null,"ARC 18"]
["ARC-2015-1994R01","MNT_CR_accessControlPolicy_procedure_(R2)","LG Electronics","2015-07-23T15:05:02","Draft","CR",null,"ARC 18"]
["ARC-2015-1995","Transit CSE Behavior Correction (R2)","LG Electronics","2015-07-13T09:01:47","Draft","CR",null,"ARC 18"]
["ARC-2015-1996","MNT_CR_locationPolicy_resource_procedure_(R1)","LG Electronics","2015-07-13T09:46:22","Draft","CR",null,"ARC 18"]
["ARC-2015-1997","MNT_CR_locationPolicy_resource_procedure_(R2)","LG Electronics","2015-07-13T09:46:45","Draft","CR",null,"ARC 18"]
["ARC-2015-1998","MNT_CR_polling_response_(R1)","LG Electronics","2015-07-13T09:48:09","Draft","CR",null,"ARC 18"]
["ARC-2015-1999","MNT_CR_polling_response_(R2)","LG Electronics","2015-07-13T09:48:32","Draft","CR",null,"ARC 18"]
["ARC-2015-2000","MNT_CR_pollingChannel_procedure_(R1)","LG Electronics","2015-07-13T09:50:24","Noted","CR",null,"ARC 18"]
["ARC-2015-2000R01","MNT_CR_pollingChannel_procedure_(R1)","LG Electronics","2015-07-23T15:38:35","Draft","CR",null,"ARC 18"]
["ARC-2015-2000R02","MNT_CR_pollingChannel_procedure_(R1)","LG Electronics","2015-07-23T21:12:47","Draft","CR",null,"ARC 18"]
["ARC-2015-2001","From Parameter When Announcing Resource (R2)","LG Electronics","2015-07-13T09:04:09","Noted","CR",null,"ARC 18"]
["ARC-2015-2002","MNT_CR_pollingChannel_procedure_(R2)","LG Electronics","2015-07-13T09:50:46","Noted","CR",null,"ARC 18"]
["ARC-2015-2002R01","MNT_CR_pollingChannel_procedure_(R2)","LG Electronics","2015-07-23T15:39:14","Draft","CR",null,"ARC 18"]
["ARC-2015-2002R02","MNT_CR_pollingChannel_procedure_(R2)","LG Electronics","2015-07-23T21:13:17","Draft","CR",null,"ARC 18"]
["ARC-2015-2003","MNT_CR_resourceID_of_AE_(R1)","LG Electronics","2015-07-13T09:53:06","Noted","CR",null,"ARC 18"]
["ARC-2015-2003R01","MNT_CR_resourceID_of_AE_(R1)","LG Electronics","2015-07-20T21:49:45","Agreed","CR",null,"ARC 18"]
["ARC-2015-2004","MNT_CR_resourceID_of_AE_(R2)","LG Electronics","2015-07-13T09:53:28","Noted","CR",null,"ARC 18"]
["ARC-2015-2004R01","MNT_CR_resourceID_of_AE_(R2)","LG Electronics","2015-07-20T21:50:19","Agreed","CR",null,"ARC 18"]
["ARC-2015-2005","STE_CR_container_for_locationPolicy","LG Electronics","2015-07-13T09:54:48","Draft","CR",null,"ARC 18"]
["ARC-2015-2006","MNT_CR_request_ID_clarification_(R1)","LG Electronics","2015-07-15T06:51:49","Noted","CR",null,"ARC 18"]
["ARC-2015-2007","MNT_CR_request_ID_clarification_(R2)","LG Electronics","2015-07-15T06:52:11","Noted","CR",null,"ARC 18"]
["ARC-2015-2008","Simple word errors correction(R2)","LG Electronics","2015-07-13T10:43:54","Agreed","CR",null,"ARC 18"]
["ARC-2015-2009","CR for AE Registration Bug fix(R1)","LG Electronics","2015-07-13T10:43:34","Noted","CR",null,"ARC 18"]
["ARC-2015-2009R01","CR for AE Registration Bug fix(R1)","LG Electronics","2015-07-23T15:19:30","Noted","CR",null,"ARC 18"]
["ARC-2015-2009R02","CR for AE Registration Bug fix(R1)","LG Electronics","2015-07-23T22:00:57","Draft","CR",null,"ARC 18"]
["ARC-2015-2010","CR for AE Registration Bug fix(R2)","LG Electronics","2015-07-13T10:43:12","Noted","CR",null,"ARC 18"]
["ARC-2015-2010R01","CR for AE Registration Bug fix(R2)","LG Electronics","2015-07-23T15:19:55","Noted","CR",null,"ARC 18"]
["ARC-2015-2010R02","CR for AE Registration Bug fix(R2)","LG Electronics","2015-07-23T22:01:37","Draft","CR",null,"ARC 18"]
["ARC-2015-2011","CR for Announced resource introduction(R1)","LG Electronics","2015-07-13T10:42:18","Noted","CR",null,"ARC 18"]
["ARC-2015-2011R01","CR for Announced resource introduction(R1)","LG Electronics","2015-07-21T15:47:37","Noted","CR",null,"ARC 18"]
["ARC-2015-2011R02","CR for Announced resource introduction(R1)","LG Electronics","2015-07-23T22:46:59","Draft","CR",null,"ARC 18"]
["ARC-2015-2011R03","CR for Announced resource introduction(R1)","LG Electronics","2015-07-23T23:23:02","Draft","CR",null,"ARC 18"]
["ARC-2015-2012","CR for Announced resource introduction(R2)","LG Electronics","2015-07-13T10:41:58","Noted","CR",null,"ARC 18"]
["ARC-2015-2012R01","CR for Announced resource introduction(R2)","LG Electronics","2015-07-21T15:48:04","Noted","CR",null,"ARC 18"]
["ARC-2015-2012R02","CR for Announced resource introduction(R2)","LG Electronics","2015-07-23T22:47:26","Noted","CR",null,"ARC 18"]
["ARC-2015-2012R03","CR for Announced resource introduction(R2)","LG Electronics","2015-07-23T23:26:05","Draft","CR",null,"ARC 18"]
["ARC-2015-2013","CR for group memberType clarification(R1)","LG Electronics","2015-07-13T10:41:24","Draft","CR",null,"ARC 18"]
["ARC-2015-2013R01","CR for group memberType clarification(R1)","LG Electronics","2015-07-23T20:13:01","Draft","CR",null,"ARC 18"]
["ARC-2015-2014","CR for group memberType clarification(R2)","LG Electronics","2015-07-13T10:41:02","Draft","CR",null,"ARC 18"]
["ARC-2015-2014R01","CR for group memberType clarification(R2)","LG Electronics","2015-07-23T20:14:31","Draft","CR",null,"ARC 18"]
["ARC-2015-2015","CR for Remote CSE ACP Check(R1)","LG Electronics","2015-07-13T10:40:16","Draft","CR",null,"ARC 18"]
["ARC-2015-2016","CR for Remote CSE ACP Check(R2)","LG Electronics","2015-07-13T10:40:39","Draft","CR",null,"ARC 18"]
["ARC-2015-2017","CR on cmdhPolicyName attribute in CMDH Policy R1","Qualcomm Inc. (TIA)","2015-07-13T10:53:43","Agreed","CR",null,"ARC 18"]
["ARC-2015-2018","Mirror CR on cmdhPolicyName attribute in CMDH Policy R2","Qualcomm Inc. (TIA)","2015-07-13T10:55:40","Agreed","CR",null,"ARC 18"]
["ARC-2015-2019","SemanticFilterCriteria","NEC","2015-07-13T13:22:22","Draft","CR",null,"ARC 18"]
["ARC-2015-2020","CR on correcting ID examples R1","Qualcomm Inc. (TIA)","2015-07-13T14:29:13","Draft","CR",null,"ARC 18"]
["ARC-2015-2021","Mirror CR on correcting ID examples R2","Qualcomm Inc. (TIA)","2015-07-13T14:31:01","Draft","CR",null,"ARC 18"]
["ARC-2015-2022","Experience and discussion on IPE Implementation","KETI","2015-07-13T15:48:33","Noted","INC",null,"ARC 18"]
["ARC-2015-2023","STE Discussion Hierarchical Adressing","Qualcomm Inc. (TIA)","2015-07-14T00:01:35","Draft","INC",null,"ARC 18"]
["ARC-2015-2024","STE CR resourceName vs resourceId vs AE-ID vs CSE-ID R2","Qualcomm Inc. (TIA)","2015-07-14T00:00:28","Draft","CR",null,"ARC 18"]
["ARC-2015-2024R01","STE CR resourceName vs resourceId vs AE-ID vs CSE-ID R2","Qualcomm Inc. (TIA)","2015-07-23T16:31:49","Draft","CR",null,"ARC 18"]
["ARC-2015-2025","MNT_CR_S-type_AE-ID_for_ACP_(R1)","LG Electronics","2015-07-14T09:47:33","Draft","CR",null,"ARC 18"]
["ARC-2015-2026","MNT_CR_S-type_AE-ID_for_ACP_(R2)","LG Electronics","2015-07-14T09:47:51","Draft","CR",null,"ARC 18"]
["ARC-2015-2027","appObj_new_resource_type","LG Electronics","2015-07-14T09:47:15","Draft","CR",null,"ARC 18"]
["ARC-2015-2028","CR_for_resourceType_Access_Mode(R1)","LG Electronics","2015-07-15T01:36:29","Agreed","CR",null,"ARC 18"]
["ARC-2015-2029","CR_for_resourceType_Access_Mode(R2)","LG Electronics","2015-07-15T01:37:09","Agreed","CR",null,"ARC 18"]
["ARC-2015-2030","ARC#18 Agenda","Nicolas Damour, WG2 Chairman","2015-07-16T13:57:37","Noted","AG",null,"ARC 18"]
["ARC-2015-2030R01","ARC#18 Agenda","Nicolas Damour, WG2 Chairman","2015-07-20T18:48:36","Agreed","AG",null,"ARC 18"]
["ARC-2015-2031","ARC#18 Document allocation","Nicolas Damour, WG2 Chairman","2015-07-17T14:41:24","Noted","AG",null,"ARC 18"]
["ARC-2015-2031R01","ARC#18 Document allocation","Nicolas Damour, WG2 Chairman","2015-07-20T18:05:27","Noted","AG",null,"ARC 18"]
["ARC-2015-2031R02","ARC#18 Document allocation","Nicolas Damour, WG2 Chairman","2015-07-23T18:07:17","Draft","AG",null,"ARC 18"]
["ARC-2015-2032","MNT CR resourceId attribute clarification R1","Qualcomm Inc. (TIA)","2015-07-16T18:02:21","Draft","CR",null,"ARC 18"]
["ARC-2015-2033","Mirror MNT CR resourceId attribute clarification R2","Qualcomm Inc. (TIA)","2015-07-16T18:04:15","Draft","CR",null,"ARC 18"]
["ARC-2015-2034","CR Add Response Code","KT","2015-07-17T16:17:04","Noted","CR",null,"ARC 18"]
["ARC-2015-2034R01","CR Add Response Code","KT","2015-07-20T14:47:04","Noted","CR",null,"ARC 18"]
["ARC-2015-2034R02","CR Add Response Code","KT","2015-07-21T20:40:24","Noted","CR",null,"ARC 18"]
["ARC-2015-2035","AppID Comments","IFAST, ILS, Telxxis (TIA TR-50)","2015-07-20T11:54:03","Noted","INC",null,"ARC 18"]
["ARC-2015-2036","AppID CR","IFAST, Telit","2015-07-20T15:48:25","Noted","INC",null,"ARC 18"]
["ARC-2015-2037","CR_for_announced_RO_attributes_(R1)","InterDigital, LG Electronics","2015-07-21T14:34:01","Withdrawn","CR",null,"ARC 18"]
["ARC-2015-2038","3GPP Rel-13 Interworking discussions","Rajesh Bhalla, ZTE","2015-07-22T14:14:04","Noted","INC",null,"ARC 18"]
["ARC-2015-2038R01","3GPP Rel-13 Interworking discussions","Rajesh Bhalla, ZTE","2015-07-23T15:05:14","Noted","INC",null,"ARC 18"]
["ARC-2015-2038R02","3GPP Rel-13 Interworking discussions","Rajesh Bhalla, ZTE","2015-07-23T20:30:42","Noted","INC",null,"ARC 18"]
["ARC-2015-2039","MNT_CR_polling_mechanism_diagram(R1)","LG Electronics","2015-07-22T09:49:55","Draft","CR",null,"ARC 18"]
["ARC-2015-2039R01","MNT_CR_polling_mechanism_diagram(R1)","LG Electronics","2015-07-23T15:36:53","Draft","CR",null,"ARC 18"]
["ARC-2015-2040","MNT scheduleElement attribute Release 1","KT","2015-07-22T06:25:38","Noted","CR",null,"ARC 18"]
["ARC-2015-2040R01","MNT scheduleElement attribute Release 1","KT","2015-07-22T15:25:26","Noted","CR",null,"ARC 18"]
["ARC-2015-2040R02","MNT scheduleElement attribute Release 1","KT","2015-07-22T15:51:48","Draft","CR",null,"ARC 18"]
["ARC-2015-2041","MNT scheduleElement attribute Release 2","KT","2015-07-22T06:27:45","Noted","CR",null,"ARC 18"]
["ARC-2015-2041R01","MNT scheduleElement attribute Release 2","KT","2015-07-22T15:20:28","Noted","CR",null,"ARC 18"]
["ARC-2015-2041R02","MNT scheduleElement attribute Release 2","KT","2015-07-22T16:14:48","Draft","CR",null,"ARC 18"]
["ARC-2015-2042","MNT_CR_polling_mechanism_diagram(R2)","LG Electronics","2015-07-22T09:51:51","Draft","CR",null,"ARC 18"]
["ARC-2015-2042R01","MNT_CR_polling_mechanism_diagram(R2)","LG Electronics","2015-07-23T15:37:19","Draft","CR",null,"ARC 18"]
["ARC-2015-2043","CR_for_subscription-_notificationContentType_attribute(R1)","Huawei","2015-07-22T13:22:36","Draft","CR",null,"ARC 18"]
["ARC-2015-2043R01","CR_for_subscription-_notificationContentType_attribute(R1)","Huawei","2015-07-22T14:41:36","Draft","CR",null,"ARC 18"]
["ARC-2015-2044","Multiplicity Naming Convention Alignment R1","Huawei","2015-07-22T20:33:33","Draft","CR",null,"ARC 18"]
["ARC-2015-2045","Multiplicity Naming Convention Alignment R2","Huawei","2015-07-22T20:33:58","Draft","CR",null,"ARC 18"]
["MAS-2015-0591","TS-0012-V0_3_0 Base Ontology update after MAS#17.3","NEC (rapporteur)","2015-07-07T10:23:36","Agreed","INC",null,"MAS 18"]
["MAS-2015-0592","Modeling M2M app data","FUJITSU","2015-07-12T02:39:38","Draft","INC",null,"MAS 18"]
["MAS-2015-0592R01","Modeling M2M app data","FUJITSU","2015-07-20T16:17:14","Draft","INC",null,"MAS 18"]
["MAS-2015-0593","TS-0005 Align Resource Names and Attributes","Gemalto N.V","2015-07-10T21:17:53","Draft","CR",null,"MAS 18"]
["MAS-2015-0593R01","TS-0005 Align Resource Names and Attributes","Gemalto N.V","2015-07-20T19:13:26","Agreed","CR",null,"MAS 18"]
["MAS-2015-0594","Discussions on semantic description  rules","China Unicom","2015-07-10T15:44:34","Draft","INC",null,"MAS 18"]
["MAS-2015-0595","TS-0012 Update on Base Ontology and Mapping to oneM2M Resources","NEC","2015-07-13T15:25:39","Draft","INC",null,"MAS 18"]
["MAS-2015-0595R01","TS-0012 Update on Base Ontology and Mapping to oneM2M Resources","NEC","2015-07-21T14:52:02","Draft","INC",null,"MAS 18"]
["MAS-2015-0595R02","TS-0012 Update on Base Ontology and Mapping to oneM2M Resources","NEC","2015-07-21T20:44:15","Draft","INC",null,"MAS 18"]
["MAS-2015-0595R03","TS-0012 Update on Base Ontology and Mapping to oneM2M Resources","NEC","2015-07-22T13:28:55","Draft","INC",null,"MAS 18"]
["MAS-2015-0595R04","TS-0012 Update on Base Ontology and Mapping to oneM2M Resources","NEC","2015-07-23T13:36:57","Draft","INC",null,"MAS 18"]
["MAS-2015-0595R05","TS-0012 Update on Base Ontology and Mapping to oneM2M Resources","NEC","2015-07-24T12:57:44","Draft","INC",null,"MAS 18"]
["MAS-2015-0595R06","TS-0012 Update on Base Ontology and Mapping to oneM2M Resources","NEC","2015-07-24T15:24:38","Draft","INC",null,"MAS 18"]
["MAS-2015-0595R07","TS-0012 Update on Base Ontology and Mapping to oneM2M Resources","NEC","2015-07-24T16:09:51","Draft","INC",null,"MAS 18"]
["MAS-2015-0596","Proposed modification for Section 7 on mapping of the base ontoloy and external ontologies","Modacom","2015-07-11T12:48:04","Draft","INC",null,"MAS 18"]
["MAS-2015-0596R01","Proposed modification for Section 7 on mapping of the base ontoloy and external ontologies","Modacom","2015-07-21T14:34:37","Draft","INC",null,"MAS 18"]
["MAS-2015-0596R02","Proposed modification for Section 7 on mapping of the base ontoloy and external ontologies","Modacom","2015-07-21T21:04:16","Draft","INC",null,"MAS 18"]
["MAS-2015-0596R03","Proposed modification for Section 7 on mapping of the base ontoloy and external ontologies","Modacom","2015-07-22T18:56:04","Agreed","INC",null,"MAS 18"]
["MAS-2015-0597","TR-0017 Home Domain Abstract Information Model V0.5.0 Draft Baseline","KETI","2015-07-14T06:38:28","Agreed","INC",null,"MAS 18"]
["MAS-2015-0598","Semantic_Filtering_and_Discovery","NEC","2015-07-14T14:58:45","Agreed","CR",null,"MAS 18"]
["MAS-2015-0599","HGI activities transfer to oneM2M WG5","Patricia MARTIGNE, ORANGE","2015-07-20T00:36:15","Draft","INC",null,"MAS 18"]
["MAS-2015-0599R01","HGI activities transfer to oneM2M WG5","Patricia MARTIGNE, ORANGE","2015-07-21T22:49:56","Draft","INC",null,"MAS 18"]
["MAS-2015-0599R02","HGI activities transfer to oneM2M WG5","Patricia MARTIGNE, ORANGE","2015-07-22T17:53:47","Draft","INC",null,"TP 18"]
["MAS-2015-0600","Agenda MAS#18","Yongjing Zhang (Huawei, Chair)","2015-07-16T06:58:24","Draft","AG",null,"MAS 18"]
["MAS-2015-0600R01","Agenda MAS#18","Yongjing Zhang (Huawei, Chair)","2015-07-20T03:12:38","Draft","AG",null,"MAS 18"]
["MAS-2015-0600R02","Agenda MAS#18","Yongjing Zhang (Huawei, Chair)","2015-07-20T16:28:15","Draft","AG",null,"MAS 18"]
["MAS-2015-0600R03","Agenda MAS#18","Yongjing Zhang (Huawei, Chair)","2015-07-20T18:57:48","Draft","AG",null,"MAS 18"]
["MAS-2015-0601","MAS#18 Doc allocation","Yongjing Zhang (Huawei, Chair)","2015-07-16T06:58:36","Draft","AG",null,"MAS 18"]
["MAS-2015-0601R01","MAS#18 Doc allocation","Yongjing Zhang (Huawei, Chair)","2015-07-20T03:00:12","Draft","AG",null,"MAS 18"]
["MAS-2015-0601R02","MAS#18 Doc allocation","Yongjing Zhang (Huawei, Chair)","2015-07-20T16:27:34","Draft","AG",null,"MAS 18"]
["MAS-2015-0601R03","MAS#18 Doc allocation","Yongjing Zhang (Huawei, Chair)","2015-07-20T18:57:01","Draft","AG",null,"MAS 18"]
["MAS-2015-0601R04","MAS#18 Doc allocation","Yongjing Zhang (Huawei, Chair)","2015-07-20T20:47:20","Draft","AG",null,"MAS 18"]
["MAS-2015-0601R05","MAS#18 Doc allocation","Yongjing Zhang (Huawei, Chair)","2015-07-22T03:26:47","Draft","AG",null,"MAS 18"]
["MAS-2015-0601R06","MAS#18 Doc allocation","Yongjing Zhang (Huawei, Chair)","2015-07-22T21:53:26","Draft","AG",null,"MAS 18"]
["MAS-2015-0601R07","MAS#18 Doc allocation","Yongjing Zhang (Huawei, Chair)","2015-07-24T03:51:42","Draft","AG",null,"MAS 18"]
["MAS-2015-0602","Minutes MAS TP18","secretary",null,"Draft","MIN",null,"TP 18"]
["MAS-2015-0603","Ontology Resource Discussion","InterDigital","2015-07-20T16:39:31","Draft","INC",null,"MAS 18"]
["MAS-2015-0604","SemanticFilteringUsingDistributedSemanticDescriptors","NEC","2015-07-21T12:18:37","Draft","CR",null,"MAS 18"]
["MAS-2015-0604R01","SemanticFilteringUsingDistributedSemanticDescriptors","NEC","2015-07-24T03:31:28","Draft","CR",null,"MAS 18"]
["MAS-2015-0605","Proposal for a new WI","Patricia Martigne (Orange)","2015-07-21T19:50:45","Draft","INC",null,"MAS 18"]
["MAS-2015-0605R01","Proposal for a new WI","Patricia Martigne (Orange)","2015-07-22T18:14:21","Draft","INC",null,"MAS 18"]
["MAS-2015-0606","oneM2MBaseOntology-AssumptionsAndApproaches","NEC","2015-07-24T04:59:03","Draft","CR",null,"MAS 18"]
["PRO-2015-0768R03","CR_parameter_default_values","LG Electronics","2015-06-11T08:30:01","Noted","CR",null,"PRO 18"]
["PRO-2015-0768R04","CR_parameter_default_values","LG Electronics","2015-07-21T20:36:51","Agreed","CR",null,"PRO 18"]
["PRO-2015-0779","Generic response procedure for receiver","KT","2015-05-10T13:33:20","Draft","CR",null,"PRO 18"]
["PRO-2015-0783R02","Clarification_on_XSD_usage","Qualcomm Inc. (TIA), FUJITSU","2015-06-05T19:57:22","Noted","CR",null,"PRO 18"]
["PRO-2015-0783R03","Clarification_on_XSD_usage","Qualcomm Inc. (TIA), FUJITSU","2015-07-23T15:26:24","Agreed","CR",null,"PRO 18"]
["PRO-2015-0792","Virtual_Resource_XSD_Correction","LG Electronics","2015-05-13T01:56:23","Noted","CR",null,"PRO 18"]
["PRO-2015-0808R01","CR_TS-0009_response_code_mapping_enhancement","LG Electronics","2015-07-03T06:13:42","Draft","CR",null,"PRO 18"]
["PRO-2015-0811R02","CR_TS0004_primitiveContent","Qualcomm Inc. (TIA)","2015-07-21T15:34:22","Draft","CR",null,"PRO 18"]
["PRO-2015-0815","CR schedule resource type","LG Electronics","2015-06-11T08:29:21","Agreed","CR",null,"PRO 18"]
["PRO-2015-0819R01","Step value syntax for scheduleElement","QUALCOMM","2015-06-30T15:12:16","Noted","CR",null,"PRO 18"]
["PRO-2015-0819R02","Step value syntax for scheduleElement","QUALCOMM","2015-07-20T21:47:19","Noted","CR",null,"PRO 18"]
["PRO-2015-0819R03","Step value syntax for scheduleElement","QUALCOMM","2015-07-21T14:25:31","Draft","CR",null,"PRO 18"]
["PRO-2015-0820R01","Draft_TS-0004_v.1.2.1","TS-0004 Rapportuers","2015-06-30T11:08:39","Reserved","INC",null,"PRO 18"]
["PRO-2015-0822","CR_poa_for_mqtt","LG Electronics","2015-07-03T09:14:29","Postponed","CR",null,"PRO 18"]
["PRO-2015-0823","CR_accessControlRule_data_type","LG Electronics","2015-07-03T09:15:30","Agreed","CR",null,"PRO 18"]
["PRO-2015-0824","CR_missing_shortnames","FUJITSU","2015-07-05T03:28:30","Noted","CR",null,"PRO 18"]
["PRO-2015-0824R01","CR_missing_shortnames","FUJITSU","2015-07-05T10:54:35","Noted","CR",null,"PRO 18"]
["PRO-2015-0824R02","CR_missing_shortnames","FUJITSU","2015-07-05T11:37:59","Noted","CR",null,"PRO 18"]
["PRO-2015-0824R03","CR_missing_shortnames","FUJITSU","2015-07-21T15:14:55","Draft","CR",null,"PRO 18"]
["PRO-2015-0825","CR_missing_shortnames(Mirrored)","FUJITSU","2015-07-05T03:31:22","Noted","CR",null,"PRO 18"]
["PRO-2015-0825R01","CR_missing_shortnames(Mirrored)","FUJITSU","2015-07-05T10:57:42","Noted","CR",null,"PRO 18"]
["PRO-2015-0825R02","CR_missing_shortnames(Mirrored)","FUJITSU","2015-07-05T11:41:07","Noted","CR",null,"PRO 18"]
["PRO-2015-0826","XSD long to short conversion","FUJITSU","2015-07-05T11:58:16","Noted","INC",null,"PRO 18"]
["PRO-2015-0826R01","XSD long to short conversion","FUJITSU","2015-07-20T16:31:50","Noted","INC",null,"PRO 18"]
["PRO-2015-0827","CR TS-0008 TokenSize BlockTransfer","Giesecke & Devrient","2015-07-07T12:01:35","Noted","INC",null,"PRO 18"]
["PRO-2015-0827R01","CR TS-0008 TokenSize BlockTransfer","Giesecke & Devrient","2015-07-21T15:07:31","Draft","INC",null,"PRO 18"]
["PRO-2015-0828","CR TS-0004 Diameter Charging Code Points Correction","Ericsson","2015-07-09T16:13:58","Noted","CR",null,"PRO 18"]
["PRO-2015-0828R01","CR TS-0004 Diameter Charging Code Points Correction","Ericsson","2015-07-11T11:50:54","Agreed","CR",null,"PRO 18"]
["PRO-2015-0829","CR TS-0004 Diameter Charging Code Points Correction(Mirror)","Ericsson","2015-07-11T11:52:34","Agreed","CR",null,"PRO 18"]
["PRO-2015-0830","LSout 3GPP SA5 Code Point","Ericsson","2015-07-09T16:17:20","Noted","LS",null,"PRO 18"]
["PRO-2015-0830R01","LSout 3GPP SA5 Code Point","Ericsson","2015-07-21T13:50:53","Agreed","LS",null,"PRO 18"]
["PRO-2015-0831","Draft_TS-0004_v.2.0.0","TS-0004 Rapportuers","2015-07-10T05:13:47","Agreed","INC",null,"PRO 18"]
["PRO-2015-0832","group-access control-stage3","Huawei Technologies Co., Ltd.","2015-07-12T07:07:06","Draft","CR",null,"PRO 18"]
["PRO-2015-0833","HTTP Method","KT","2015-07-12T11:27:13","Noted","CR",null,"PRO 18"]
["PRO-2015-0834","X-M2M-OP header","KT","2015-07-12T11:39:01","Noted","CR",null,"PRO 18"]
["PRO-2015-0834R01","X-M2M-OP header","KT","2015-07-23T13:47:16","Draft","CR",null,"PRO 18"]
["PRO-2015-0835","scheduleEntry Data Type Release 2","KT","2015-07-12T11:47:48","Noted","CR",null,"PRO 18"]
["PRO-2015-0836","Generic procedure of Originator","KT","2015-07-12T12:28:43","Noted","CR",null,"PRO 18"]
["PRO-2015-0837","Notification-Originator-Operation","InterDigital","2015-07-12T17:21:24","Noted","CR",null,"PRO 18"]
["PRO-2015-0837R01","Notification-Originator-Operation","InterDigital","2015-07-21T20:28:08","Agreed","CR",null,"PRO 18"]
["PRO-2015-0838","Notification-Originator-Operation-Mirror","InterDigital","2015-07-12T17:23:47","Noted","CR",null,"PRO 18"]
["PRO-2015-0838R01","Notification-Originator-Operation-Mirror","InterDigital","2015-07-21T20:28:34","Agreed","CR",null,"PRO 18"]
["PRO-2015-0839","announcedResource-expirationTime","InterDigital","2015-07-12T17:55:52","Noted","CR",null,"PRO 18"]
["PRO-2015-0839R01","announcedResource-expirationTime","InterDigital","2015-07-21T13:59:36","Agreed","CR",null,"PRO 18"]
["PRO-2015-0840","announcedResource-expirationTime-Mirror","InterDigital","2015-07-12T18:01:51","Noted","CR",null,"PRO 18"]
["PRO-2015-0840R01","announcedResource-expirationTime-Mirror","InterDigital","2015-07-21T14:04:12","Agreed","CR",null,"PRO 18"]
["PRO-2015-0841","XSD-List_cardinality","Qualcomm Inc., IBM","2015-07-12T22:25:23","Noted","CR",null,"PRO 18"]
["PRO-2015-0841R01","XSD-List_cardinality","Qualcomm Inc., IBM","2015-07-20T17:27:03","Agreed","CR",null,"PRO 18"]
["PRO-2015-0842","FilterCriteria_corrections","Qualcomm","2015-07-12T22:30:12","Noted","CR",null,"PRO 18"]
["PRO-2015-0842R01","FilterCriteria_corrections","Qualcomm","2015-07-23T21:20:35","Draft","CR",null,"PRO 18"]
["PRO-2015-0842R02","FilterCriteria_corrections","Qualcomm","2015-07-23T22:06:53","Draft","CR",null,"PRO 18"]
["PRO-2015-0843","TS-0009v1_1_0-corrections","Qualcomm Inc.","2015-07-12T22:35:01","Noted","CR",null,"PRO 18"]
["PRO-2015-0843R01","TS-0009v1_1_0-corrections","Qualcomm Inc.","2015-07-22T18:15:26","Noted","CR",null,"PRO 18"]
["PRO-2015-0843R02","TS-0009v1_1_0-corrections","Qualcomm Inc.","2015-07-23T18:19:00","Agreed","CR",null,"PRO 18"]
["PRO-2015-0844","TS-0004-primitive_content_clarification","Qualcomm Inc.","2015-07-12T22:41:57","Noted","CR",null,"PRO 18"]
["PRO-2015-0844R01","TS-0004-primitive_content_clarification","Qualcomm Inc.","2015-07-23T15:23:04","Noted","CR",null,"PRO 18"]
["PRO-2015-0844R02","TS-0004-primitive_content_clarification","Qualcomm Inc.","2015-07-23T18:28:38","Noted","CR",null,"PRO 18"]
["PRO-2015-0844R03","TS-0004-primitive_content_clarification","Qualcomm Inc.","2015-07-23T22:12:28","Draft","CR",null,"PRO 18"]
["PRO-2015-0845","Timestamp_format_in_primitives","Qualcomm Inc.","2015-07-12T22:49:10","Agreed","CR",null,"PRO 18"]
["PRO-2015-0846","WebSocket registration procedure","FUJITSU","2015-07-13T03:20:35","Noted","CR",null,"PRO 18"]
["PRO-2015-0846R01","WebSocket registration procedure","FUJITSU","2015-07-21T12:31:09","Noted","CR",null,"PRO 18"]
["PRO-2015-0846R02","WebSocket registration procedure","FUJITSU","2015-07-21T19:51:22","Agreed","CR",null,"PRO 18"]
["PRO-2015-0848","Update Operation Mapping in HTTP","LG Electronics","2015-07-13T07:49:50","Noted","CR",null,"PRO 18"]
["PRO-2015-0848R01","Update Operation Mapping in HTTP","LG Electronics","2015-07-21T09:52:45","Noted","CR",null,"PRO 18"]
["PRO-2015-0848R02","Update Operation Mapping in HTTP","LG Electronics","2015-07-21T18:52:33","Agreed","CR",null,"PRO 18"]
["PRO-2015-0851","CR_locationPolicy","LG Electronics","2015-07-16T03:32:21","Agreed","CR",null,"PRO 18"]
["PRO-2015-0852","CR TS0004 Alignment with TS0001 and TS0003 on Role parameter","Oberthur Technologies, Qualcomm Inc.","2015-07-13T09:33:49","Agreed","INC",null,"PRO 18"]
["PRO-2015-0853","Mirror CR TS0004 Alignment with TS0001 and TS0003 on Role parameter","Oberthur Technologies, Qualcomm Inc.","2015-07-13T09:37:25","Agreed","INC",null,"PRO 18"]
["PRO-2015-0854","CR for creator request optionality","LG Electronics","2015-07-15T01:38:38","Noted","CR",null,"PRO 18"]
["PRO-2015-0854R01","CR for creator request optionality","LG Electronics","2015-07-23T10:34:13","Agreed","CR",null,"PRO 18"]
["PRO-2015-0855","PRO18.0 Agenda","WG3/PRO Charirman","2015-07-15T12:56:14","Noted","AG",null,"PRO 18"]
["PRO-2015-0855R01","PRO18.0 Agenda","WG3/PRO Charirman","2015-07-17T14:38:27","Agreed","AG",null,"PRO 18"]
["PRO-2015-0855R02","PRO18.0 Agenda","WG3/PRO Charirman","2015-07-20T22:24:50","Agreed","AG",null,"PRO 18"]
["PRO-2015-0855R03","PRO18.0 Agenda","WG3/PRO Charirman","2015-07-22T03:29:56","Agreed","AG",null,"PRO 18"]
["PRO-2015-0855R04","PRO18.0 Agenda","WG3/PRO Charirman","2015-07-23T14:48:00","Agreed","AG",null,"PRO 18"]
["PRO-2015-0855R05","PRO18.0 Agenda","WG3/PRO Charirman","2015-07-23T21:57:49","Draft","AG",null,"PRO 18"]
["PRO-2015-0856","CR_batchNotify","LG Electronics","2015-07-15T08:31:38","Noted","CR",null,"PRO 18"]
["PRO-2015-0856R01","CR_batchNotify","LG Electronics","2015-07-23T21:53:32","Draft","CR",null,"PRO 18"]
["PRO-2015-0857","STE_CR_locationUpdatePeriod_(R2)","LG Electronics","2015-07-15T08:30:47","Noted","CR",null,"PRO 18"]
["PRO-2015-0857R01","STE_CR_locationUpdatePeriod_(R2)","LG Electronics","2015-07-15T08:56:08","Withdrawn","CR",null,"PRO 18"]
["PRO-2015-0858","Draft_baseline_TS-0010_V-1_2_0","MQTT Protocol TS Rapporteur","2015-07-19T01:36:05","Draft","INC",null,"PRO 18"]
["PRO-2015-0860","Minutes PRO 18.0","Secretary",null,"Draft","MIN",null,"PRO 18"]
["PRO-2015-0861","CR_schedule_resource_type(R2)","LG Electronics","2015-07-20T16:44:40","Agreed","CR",null,"PRO 18"]
["PRO-2015-0862","CR_CSEBase_resource_type(R1)","LG Electronics","2015-07-20T22:12:57","Agreed","CR",null,"PRO 18"]
["PRO-2015-0863","CR_CSEBase_resource_type(R2)","LG Electronics","2015-07-20T22:14:39","Agreed","CR",null,"PRO 18"]
["PRO-2015-0866","MNT data type for scheduleEntry Release 1","KT","2015-07-22T19:23:12","Noted","CR",null,"PRO 18"]
["PRO-2015-0867","MNT data type for scheduleEntry Release 2","KT","2015-07-22T19:27:12","Noted","CR",null,"PRO 18"]
["PRO-2015-0868","CR_batchNotify (R2)","LG Electronics","2015-07-23T09:49:25","Agreed","CR",null,"PRO 18"]
["PRO-2015-0870","CR for creator request optionality (R2)","LG Electronics","2015-07-23T10:38:21","Agreed","CR",null,"PRO 18"]
["PRO-2015-0871","CR_parameter_default_values_(R2)","LG Electronics","2015-07-23T10:44:46","Agreed","CR",null,"PRO 18"]
["PRO-2015-0872","Resource_Type_Mapping_For_CoAP","LG Electronics","2015-07-23T11:37:29","Agreed","CR",null,"PRO 18"]
["PRO-2015-0872R01","Resource_Type_Mapping_For_CoAP","LG Electronics","2015-07-23T21:52:17","Draft","CR",null,"PRO 18"]
["PRO-2015-0873","CR for NonBlocking Async Target List","QUALCOMM","2015-07-23T14:10:37","Noted","CR",null,"PRO 18"]
["PRO-2015-0873R01","CR for NonBlocking Async Target List","QUALCOMM","2015-07-23T18:08:29","Agreed","CR",null,"PRO 18"]
["PRO-2015-0875","CR for NonBlocking Async Target List (Mirror)","QUALCOMM","2015-07-23T14:15:53","Noted","CR",null,"PRO 18"]
["PRO-2015-0875R01","CR for NonBlocking Async Target List (Mirror)","QUALCOMM","2015-07-23T18:08:47","Agreed","CR",null,"PRO 18"]
["PRO-2015-0876","FilterCriteria_corrections","Qualcomm","2015-07-23T21:28:27","Draft","CR",null,"PRO 18"]
["PRO-2015-0877","TS-0004-primitive_content_clarification.","Qualcomm",null,"Draft","CR",null,"PRO 18"]
["PRO-2015-0878","TS-0004-primitive_content_clarification(R2mirror)","Qualcomm","2015-07-23T22:22:31","Draft","CR",null,"PRO 18"]
["PRO-2015-0879","Timestamp_format_in_primitives(R2mirror)","Qualcomm","2015-07-23T22:29:28","Draft","CR",null,"PRO 18"]
["PRO-2015-0880","Clarification_on_XSD_usage(R2mirror)","Qualcomm Inc., Fujitsu","2015-07-23T22:38:13","Draft","CR",null,"PRO 18"]
["REQ-2015-0589R01","Usecase on vehicle data wipe service","TOYOTA ITC","2015-07-07T11:35:50","Draft","INC",null,"REQ 18"]
["REQ-2015-0589R02","Usecase on vehicle data wipe service","TOYOTA ITC",null,"Draft","INC",null,"REQ 18"]
["REQ-2015-0589R03","Usecase on vehicle data wipe service","TOYOTA ITC","2015-07-20T07:12:26","Noted","INC",null,"REQ 18"]
["REQ-2015-0589R04","Usecase on vehicle data wipe service","TOYOTA ITC, KDDI, Fujitsu","2015-07-21T20:00:28","Agreed","INC",null,"REQ 18"]
["REQ-2015-0590","SEC_related_CR_to_TS-0002_on_Trust_transfer","NEC","2015-07-10T17:17:49","Draft","INC",null,"REQ 18"]
["REQ-2015-0590R01","SEC_related_CR_to_TS-0002_on_Trust_transfer","NEC","2015-07-22T14:17:03","Agreed","INC",null,"REQ 18"]
["REQ-2015-0590R02","SEC_related_CR_to_TS-0002_on_Trust_transfer","NEC","2015-07-23T15:37:14","Draft","INC",null,"REQ 18"]
["REQ-2015-0591","CR_to_TS-0002_on_dynamic_Verification_of_GW_Processing_Integrity","NEC","2015-07-10T17:37:28","Draft","INC",null,"REQ 18"]
["REQ-2015-0591R01","CR_to_TS-0002_on_dynamic_Verification_of_GW_Processing_Integrity","NEC","2015-07-17T15:13:40","Noted","INC",null,"REQ 18"]
["REQ-2015-0591R02","CR_to_TS-0002_on_dynamic_Verification_of_GW_Processing_Integrity","NEC","2015-07-23T15:41:38","Draft","INC",null,"REQ 18"]
["REQ-2015-0591R03","CR_to_TS-0002_on_dynamic_Verification_of_GW_Processing_Integrity","NEC","2015-07-23T16:51:57","Draft","INC",null,"REQ 18"]
["REQ-2015-0591R04","CR_to_TS-0002_on_dynamic_Verification_of_GW_Processing_Integrity","NEC","2015-07-23T18:56:48","Agreed","INC",null,"REQ 18"]
["REQ-2015-0592","Add App-ID Abbreviations and Definitions","Darold Hemphill - iconectiv","2015-07-10T18:54:44","Draft","CR",null,"REQ 18"]
["REQ-2015-0592R01","Add App-ID Abbreviations and Definitions","Darold Hemphill - iconectiv","2015-07-17T20:54:39","Draft","CR",null,"REQ 18"]
["REQ-2015-0592R02","Add App-ID Abbreviations and Definitions","Darold Hemphill - iconectiv","2015-07-22T20:43:41","Agreed","CR",null,"REQ 18"]
["REQ-2015-0593","Requirement for collecting data from M2M device","FUJITSU","2015-07-12T02:53:39","Draft","CR",null,"MAS 18"]
["REQ-2015-0593R01","Requirement for collecting data from M2M device","FUJITSU","2015-07-23T20:30:36","Draft","CR",null,"MAS 18"]
["REQ-2015-0593R02","Requirement for collecting data from M2M device","FUJITSU","2015-07-23T22:12:43","Agreed","CR",null,"MAS 18"]
["REQ-2015-0594","External Event Trigger Use Case","FUJITSU",null,"Withdrawn","INC",null,"REQ 18"]
["REQ-2015-0595","External Event Trigger Requirements","FUJITSU","2015-07-12T06:21:38","Draft","CR",null,"REQ 18"]
["REQ-2015-0595R01","External Event Trigger Requirements","FUJITSU","2015-07-20T20:50:10","Draft","CR",null,"REQ 18"]
["REQ-2015-0595R02","External Event Trigger Requirements","FUJITSU","2015-07-21T12:19:24","Noted","CR",null,"REQ 18"]
["REQ-2015-0595R03","External Event Trigger Requirements","FUJITSU","2015-07-23T13:17:45","Noted","CR",null,"REQ 18"]
["REQ-2015-0595R04","External Event Trigger Requirements","FUJITSU","2015-07-23T19:36:49","Agreed","CR",null,"REQ 18"]
["REQ-2015-0596","Event Trigger Use Case Revise","FUJITSU","2015-07-12T06:20:45","Agreed","CR",null,"REQ 18"]
["REQ-2015-0597","Use Case Anycast Somecast","InterDigital","2015-07-12T19:24:33","Noted","CR",null,"REQ 18"]
["REQ-2015-0597R01","Use Case Anycast Somecast","InterDigital","2015-07-22T20:21:11","Noted","CR",null,"REQ 18"]
["REQ-2015-0597R02","Use Case Anycast Somecast","InterDigital","2015-07-23T19:22:29","Draft","CR",null,"REQ 18"]
["REQ-2015-0597R03","Use Case Anycast Somecast","InterDigital","2015-07-23T19:52:55","Noted","CR",null,"REQ 18"]
["REQ-2015-0598","TS-0002 anycast somecast requirements","InterDigital","2015-07-12T19:24:50","Draft","CR",null,"REQ 18"]
["REQ-2015-0598R01","TS-0002 anycast somecast requirements","InterDigital","2015-07-22T20:21:42","Draft","CR",null,"REQ 18"]
["REQ-2015-0598R02","TS-0002 anycast somecast requirements","InterDigital","2015-07-23T19:23:15","Noted","CR",null,"REQ 18"]
["REQ-2015-0599","Sensor Data Quality","Hitachi","2015-07-13T03:30:07","Noted","INC",null,"REQ 18"]
["REQ-2015-0599R01","Sensor Data Quality","Hitachi","2015-07-20T14:09:15","Noted","INC",null,"REQ 18"]
["REQ-2015-0599R02","Sensor Data Quality","Hitachi","2015-07-22T20:21:43","Draft","INC",null,"REQ 18"]
["REQ-2015-0599R03","Sensor Data Quality","Hitachi","2015-07-22T20:25:20","Agreed","INC",null,"REQ 18"]
["REQ-2015-0600","Real Time Data Collection","Hitachi","2015-07-13T03:43:48","Draft","INC",null,"REQ 18"]
["REQ-2015-0600R01","Real Time Data Collection","Hitachi","2015-07-20T14:22:18","Noted","INC",null,"REQ 18"]
["REQ-2015-0600R02","Real Time Data Collection","Hitachi","2015-07-22T15:50:43","Agreed","INC",null,"REQ 18"]
["REQ-2015-0601","Requirement of supporting Real Time Data Collection","Hitachi","2015-07-13T04:10:58","Draft","INC",null,"REQ 18"]
["REQ-2015-0601R01","Requirement of supporting Real Time Data Collection","Hitachi","2015-07-22T15:58:29","Agreed","INC",null,"REQ 18"]
["REQ-2015-0602","Requirement of supporting Quality of Sensor Data","Hitachi","2015-07-13T04:20:52","Draft","INC",null,"REQ 18"]
["REQ-2015-0602R01","Requirement of supporting Quality of Sensor Data","Hitachi","2015-07-22T20:43:07","Agreed","INC",null,"REQ 18"]
["REQ-2015-0603","Data_encryption_in_industrial_domain","Hitachi","2015-07-13T04:59:05","Draft","INC",null,"REQ 18"]
["REQ-2015-0603R01","Data_encryption_in_industrial_domain","Hitachi","2015-07-21T14:05:37","Noted","INC",null,"REQ 18"]
["REQ-2015-0603R02","Data_encryption_in_industrial_domain","Hitachi","2015-07-22T14:56:55","Draft","INC",null,"REQ 18"]
["REQ-2015-0603R03","Data_encryption_in_industrial_domain","Hitachi","2015-07-23T17:35:53","Agreed","INC",null,"REQ 18"]
["REQ-2015-0604","Requirement_of_supporting_data_encryption_in_industrial_domain","Hitachi","2015-07-13T05:01:41","Draft","CR",null,"REQ 18"]
["REQ-2015-0604R01","Requirement_of_supporting_data_encryption_in_industrial_domain","Hitachi","2015-07-22T13:59:05","Draft","CR",null,"REQ 18"]
["REQ-2015-0604R02","Requirement_of_supporting_data_encryption_in_industrial_domain","Hitachi","2015-07-23T17:36:58","Agreed","CR",null,"REQ 18"]
["REQ-2015-0605","TS-0002 E2E integrity confidentiality","InterDigital",null,"Draft","AG",null,"REQ 18"]
["REQ-2015-0605R01","TS-0002 E2E integrity confidentiality","InterDigital","2015-07-13T12:17:56","Draft","CR",null,"REQ 18"]
["REQ-2015-0605R02","TS-0002 E2E integrity confidentiality","InterDigital","2015-07-22T19:13:27","Draft","AG",null,"REQ 18"]
["REQ-2015-0605R03","TS-0002 E2E integrity confidentiality","InterDigital","2015-07-23T17:21:29","Draft","AG",null,"REQ 18"]
["REQ-2015-0605R04","TS-0002 E2E integrity confidentiality","InterDigital","2015-07-23T20:04:34","Agreed","AG",null,"REQ 18"]
["REQ-2015-0606","QoS/QoI monitoring in industrial domain","KETI, LGU+","2015-07-14T16:09:41","Noted","INC",null,"REQ 18"]
["REQ-2015-0606R01","QoS/QoI monitoring in industrial domain","KETI, LGU+","2015-07-23T10:46:15","Agreed","INC",null,"REQ 18"]
["REQ-2015-0607","Use Case for Agricultural Drone","KETI","2015-07-14T16:11:22","Noted","INC",null,"REQ 18"]
["REQ-2015-0607R01","Use Case for Agricultural Drone","KETI","2015-07-23T10:44:57","Agreed","INC",null,"REQ 18"]
["REQ-2015-0608","Requirement of supporting device caching in home domain","KETI","2015-07-14T16:14:34","Agreed","INC",null,"REQ 18"]
["REQ-2015-0609","Requirement of supporting device pairing in home domain","KETI","2015-07-14T16:15:50","Agreed","INC",null,"REQ 18"]
["REQ-2015-0610","Withdrawn","Toyota InfoTechnology Center, KDDI","2015-07-15T09:32:55","Draft","CR",null,"REQ 18"]
["REQ-2015-0611","Requirements to Support Vehicle Data Service","Toyota InfoTechnology Center, KDDI","2015-07-15T09:37:14","Draft","CR",null,"REQ 18"]
["REQ-2015-0611R01","Requirements to Support Vehicle Data Service","Toyota InfoTechnology Center, KDDI, Fujitsu","2015-07-22T11:00:36","Noted","CR",null,"REQ 18"]
["REQ-2015-0611R02","Requirements to Support Vehicle Data Service","Toyota InfoTechnology Center, KDDI, Fujitsu","2015-07-23T14:59:31","Noted","CR",null,"REQ 18"]
["REQ-2015-0612","WG1 REQ Document Allocation","Shelby Kiewel (iconectiv)","2015-07-17T16:33:46","Draft","AG",null,"REQ 18"]
["REQ-2015-0612R01","WG1 REQ Document Allocation","Shelby Kiewel (iconectiv)","2015-07-20T15:19:54","Draft","AG",null,"REQ 18"]
["REQ-2015-0612R02","WG1 REQ Document Allocation","Shelby Kiewel (iconectiv)","2015-07-20T22:50:19","Draft","AG",null,"REQ 18"]
["REQ-2015-0612R03","WG1 REQ Document Allocation","Shelby Kiewel (iconectiv)","2015-07-21T22:06:58","Draft","AG",null,"REQ 18"]
["REQ-2015-0612R04","WG1 REQ Document Allocation","Shelby Kiewel (iconectiv)","2015-07-22T16:20:05","Draft","AG",null,"REQ 18"]
["REQ-2015-0612R05","WG1 REQ Document Allocation","Shelby Kiewel (iconectiv)","2015-07-22T23:05:31","Draft","AG",null,"REQ 18"]
["REQ-2015-0612R06","WG1 REQ Document Allocation","Shelby Kiewel (iconectiv)","2015-07-22T23:46:37","Draft","AG",null,"REQ 18"]
["REQ-2015-0612R07","WG1 REQ Document Allocation","Shelby Kiewel (iconectiv)","2015-07-23T15:16:47","Draft","AG",null,"REQ 18"]
["REQ-2015-0613","WG1 REQ Agenda","Shelby Kiewel (iconectiv)","2015-07-17T16:37:21","Draft","AG",null,"REQ 18"]
["REQ-2015-0614","AppID Comments","IFAST, ILS, Telxxis (TIA TR-50)","2015-07-20T11:49:32","Withdrawn","AG",null,"REQ 18"]
["REQ-2015-0615","AppID CR","IFAST, Telit","2015-07-20T11:52:04","Withdrawn","INC",null,"REQ 18"]
["REQ-2015-0616","AppID CR","IFAST, Telit","2015-07-20T11:56:35","Withdrawn","INC",null,"REQ 18"]
["REQ-2015-0617","MNT CR TS-0002 Provisioning Clarification (R1)","Qualcomm Inc. (TIA)","2015-07-21T04:50:39","Agreed","CR",null,"REQ 18"]
["REQ-2015-0618","MNT CR TS-0002 Provisioning Clarification (R2)","Qualcomm Inc. (TIA)","2015-07-21T04:54:47","Agreed","CR",null,"REQ 18"]
["REQ-2015-0619","Terms And Conditions Markup Language for Privacy Policy Manager","BT Group","2015-07-21T15:31:45","Draft","INC",null,"REQ 18"]
["REQ-2015-0619R01","Terms And Conditions Markup Language for Privacy Policy Manager","BT Group","2015-07-21T20:40:25","Draft","INC",null,"REQ 18"]
["REQ-2015-0619R02","Terms And Conditions Markup Language for Privacy Policy Manager","BT Group","2015-07-23T14:35:23","Agreed","INC",null,"REQ 18"]
["REQ-2015-0620","Requirements to Support Vehicle Data Wipe Service","TOYOTA ITC, KDDI, Fujitsu","2015-07-21T20:21:45","Agreed","CR",null,"REQ 18"]
["REQ-2015-0621","CR TS-0002 add requirements on Privacy Profiles from REQ-2015-0619R01","BT Group","2015-07-21T21:48:59","Draft","CR",null,"REQ 18"]
["REQ-2015-0621R01","CR TS-0002 add requirements on Privacy Profiles from REQ-2015-0619R01","BT Group","2015-07-23T14:48:21","Agreed","CR",null,"REQ 18"]
["REQ-2015-0622","Data Monitoring","FUJITSU","2015-07-23T13:18:53","Draft","CR",null,"REQ 18"]
["REQ-2015-0622R01","Data Monitoring","FUJITSU","2015-07-23T17:17:21","Draft","CR",null,"REQ 18"]
["REQ-2015-0622R02","Data Monitoring","FUJITSU","2015-07-23T22:08:37","Agreed","CR",null,"REQ 18"]
["REQ-2015-0623","Security Administration Functionality","FUJITSU","2015-07-22T12:29:12","Draft","CR",null,"REQ 18"]
["REQ-2015-0623R01","Security Administration Functionality","FUJITSU","2015-07-23T19:47:37","Agreed","CR",null,"REQ 18"]
["REQ-2015-0624","Requirement for OIC interworking","Samsung","2015-07-22T18:24:40","Draft","CR",null,"REQ 18"]
["REQ-2015-0624R01","Requirement for OIC interworking","Samsung","2015-07-22T21:03:23","Withdrawn","CR",null,"REQ 18"]
["REQ-2015-0625","Change_P2P_to_AE_to_AE_in_OSR-003_Rel1-CR","Jasper Technologies, Inc","2015-07-22T22:48:33","Draft","CR",null,"REQ 18"]
["REQ-2015-0625R01","Change_P2P_to_AE_to_AE_in_OSR-003_Rel1-CR","Jasper Technologies, Inc","2015-07-23T16:27:49","Draft","CR",null,"REQ 18"]
["REQ-2015-0626","Change_P2P_to_AE_to_AE_in_OSR-003_Rel2MirrorCR.doc","Jasper Technologies, Inc","2015-07-22T23:02:14","Draft","CR",null,"REQ 18"]
["REQ-2015-0626R01","Change_P2P_to_AE_to_AE_in_OSR-003_Rel2MirrorCR.doc","Jasper Technologies, Inc","2015-07-23T16:28:28","Draft","CR",null,"REQ 18"]
["REQ-2015-0627","TS-0002 E2E security delegation","InterDigital","2015-07-22T23:09:57","Draft","CR",null,"REQ 18"]
["REQ-2015-0627R01","TS-0002 E2E security delegation","InterDigital","2015-07-23T17:04:54","Draft","CR",null,"REQ 18"]
["REQ-2015-0627R02","TS-0002 E2E security delegation","InterDigital","2015-07-23T20:03:32","Agreed","CR",null,"REQ 18"]
["REQ-2015-0628","Security Requirements for Dynamic Authorization","Datang","2015-07-22T23:16:09","Draft","INC",null,"REQ 18"]
["REQ-2015-0628R01","Security Requirements for Dynamic Authorization","Datang","2015-07-23T20:06:38","Agreed","INC",null,"REQ 18"]
["REQ-2015-0629","Requirement for QoS/QoI monitoring in industrial domain","KETI, LGU+","2015-07-23T10:52:11","Agreed","INC",null,"REQ 18"]
["REQ-2015-0630","Requirement for Agricultural Drone Use case","KETI","2015-07-23T10:54:22","Agreed","INC",null,"REQ 18"]
["REQ-2015-0631","Requirements_for_information_model","LG Electronics","2015-07-23T15:11:36","Draft","CR",null,"REQ 18"]
["REQ-2015-0631R01","Requirements_for_information_model","LG Electronics","2015-07-23T21:03:01","Draft","CR",null,"REQ 18"]
["REQ-2015-0631R02","Requirements_for_information_model","LG Electronics, Samsung Electronics","2015-07-23T21:38:13","Agreed","CR",null,"REQ 18"]
["REQ-2015-0632","REQ18_Minutes","Nicole Butler, ATIS","2015-07-23T22:12:02","Draft","MIN",null,"REQ 18"]
["SEC-2015-0549R01","Certificate Enrolment STEs","Phil Hawkes, Qualcomm","2015-07-13T12:50:10","Noted","INC",null,"SEC 18"]
["SEC-2015-0549R02","Certificate Enrolment STEs","Phil Hawkes, Qualcomm","2015-07-20T08:40:10","Noted","INC",null,"SEC 18"]
["SEC-2015-0551","CR for naming correction in figures","C-DOT (Anupama,Poornima)","2015-07-08T06:13:26","Agreed","CR",null,"SEC 18"]
["SEC-2015-0552","CR for section reference corrections","C-DOT (Anupama,Poornima)","2015-07-08T06:37:11","Agreed","CR",null,"SEC 18"]
["SEC-2015-0553","SE reference point","Giesecke & Devrient","2015-07-08T07:54:36","Draft","INC",null,"SEC 18"]
["SEC-2015-0553R01","SE reference point","Giesecke & Devrient","2015-07-22T19:34:37","Draft","INC",null,"SEC 18"]
["SEC-2015-0554","SE abstraction architecture","Giesecke & Devrient","2015-07-08T07:55:21","Draft","INC",null,"SEC 18"]
["SEC-2015-0554R01","SE abstraction architecture","Giesecke & Devrient","2015-07-22T19:33:56","Draft","INC",null,"SEC 18"]
["SEC-2015-0555","Types of SEs","Giesecke & Devrient","2015-07-08T08:03:59","Draft","INC",null,"SEC 18"]
["SEC-2015-0555R01","Types of SEs","Giesecke & Devrient","2015-07-22T19:33:01","Draft","INC",null,"SEC 18"]
["SEC-2015-0556","CR for word correction provisioned to pre-provisioned","C-DOT (Suman,Poornima)","2015-07-08T09:20:56","Agreed","CR",null,"SEC 18"]
["SEC-2015-0557","TACML-PPM","BT Group","2015-07-12T12:27:29","Draft","INC",null,"SEC 18"]
["SEC-2015-0558","use-case-requirements-end-to-end-authentication-using-delegation","InterDigital","2015-07-13T02:18:05","Noted","CR",null,"SEC 18"]
["SEC-2015-0558R01","use-case-requirements-end-to-end-authentication-using-delegation","InterDigital","2015-07-22T22:15:51","Draft","CR",null,"SEC 18"]
["SEC-2015-0559","discussions-on-end-to-end-data-security","InterDigital","2015-07-13T02:23:14","Agreed","CR",null,"SEC 18"]
["SEC-2015-0560","definitions-for-end-to-end-data-security","InterDigital","2015-07-13T02:26:29","Noted","CR",null,"SEC 18"]
["SEC-2015-0560R01","definitions-for-end-to-end-data-security","InterDigital","2015-07-22T13:55:22","Agreed","CR",null,"SEC 18"]
["SEC-2015-0561","use-case-requirements-for-end-to-end-data-integrity","InterDigital","2015-07-13T02:29:20","Noted","CR",null,"SEC 18"]
["SEC-2015-0561R01","use-case-requirements-for-end-to-end-data-integrity","InterDigital","2015-07-22T17:16:01","Draft","CR",null,"SEC 18"]
["SEC-2015-0561R02","use-case-requirements-for-end-to-end-data-integrity","InterDigital","2015-07-23T15:33:13","Agreed","CR",null,"SEC 18"]
["SEC-2015-0562","use-case-requirements-for-end-to-end-data-confidentiality","InterDigital","2015-07-13T02:32:26","Draft","CR",null,"SEC 18"]
["SEC-2015-0562R01","use-case-requirements-for-end-to-end-data-confidentiality","InterDigital","2015-07-21T20:39:16","Noted","CR",null,"SEC 18"]
["SEC-2015-0562R02","use-case-requirements-for-end-to-end-data-confidentiality","InterDigital","2015-07-22T14:09:31","Withdrawn","CR",null,"SEC 18"]
["SEC-2015-0563","Group Authentication Solution","China Mobile","2015-07-13T06:47:54","Noted","INC",null,"SEC 18"]
["SEC-2015-0563R01","Group Authentication Solution","China Mobile","2015-07-23T20:01:39","Agreed","INC",null,"SEC 18"]
["SEC-2015-0564","TR-0019 Role Token Use Case for Dynamic Authorization","Datang, CATR","2015-07-13T08:02:24","Draft","INC",null,"SEC 18"]
["SEC-2015-0564R01","TR-0019 Role Token Use Case for Dynamic Authorization","Datang, CATR","2015-07-21T20:44:15","Draft","INC",null,"SEC 18"]
["SEC-2015-0564R02","TR-0019 Role Token Use Case for Dynamic Authorization","Datang, CATR","2015-07-22T20:32:42","Draft","INC",null,"SEC 18"]
["SEC-2015-0565","TR-0019 Access Token Use Case for Dynamic Authorization","Datang, China Unicom","2015-07-13T08:08:07","Draft","INC",null,"SEC 18"]
["SEC-2015-0565R01","TR-0019 Access Token Use Case for Dynamic Authorization","Datang, China Unicom","2015-07-21T20:45:19","Draft","INC",null,"SEC 18"]
["SEC-2015-0565R02","TR-0019 Access Token Use Case for Dynamic Authorization","Datang, China Unicom","2015-07-22T20:33:27","Draft","INC",null,"SEC 18"]
["SEC-2015-0566","Access Control Bug Fix For Discovery","LG Electronics","2015-07-13T08:49:58","Agreed","CR",null,"SEC 18"]
["SEC-2015-0568","SEC 18 Agenda","WG Chair","2015-07-16T18:25:56","Draft","AG",null,"SEC 18"]
["SEC-2015-0568R01","SEC 18 Agenda","WG Chair","2015-07-17T17:55:59","Draft","AG",null,"SEC 18"]
["SEC-2015-0568R02","SEC 18 Agenda","WG Chair","2015-07-20T14:14:33","Draft","AG",null,"SEC 18"]
["SEC-2015-0568R03","SEC 18 Agenda","WG Chair","2015-07-22T16:27:53","Draft","AG",null,"SEC 18"]
["SEC-2015-0570","TR-0019 A Proposal for Token Issuance Architecture Part","Datang","2015-07-17T10:01:33","Draft","INC",null,"SEC 18"]
["SEC-2015-0570R01","TR-0019 A Proposal for Token Issuance Architecture Part","Datang","2015-07-22T20:34:40","Draft","INC",null,"SEC 18"]
["SEC-2015-0571","TR-0019 A Proposal of Token Issuance General Procedure Part","Datang","2015-07-17T10:05:08","Draft","INC",null,"SEC 18"]
["SEC-2015-0571R01","TR-0019 A Proposal of Token Issuance General Procedure Part","Datang","2015-07-22T20:35:39","Draft","INC",null,"SEC 18"]
["SEC-2015-0572","TR-0019 A Proposal of Token Issuance Resource Definition Part","Datang","2015-07-17T10:09:29","Draft","INC",null,"SEC 18"]
["SEC-2015-0572R01","TR-0019 A Proposal of Token Issuance Resource Definition Part","Datang","2015-07-22T20:36:20","Draft","INC",null,"SEC 18"]
["SEC-2015-0573","TR-0019 A Proposal of Token Issuance Resource Procedure Part","Datang","2015-07-17T10:11:48","Draft","INC",null,"SEC 18"]
["SEC-2015-0573R01","TR-0019 A Proposal of Token Issuance Resource Procedure Part","Datang","2015-07-22T20:36:59","Draft","INC",null,"SEC 18"]
["SEC-2015-0574","TR-0016 Overview of Authorization System","Datang","2015-07-21T05:35:59","Draft","INC",null,"SEC 18"]
["SEC-2015-0575","TR-0016 Distributed Authorization Use Case","Datang","2015-07-21T05:38:11","Draft","INC",null,"SEC 18"]
["SEC-2015-0576","CR_TS-0003_SecureEnvironment_definition","Giesecke & Devrient, Qualcomm, Oberthur Technologies","2015-07-22T15:31:11","Draft","CR",null,"SEC 18"]
["SEC-2015-0576R01","CR_TS-0003_SecureEnvironment_definition","Giesecke & Devrient, Qualcomm, Oberthur Technologies","2015-07-22T20:30:44","Noted","CR",null,"SEC 18"]
["SEC-2015-0576R02","CR_TS-0003_SecureEnvironment_definition","Giesecke & Devrient, Qualcomm, Oberthur Technologies","2015-07-23T16:14:02","Agreed","CR",null,"SEC 18"]
["SEC-2015-0577","TR-0012 JOSE RFC References","Qualcomm Inc. (TIA)","2015-07-23T06:08:27","Draft","INC",null,"SEC 18"]
["TP-2015-0668","TP#18_Philadelphia_Meeting_Notice","Nicole Butler, ATIS","2015-04-02T19:42:52","Draft","INV",null,"TP 18"]
["TP-2015-0668R01","TP#18_Philadelphia_Meeting_Notice","Nicole Butler, ATIS","2015-04-08T17:57:15","Draft","INV",null,"TP 18"]
["TP-2015-0730","Voting List for TP18","Karen Hughes, Secretary","2015-06-01T15:44:35","Draft","INC",null,"TP 18"]
["TP-2015-0731","Invitation to TP19_Sophia-Antipolis","ETSI","2015-06-02T15:59:50","Draft","INV",null,"TP 18"]
["TP-2015-0732","LS on 3GPP Rel-13 MTC features for service capability exposure","3GPP TSG-SA WG2","2015-06-02T15:55:27","Draft","LS",null,"TP 18"]
["TP-2015-0733","Reply LS on Extension of 3GPP Service-Information AVP","3GPP TSG-SA WG5","2015-06-03T09:30:27","Draft","LS",null,"TP 18"]
["TP-2015-0734","TP18 Social Event Invitation","ATIS and InterDigital","2015-06-11T23:21:37","Draft","INV",null,"TP 18"]
["TP-2015-0735","Application ID Input","IFAST, ILS, Telxxis (TIA TR-50)","2015-06-24T21:04:21","Draft","INC",null,"TP 18"]
["TP-2015-0736","oneM2M based implementations","JaeSeung Song (KETI)","2015-07-14T20:21:05","Noted","INC",null,"TP 18"]
["TP-2015-0736R01","oneM2M based implementations","JaeSeung Song (KETI)","2015-07-15T11:18:15","Noted","INC",null,"TP 18"]
["TP-2015-0737","Draft MoW 1.4.0","MoW(Enrico Scarrone)","2015-07-07T10:05:14","Draft","STR",null,"TP 18"]
["TP-2015-0738","MoW_M&P_Report_at_TP18","MoW convenor  (Enrico Scarrone)","2015-07-07T10:23:00","Draft","STR",null,"TP 18"]
["TP-2015-0739","WI-0018_CR_for_Rapporture_change","LG Electronics","2015-07-08T05:26:00","Approved","CR",null,"TP 18"]
["TP-2015-0740","LSout 3GPP SA5 Code Point","Ericsson","2015-07-09T16:39:15","Noted","LS",null,"TP 18"]
["TP-2015-0740R01","LSout 3GPP SA5 Code Point","Ericsson","2015-07-21T13:54:36","Agreed","LS",null,"TP 18"]
["TP-2015-0741","Weekly Schedule TP18","Karen Hughes, Secretariat","2015-07-15T09:40:39","Draft","INC",null,"TP 18"]
["TP-2015-0741R01","Weekly Schedule TP18","Karen Hughes, Secretariat","2015-07-16T08:39:32","Draft","INC",null,"TP 18"]
["TP-2015-0741R02","Weekly Schedule TP18","Karen Hughes, Secretariat","2015-07-16T15:15:09","Draft","INC",null,"TP 18"]
["TP-2015-0741R03","Weekly Schedule TP18","Karen Hughes, Secretariat","2015-07-17T14:24:58","Draft","INC",null,"TP 18"]
["TP-2015-0741R04","Weekly Schedule TP18","Karen Hughes, Secretariat","2015-07-20T13:33:33","Draft","INC",null,"TP 18"]
["TP-2015-0741R05","Weekly Schedule TP18","Karen Hughes, Secretariat","2015-07-21T15:25:15","Draft","INC",null,"TP 18"]
["TP-2015-0741R06","Weekly Schedule TP18","Karen Hughes, Secretariat","2015-07-21T17:45:59","Draft","INC",null,"TP 18"]
["TP-2015-0741R07","Weekly Schedule TP18","Karen Hughes, Secretariat","2015-07-21T20:47:52","Draft","INC",null,"TP 18"]
["TP-2015-0741R08","Weekly Schedule TP18","Karen Hughes, Secretariat","2015-07-22T16:51:28","Draft","INC",null,"TP 18"]
["TP-2015-0741R09","Weekly Schedule TP18","Karen Hughes, Secretariat","2015-07-22T17:03:09","Draft","INC",null,"TP 18"]
["TP-2015-0741R10","Weekly Schedule TP18","Karen Hughes, Secretariat","2015-07-23T15:27:50","Draft","INC",null,"TP 18"]
["TP-2015-0742","WI-00xx-Application developer guide","ETSI","2015-07-10T16:36:51","Noted","INC",null,"TP 18"]
["TP-2015-0742R01","WI-00xx-Application developer guide","ETSI","2015-07-22T18:38:46","Noted","INC",null,"TP 18"]
["TP-2015-0742R02","WI-00xx-Application developer guide","ETSI","2015-07-23T03:13:50","Draft","INC",null,"TP 18"]
["TP-2015-0743","Connecting ISO TC204 (ITS)","Tseng Infoserv, LLC","2015-07-12T12:35:13","Draft","INC",null,"TP 18"]
["TP-2015-0744","WI-0018_AllJoyn_interworking_normative_work","LG Electronics","2015-07-13T09:36:42","Noted","CR",null,"TP 18"]
["TP-2015-0744R01","WI-0018_AllJoyn_interworking_normative_work","LG Electronics","2015-07-21T08:59:06","Noted","CR",null,"TP 18"]
["TP-2015-0744R02","WI-0018_AllJoyn_interworking_normative_work","LG Electronics","2015-07-22T23:16:04","Draft","CR",null,"TP 18"]
["TP-2015-0745","WI-0017-Home_Domain_Enablement_normative_work","LG Electronics","2015-07-13T09:38:07","Noted","CR",null,"TP 18"]
["TP-2015-0745R01","WI-0017-Home_Domain_Enablement_normative_work","LG Electronics","2015-07-22T19:35:54","Postponed","CR",null,"TP 18"]
["TP-2015-0745R02","WI-0017-Home_Domain_Enablement_normative_work","LG Electronics","2015-07-22T23:26:51","Draft","CR",null,"TP 18"]
["TP-2015-0746","CR Pack TS0004 V1.2.1 Release 1","WG3/PRO Chairman","2015-07-13T18:24:37","Draft","INC",null,"TP 18"]
["TP-2015-0747","CR Pack TS0009 Release 2","WG3/PRO Chairman","2015-07-13T18:26:39","Draft","CR",null,"TP 18"]
["TP-2015-0748","Introduction of GlobalPlatform as partner type 2","GlobalPlatform","2015-07-14T10:01:47","Draft","INC",null,"TP 18"]
["TP-2015-0749","LS on Exposure of Network Capabilities to M2M","OMA ARC WG","2015-07-15T09:47:02","Draft","LS",null,"TP 18"]
["TP-2015-0750","Agenda TP18","TP Chair","2015-07-15T10:45:48","Draft","AG",null,"TP 18"]
["TP-2015-0750R01","Agenda TP18","TP Chair","2015-07-17T10:06:17","Draft","AG",null,"TP 18"]
["TP-2015-0750R02","Agenda TP18","TP Chair","2015-07-19T19:21:25","Draft","AG",null,"TP 18"]
["TP-2015-0750R03","Agenda TP18","TP Chair","2015-07-19T21:13:30","Draft","AG",null,"TP 18"]
["TP-2015-0750R04","Agenda TP18","TP Chair","2015-07-20T13:27:21","Draft","AG",null,"TP 18"]
["TP-2015-0750R05","Agenda TP18","TP Chair","2015-07-22T20:20:14","Draft","AG",null,"TP 18"]
["TP-2015-0750R06","Agenda TP18","TP Chair","2015-07-22T21:48:21","Draft","AG",null,"TP 18"]
["TP-2015-0750R07","Agenda TP18","TP Chair","2015-07-22T21:52:08","Draft","AG",null,"TP 18"]
["TP-2015-0750R08","Agenda TP18","TP Chair","2015-07-22T22:04:23","Draft","AG",null,"TP 18"]
["TP-2015-0750R09","Agenda TP18","TP Chair","2015-07-22T22:11:48","Draft","AG",null,"TP 18"]
["TP-2015-0750R10","Agenda TP18","TP Chair","2015-07-24T16:21:46","Draft","AG",null,"TP 18"]
["TP-2015-0750R11","Agenda TP18","TP Chair","2015-07-24T17:03:23","Draft","AG",null,"TP 18"]
["TP-2015-0750R12","Agenda TP18","TP Chair","2015-07-24T18:29:44","Draft","AG",null,"TP 18"]
["TP-2015-0750R13","Agenda TP18","TP Chair","2015-07-24T18:39:43","Draft","AG",null,"TP 18"]
["TP-2015-0751","AppID CR","IFAST, Telit","2015-07-18T01:00:23","Draft","INC",null,"TP 18"]
["TP-2015-0752","HGI to conclude its work by 2016","HGI","2015-07-19T19:17:21","Draft","INC",null,"TP 18"]
["TP-2015-0753","Actions status from TP17","Karen Hughes, Secretariat","2015-07-19T20:15:51","Draft","INC",null,"TP 18"]
["TP-2015-0754","LWM2M Interworking for OIC/oneM2M Workshop","ALU, Gemalto N.V","2015-07-20T16:32:37","Draft","INC",null,"TP 18"]
["TP-2015-0754R01","Presentation of LWM2M Interworking for OIC/oneM2M Workshop","ALU, Gemalto N.V","2015-07-20T16:51:38","Draft","INC",null,"TP 18"]
["TP-2015-0755","AllSeen interworking introduction for OIC-oneM2M workshop","LG Electronics, Qualcomm","2015-07-20T17:12:50","Draft","INC",null,"TP 18"]
["TP-2015-0756","Showcase Tokyo Report","KDDI","2015-07-20T19:55:56","Draft","MIN",null,"TP 18"]
["TP-2015-0757","Agenda OIC/oneM2M workshop July 20th 2015","Omar Elloumi (ALU), TP Chair","2015-07-20T20:07:01","Draft","AG",null,"TP 18"]
["TP-2015-0757R01","Agenda OIC/oneM2M workshop July 20th 2015","Omar Elloumi (ALU), TP Chair","2015-07-21T11:35:39","Draft","AG",null,"TP 18"]
["TP-2015-0758","OIC input to joint OIC / oneM2M workshop","Omar Elloumi (ALU), TP Chair","2015-07-20T21:54:17","Draft","INC",null,"TP 18"]
["TP-2015-0758R01","OIC input to joint OIC / oneM2M workshop","Omar Elloumi (ALU), TP Chair","2015-07-20T22:18:16","Draft","INC",null,"TP 18"]
["TP-2015-0759","oneM2M Presentation for OIC Workshop","Nicolas Damour, WG2 Chairman","2015-07-20T22:04:36","Draft","INC",null,"TP 18"]
["TP-2015-0760","OneM2M interworking approach overview","Telecom Italia","2015-07-20T22:32:17","Draft","INC",null,"TP 18"]
["TP-2015-0761","CR Pack TS0008 Release 1","WG3/PRO Charirman","2015-07-21T16:53:36","Agreed","CR",null,"TP 18"]
["TP-2015-0762","LSout 3GPP Rel-13 MTC features for Service Capability Exposure","Rajesh Bhalla, ZTE","2015-07-22T14:10:33","Draft","LS",null,"TP 18"]
["TP-2015-0762R01","LSout 3GPP Rel-13 MTC features for Service Capability Exposure","Rajesh Bhalla, ZTE","2015-07-23T15:01:57","Draft","LS",null,"TP 18"]
["TP-2015-0762R02","LSout 3GPP Rel-13 MTC features for Service Capability Exposure","Rajesh Bhalla, ZTE","2015-07-24T13:35:26","Draft","LS",null,"TP 18"]
["TP-2015-0762R03","LSout 3GPP Rel-13 MTC features for Service Capability Exposure","Rajesh Bhalla, ZTE","2015-07-24T15:29:09","Draft","LS",null,"TP 18"]
["TP-2015-0762R04","LSout 3GPP Rel-13 MTC features for Service Capability Exposure","Rajesh Bhalla, ZTE","2015-07-24T16:56:37","Draft","LS",null,"TP 18"]
["TP-2015-0762R05","LSout 3GPP Rel-13 MTC features for Service Capability Exposure","Rajesh Bhalla, ZTE","2015-07-24T17:05:24","Draft","LS",null,"TP 18"]
["TP-2015-0763","LSout Exposure of Network Capabilities to M2M","Rajesh Bhalla, ZTE","2015-07-22T14:12:10","Draft","LS",null,"TP 18"]
["TP-2015-0763R01","LSout Exposure of Network Capabilities to M2M","Rajesh Bhalla, ZTE","2015-07-23T15:02:41","Draft","LS",null,"TP 18"]
["TP-2015-0763R02","LSout Exposure of Network Capabilities to M2M","Rajesh Bhalla, ZTE","2015-07-24T11:13:04","Draft","LS",null,"TP 18"]
["TP-2015-0763R03","LSout Exposure of Network Capabilities to M2M","Rajesh Bhalla, ZTE","2015-07-24T16:53:23","Draft","LS",null,"TP 18"]
["TP-2015-0763R04","LSout Exposure of Network Capabilities to M2M","Rajesh Bhalla, ZTE","2015-07-24T17:08:22","Draft","LS",null,"TP 18"]
["TP-2015-0764","ITU-T presentation to oneM2M SC27","Omar Elloumi (ALU), TP Chair","2015-07-22T14:51:46","Draft","INC",null,"TP 18"]
["TP-2015-0765","WI-0028-Update","hitachi","2015-07-22T16:16:36","Draft","INC",null,"TP 18"]
["TP-2015-0766","WI for OIC interworking","Samsung","2015-07-22T18:22:40","Noted","INC",null,"TP 18"]
["TP-2015-0766R01","WI for OIC interworking","Samsung","2015-07-22T21:01:37","Noted","INC",null,"TP 18"]
["TP-2015-0766R02","WI for OIC interworking","Samsung","2015-07-22T21:44:24","Noted","INC",null,"TP 18"]
["TP-2015-0766R03","WI for OIC interworking","Samsung","2015-07-23T23:46:38","Draft","INC",null,"TP 18"]
["TP-2015-0766R04","WI for OIC interworking","Samsung","2015-07-24T11:45:43","Draft","INC",null,"TP 18"]
["TP-2015-0766R05","WI for OIC interworking","Samsung","2015-07-24T14:48:49","Draft","INC",null,"TP 18"]
["TP-2015-0767","New WI for HGI SH activities integration","Patricia Martigne - ORANGE","2015-07-22T22:24:32","Approved","INC",null,"TP 18"]
["TP-2015-0768","Informal feedback on GSC19 IoT session","Gerry McAuley ETSI","2015-07-22T19:37:12","Draft","INC",null,"TP 18"]
["TP-2015-0768R01","Informal feedback on GSC19 IoT session","Gerry McAuley ETSI","2015-07-22T21:03:22","Draft","MIN",null,"TP 18"]
["TP-2015-0769","WPM_status_report_at_TP18","WPM Convenor (Roland Hechwartner)","2015-07-24T16:53:13","Draft","STR",null,"TP 18"]
["TP-2015-0770","CR Pack TS-0004-Release 1&2","WG3/PRO Chairman","2015-07-23T23:02:09","Draft","CR",null,"TP 18"]
["TP-2015-0771","CR Pack TS0008 Release 1","WG3/PRO Chairman","2015-07-23T21:55:35","Draft","CR",null,"TP 18"]
["TP-2015-0772","CR Pack TS0009 Release 1","WG3/PRO Chairman","2015-07-23T20:47:14","Draft","CR",null,"TP 18"]
["TP-2015-0773","LSout to HGI","Patricia MARTIGNE - Orange","2015-07-24T16:30:21","Draft","LS",null,"TP 18"]
["TP-2015-0773R01","LSout to HGI","Patricia MARTIGNE - Orange","2015-07-24T17:08:47","Draft","LS",null,"TP 18"]
["TP-2015-0774","MAS WG report at TP#18","Yongjing Zhang (Huawei, MAS WG Chair)","2015-07-24T16:52:46","Draft","STR",null,"TP 18"]
["TP-2015-0775","CR Pack TS0005 R1","Yongjing Zhang (Huawei, MAS WG Chair)","2015-07-24T03:08:11","Draft","INC",null,"TP 18"]
["TP-2015-0776","CR Pack TR0007 R2","Yongjing Zhang (Huawei, MAS WG Chair)","2015-07-24T03:11:05","Draft","INC",null,"TP 18"]
["TP-2015-0777","WG2 Status Report at TP18","Nicolas Damour, WG2 Chairman",null,"Draft","MIN",null,"TP 18"]
["TP-2015-0778","update on WI-0030","WI-0030 Rapporter","2015-07-24T18:33:29","Draft","INC",null,"TP 18"]
["TP-2015-0779","WG3/PRO18.0 Status report","WG3/PRO Chairman","2015-07-24T14:34:04","Draft","STR",null,"TP 18"]
["TP-2015-0780","CR Pack TS-0003 R1","Giesecke & Devrient (Rapporteur)","2015-07-24T14:42:09","Draft","CR",null,"TP 18"]
["TP-2015-0781","WG6/TST 18.0 Status report","TST WG Chair","2015-07-24T15:29:56","Draft","STR",null,"TP 18"]
["TP-2015-0782","ETSI annual M2M Workshop featuring oneM2M","ETSI","2015-07-24T16:26:42","Draft","INC",null,"TP 18"]
["TP-2015-0783","Update to WI-0029","Darold Hemphill - iconectiv","2015-07-24T16:34:31","Draft","INC",null,"TP 18"]
["TP-2015-0784","CR Pack for TS-0002","Shelby Kiewel WG1 Chairman","2015-07-24T16:46:14","Draft","CR",null,"TP 18"]
["TP-2015-0785","CR Pack for TS-0002 R1 Maintanence","Shelby Kiewel WG1 Chairman","2015-07-24T16:59:02","Draft","AG",null,"TP 18"]
["TP-2015-0785R01","CR Pack for TS-0002 R1 Maintanence","Shelby Kiewel WG1 Chairman","2015-07-24T17:01:04","Draft","CR",null,"TP 18"]
["TP-2015-0786","CR Pack for TS-0011","Shelby Kiewel WG1 Chairman","2015-07-24T17:00:22","Draft","CR",null,"TP 18"]
["TP-2015-0787","CR Pack for TR-0018","Shelby Kiewel WG1 Chairman","2015-07-24T17:02:28","Draft","CR",null,"TP 18"]
["TP-2015-0788","CR Pack for TR-0001","Shelby Kiewel WG1 Chairman","2015-07-24T17:03:38","Draft","CR",null,"TP 18"]
["TP-2015-0789","SEC 18 Status Report to TP","WG4 chair (Gemalto)","2015-07-24T17:09:22","Draft","INC",null,"TP 18"]
["TP-2015-0790","CR Pack TS-0001 MNT","Nicolas Damour, WG2 Chairman","2015-07-24T17:51:22","Draft","INC",null,"TP 18"]
["TP-2015-0791","WG1 Status Report for TP18","Shelby Kiewel WG1 Chairman","2015-07-24T17:52:39","Draft","STR",null,"TP 18"]
["TP-2015-0792","CR Pack TS-0001 MNT+STE","Nicolas Damour, WG2 Chairman","2015-07-24T17:56:50","Draft","INC",null,"TP 18"]
["TP-2015-0793","Withdrawn","Nicolas Damour, WG2 Chairman","2015-07-24T18:02:45","Withdrawn","INC",null,"TP 18"]
["TP-2015-0794","Standalone MNT CR - ARC-2015-1951","Nicolas Damour, WG2 Chairman","2015-07-24T18:04:33","Draft","INC",null,"TP 18"]
["TP-2015-0795","CR Pack TS-0001 STE","Nicolas Damour, WG2 Chairman","2015-07-24T18:09:40","Draft","INC",null,"TP 18"]
["TP-2015-0796","CR Pack TS-0001 Rel.2","Nicolas Damour, WG2 Chairman","2015-07-24T18:22:37","Draft","INC",null,"TP 18"]
["TP-2015-0797","Decoupling duplicated parts in TS-0001 and TS-0004","WG3 VC","2015-07-24T18:37:19","Draft","INC",null,"TP 18"]
["TST-2015-0117","TST_18_docs_allocation","TST WG Chair","2015-07-17T13:10:14","Draft","AG",null,"TST 18"]
["TST-2015-0117R01","TST_18_docs_allocation","TST WG Chair","2015-07-19T00:37:33","Draft","AG",null,"TST 18"]
["TST-2015-0117R02","TST_18_docs_allocation","TST WG Chair","2015-07-19T23:16:54","Draft","AG",null,"TST 18"]
["TST-2015-0117R03","TST_18_docs_allocation","TST WG Chair","2015-07-20T04:38:00","Draft","AG",null,"TST 18"]
["TST-2015-0117R04","TST_18_docs_allocation","TST WG Chair","2015-07-20T23:36:39","Draft","AG",null,"TST 18"]
["TST-2015-0117R05","TST_18_docs_allocation","TST WG Chair","2015-07-22T12:27:19","Draft","AG",null,"TST 18"]
["TST-2015-0118","TST-18-Agenda","TST WG Chair","2015-07-17T12:43:15","Draft","AG",null,"TST 18"]
["TST-2015-0118R01","TST-18-Agenda","TST WG Chair","2015-07-19T00:36:44","Draft","AG",null,"TST 18"]
["TST-2015-0118R02","TST-18-Agenda","TST WG Chair","2015-07-19T23:16:22","Draft","AG",null,"TST 18"]
["TST-2015-0119","draft TST WG progress report at TP18","TST WG Chair",null,"Draft","INC",null,"TST 18"]
["TST-2015-0123","ICS baseline v0.0.2","KETI","2015-07-08T13:47:03","Draft","INC",null,"TST 18"]
["TST-2015-0123R01","ICS baseline v0.0.2","KETI","2015-07-21T20:19:03","Draft","INC",null,"TST 18"]
["TST-2015-0124","Issues_pertaining_to_IOP_test","Huawei Technologies Co., Ltd.","2015-07-12T06:49:01","Noted","INC",null,"TST 18"]
["TST-2015-0124R01","Issues_pertaining_to_IOP_test","Huawei Technologies Co., Ltd.","2015-07-22T15:37:43","Draft","INC",null,"TST 18"]
["TST-2015-0125","Collection of pre-conditions","Huawei Technologies Co., Ltd.","2015-07-12T06:50:37","Agreed","INC",null,"TST 18"]
["TST-2015-0126","Rearangement_of_clause_7_of_TS0013","Huawei Technologies Co., Ltd.","2015-07-12T06:52:22","Noted","INC",null,"TST 18"]
["TST-2015-0127","Test_Description_Restructuring","Huawei Technologies Co., Ltd.","2015-07-12T06:54:34","Postponed","INC",null,"TST 18"]
["TST-2015-0128","Test_Description_for_CRUDN","Huawei Technologies Co., Ltd.","2015-07-12T06:55:42","Postponed","INC",null,"TST 18"]
["TST-2015-0129","Test_Description_for_NonBlockingRequest","Huawei Technologies Co., Ltd.","2015-07-12T06:56:33","Postponed","INC",null,"TST 18"]
["TST-2015-0130","Test_Description_for_node","Huawei Technologies Co., Ltd.","2015-07-12T06:57:20","Postponed","INC",null,"TST 18"]
["TST-2015-0131","TS-0013-No-Hop-Tests-Update","InterDigital","2015-07-12T16:51:02","Noted","INC",null,"TST 18"]
["TST-2015-0132","TS-0013-Group-FanoutPoint-Tests","InterDigital","2015-07-12T16:54:38","Agreed","INC",null,"TST 18"]
["TST-2015-0133","TS-0013-Notification-Tests","InterDigital","2015-07-12T16:57:11","Draft","INC",null,"TST 18"]
["TST-2015-0134","TS-00015-Interop testing methodology","ETSI","2015-07-12T21:49:25","Draft","INC",null,"TST 18"]
["TST-2015-0134R01","TS-00015-Interop testing methodology","ETSI","2015-07-21T21:26:19","Draft","INC",null,"TST 18"]
["TST-2015-0135","TS-0013-Test Description proforma","ETSI","2015-07-12T22:20:01","Agreed","INC",null,"TST 18"]
["TST-2015-0136","Test_Description_for_fanOutPoint","Huawei Technologies Co., Ltd.","2015-07-13T07:16:00","Draft","INC",null,"TST 18"]
["TST-2015-0136R01","Test_Description_for_fanOutPoint","Huawei Technologies Co., Ltd.","2015-07-21T19:33:47","Draft","INC",null,"TST 18"]
["TST-2015-0137","Test_Description_for_mgmtObj","Huawei Technologies Co., Ltd.","2015-07-13T07:17:11","Draft","INC",null,"TST 18"]
["TST-2015-0137R01","Test_Description_for_mgmtObj","Huawei Technologies Co., Ltd.","2015-07-21T19:34:05","Draft","INC",null,"TST 18"]
["TST-2015-0138","TSS List and Test_Purposes_contributions","TTA","2015-07-13T09:32:22","Draft","INC",null,"TST 18"]
["TST-2015-0138R01","TSS List and Test_Purposes_contributions","TTA","2015-07-20T16:32:56","Draft","INC",null,"TST 18"]
["TST-2015-0138R02","TSS List and Test Purposes contributions","TTA","2015-07-22T11:09:46","Draft","INC",null,"TST 18"]
["TST-2015-0139","single_hop_CSEBase_mgmt","Mahdi Ben Alaya (LAAS-CNRS)","2015-07-13T17:27:44","Draft","CR",null,"TST 18"]
["TST-2015-0139R01","single_hop_CSEBase_mgmt","Mahdi Ben Alaya (LAAS-CNRS)","2015-07-21T11:41:48","Draft","CR",null,"TST 18"]
["TST-2015-0140","No_hop_remoteCSE_mgmt","Mahdi Ben Alaya (LAAS-CNRS)","2015-07-13T20:27:55","Draft","CR",null,"TST 18"]
["TST-2015-0140R01","No_hop_remoteCSE_mgmt","Mahdi Ben Alaya (LAAS-CNRS)","2015-07-21T11:44:57","Draft","CR",null,"TST 18"]
["TST-2015-0141","oneM2M Wireshark Dissector","InterDigital","2015-07-14T22:09:00","Draft","INC",null,"TST 18"]
["TST-2015-0141R01","oneM2M Wireshark Dissector","InterDigital",null,"Draft","INC",null,"TST 18"]
["TST-2015-0142","TS-0018 TSS&TP baseline v0.0.2","KETI","2015-07-15T11:30:18","Draft","INC",null,"TST 18"]
["TST-2015-0142R01","TS-0018 TSS&TP baseline v0.0.2","KETI","2015-07-22T15:59:36","Draft","INC",null,"TST 18"]
["TST-2015-0143","non blocking synch requests update","Mahdi Ben Alaya (LAAS-CNRS)","2015-07-15T20:27:11","Draft","CR",null,"TST 18"]
["TST-2015-0144","Non blocking asynch requests update","Mahdi Ben Alaya (LAAS-CNRS)","2015-07-16T17:48:21","Draft","CR",null,"TST 18"]
["TST-2015-0145","ICS-ICS Proforma Annex","KETI","2015-07-17T04:50:29","Draft","INC",null,"TST 18"]
["TST-2015-0145R01","ICS-ICS Proforma Annex","KETI","2015-07-17T09:50:57","Draft","INC",null,"TST 18"]
["TST-2015-0145R02","ICS-ICS Proforma Annex","KETI","2015-07-21T20:12:55","Draft","INC",null,"TST 18"]
["TST-2015-0146","High Prioritized Test Case List for oneM2M Test Event","TTA","2015-07-17T08:52:37","Noted","INC",null,"TST 18"]
["TST-2015-0147","TS-0015-Clarification of conformance introduction clause","ETSI","2015-07-17T12:44:52","Draft","INC",null,"TST 18"]
["TST-2015-0147R01","TS-0015-Clarification of conformance introduction clause","ETSI","2015-07-21T21:27:06","Draft","INC",null,"TST 18"]
["TST-2015-0148","Minutes TST TP18","secretary",null,"Draft","MIN",null,"TP 18"]
["TST-2015-0149","Questions on certification","WG6 Chair","2015-07-19T23:14:28","Noted","INC",null,"TST 18"]
["TST-2015-0150","TS-0013-Removal_of_Single-Hop_AE create_TD","ETSI","2015-07-21T21:41:54","Draft","CR",null,"TST 18"]
["TST-2015-0151","Convention template","Huawei Technologies Co., Ltd.","2015-07-22T15:39:38","Draft","INC",null,"TST 18"]
["TST-2015-0151R01","Convention template","Huawei Technologies Co., Ltd.","2015-07-23T18:53:14","Draft","INC",null,"TST 18"]
["TST-2015-0152","MQTT binding Requirement","Seon H. Kim (DT&C)","2015-07-22T20:40:45","Draft","CR",null,"TST 18"]
["TST-2015-0153","WG3/PRO18.0 Status report","WG3/PRO Chairman","2015-07-24T03:51:34","Draft","INC",null,"TST 18"]

{"sheet":"TP","index":3,"n_rows":125,"n_cols":8,"rows_kept":125,"cut":false,"hidden":false,"merged":[]}
["SHORT DOC NB","SHORTNAME","SOURCE","UPLOADED","STATUS","DOC TYPE","VERS","MEETING"]
["MAS-2015-0599R02","HGI activities transfer to oneM2M WG5","Patricia MARTIGNE, ORANGE","2015-07-22T17:53:47","Draft","INC",null,"TP 18"]
["MAS-2015-0602","Minutes MAS TP18","secretary",null,"Draft","MIN",null,"TP 18"]
["TP-2015-0668","TP#18_Philadelphia_Meeting_Notice","Nicole Butler, ATIS","2015-04-02T19:42:52","Draft","INV",null,"TP 18"]
["TP-2015-0668R01","TP#18_Philadelphia_Meeting_Notice","Nicole Butler, ATIS","2015-04-08T17:57:15","Draft","INV",null,"TP 18"]
["TP-2015-0730","Voting List for TP18","Karen Hughes, Secretary","2015-06-01T15:44:35","Draft","INC",null,"TP 18"]
["TP-2015-0731","Invitation to TP19_Sophia-Antipolis","ETSI","2015-06-02T15:59:50","Draft","INV",null,"TP 18"]
["TP-2015-0732","LS on 3GPP Rel-13 MTC features for service capability exposure","3GPP TSG-SA WG2","2015-06-02T15:55:27","Draft","LS",null,"TP 18"]
["TP-2015-0733","Reply LS on Extension of 3GPP Service-Information AVP","3GPP TSG-SA WG5","2015-06-03T09:30:27","Draft","LS",null,"TP 18"]
["TP-2015-0734","TP18 Social Event Invitation","ATIS and InterDigital","2015-06-11T23:21:37","Draft","INV",null,"TP 18"]
["TP-2015-0735","Application ID Input","IFAST, ILS, Telxxis (TIA TR-50)","2015-06-24T21:04:21","Draft","INC",null,"TP 18"]
["TP-2015-0736","oneM2M based implementations","JaeSeung Song (KETI)","2015-07-14T20:21:05","Noted","INC",null,"TP 18"]
["TP-2015-0736R01","oneM2M based implementations","JaeSeung Song (KETI)","2015-07-15T11:18:15","Noted","INC",null,"TP 18"]
["TP-2015-0737","Draft MoW 1.4.0","MoW(Enrico Scarrone)","2015-07-07T10:05:14","Draft","STR",null,"TP 18"]
["TP-2015-0738","MoW_M&P_Report_at_TP18","MoW convenor  (Enrico Scarrone)","2015-07-07T10:23:00","Draft","STR",null,"TP 18"]
["TP-2015-0739","WI-0018_CR_for_Rapporture_change","LG Electronics","2015-07-08T05:26:00","Approved","CR",null,"TP 18"]
["TP-2015-0740","LSout 3GPP SA5 Code Point","Ericsson","2015-07-09T16:39:15","Noted","LS",null,"TP 18"]
["TP-2015-0740R01","LSout 3GPP SA5 Code Point","Ericsson","2015-07-21T13:54:36","Agreed","LS",null,"TP 18"]
["TP-2015-0741","Weekly Schedule TP18","Karen Hughes, Secretariat","2015-07-15T09:40:39","Draft","INC",null,"TP 18"]
["TP-2015-0741R01","Weekly Schedule TP18","Karen Hughes, Secretariat","2015-07-16T08:39:32","Draft","INC",null,"TP 18"]
["TP-2015-0741R02","Weekly Schedule TP18","Karen Hughes, Secretariat","2015-07-16T15:15:09","Draft","INC",null,"TP 18"]
["TP-2015-0741R03","Weekly Schedule TP18","Karen Hughes, Secretariat","2015-07-17T14:24:58","Draft","INC",null,"TP 18"]
["TP-2015-0741R04","Weekly Schedule TP18","Karen Hughes, Secretariat","2015-07-20T13:33:33","Draft","INC",null,"TP 18"]
["TP-2015-0741R05","Weekly Schedule TP18","Karen Hughes, Secretariat","2015-07-21T15:25:15","Draft","INC",null,"TP 18"]
["TP-2015-0741R06","Weekly Schedule TP18","Karen Hughes, Secretariat","2015-07-21T17:45:59","Draft","INC",null,"TP 18"]
["TP-2015-0741R07","Weekly Schedule TP18","Karen Hughes, Secretariat","2015-07-21T20:47:52","Draft","INC",null,"TP 18"]
["TP-2015-0741R08","Weekly Schedule TP18","Karen Hughes, Secretariat","2015-07-22T16:51:28","Draft","INC",null,"TP 18"]
["TP-2015-0741R09","Weekly Schedule TP18","Karen Hughes, Secretariat","2015-07-22T17:03:09","Draft","INC",null,"TP 18"]
["TP-2015-0741R10","Weekly Schedule TP18","Karen Hughes, Secretariat","2015-07-23T15:27:50","Draft","INC",null,"TP 18"]
["TP-2015-0742","WI-00xx-Application developer guide","ETSI","2015-07-10T16:36:51","Noted","INC",null,"TP 18"]
["TP-2015-0742R01","WI-00xx-Application developer guide","ETSI","2015-07-22T18:38:46","Noted","INC",null,"TP 18"]
["TP-2015-0742R02","WI-00xx-Application developer guide","ETSI","2015-07-23T03:13:50","Draft","INC",null,"TP 18"]
["TP-2015-0743","Connecting ISO TC204 (ITS)","Tseng Infoserv, LLC","2015-07-12T12:35:13","Draft","INC",null,"TP 18"]
["TP-2015-0744","WI-0018_AllJoyn_interworking_normative_work","LG Electronics","2015-07-13T09:36:42","Noted","CR",null,"TP 18"]
["TP-2015-0744R01","WI-0018_AllJoyn_interworking_normative_work","LG Electronics","2015-07-21T08:59:06","Noted","CR",null,"TP 18"]
["TP-2015-0744R02","WI-0018_AllJoyn_interworking_normative_work","LG Electronics","2015-07-22T23:16:04","Draft","CR",null,"TP 18"]
["TP-2015-0745","WI-0017-Home_Domain_Enablement_normative_work","LG Electronics","2015-07-13T09:38:07","Noted","CR",null,"TP 18"]
["TP-2015-0745R01","WI-0017-Home_Domain_Enablement_normative_work","LG Electronics","2015-07-22T19:35:54","Postponed","CR",null,"TP 18"]
["TP-2015-0745R02","WI-0017-Home_Domain_Enablement_normative_work","LG Electronics","2015-07-22T23:26:51","Draft","CR",null,"TP 18"]
["TP-2015-0746","CR Pack TS0004 V1.2.1 Release 1","WG3/PRO Chairman","2015-07-13T18:24:37","Draft","INC",null,"TP 18"]
["TP-2015-0747","CR Pack TS0009 Release 2","WG3/PRO Chairman","2015-07-13T18:26:39","Draft","CR",null,"TP 18"]
["TP-2015-0748","Introduction of GlobalPlatform as partner type 2","GlobalPlatform","2015-07-14T10:01:47","Draft","INC",null,"TP 18"]
["TP-2015-0749","LS on Exposure of Network Capabilities to M2M","OMA ARC WG","2015-07-15T09:47:02","Draft","LS",null,"TP 18"]
["TP-2015-0750","Agenda TP18","TP Chair","2015-07-15T10:45:48","Draft","AG",null,"TP 18"]
["TP-2015-0750R01","Agenda TP18","TP Chair","2015-07-17T10:06:17","Draft","AG",null,"TP 18"]
["TP-2015-0750R02","Agenda TP18","TP Chair","2015-07-19T19:21:25","Draft","AG",null,"TP 18"]
["TP-2015-0750R03","Agenda TP18","TP Chair","2015-07-19T21:13:30","Draft","AG",null,"TP 18"]
["TP-2015-0750R04","Agenda TP18","TP Chair","2015-07-20T13:27:21","Draft","AG",null,"TP 18"]
["TP-2015-0750R05","Agenda TP18","TP Chair","2015-07-22T20:20:14","Draft","AG",null,"TP 18"]
["TP-2015-0750R06","Agenda TP18","TP Chair","2015-07-22T21:48:21","Draft","AG",null,"TP 18"]
["TP-2015-0750R07","Agenda TP18","TP Chair","2015-07-22T21:52:08","Draft","AG",null,"TP 18"]
["TP-2015-0750R08","Agenda TP18","TP Chair","2015-07-22T22:04:23","Draft","AG",null,"TP 18"]
["TP-2015-0750R09","Agenda TP18","TP Chair","2015-07-22T22:11:48","Draft","AG",null,"TP 18"]
["TP-2015-0750R10","Agenda TP18","TP Chair","2015-07-24T16:21:46","Draft","AG",null,"TP 18"]
["TP-2015-0750R11","Agenda TP18","TP Chair","2015-07-24T17:03:23","Draft","AG",null,"TP 18"]
["TP-2015-0750R12","Agenda TP18","TP Chair","2015-07-24T18:29:44","Draft","AG",null,"TP 18"]
["TP-2015-0750R13","Agenda TP18","TP Chair","2015-07-24T18:39:43","Draft","AG",null,"TP 18"]
["TP-2015-0751","AppID CR","IFAST, Telit","2015-07-18T01:00:23","Draft","INC",null,"TP 18"]
["TP-2015-0752","HGI to conclude its work by 2016","HGI","2015-07-19T19:17:21","Draft","INC",null,"TP 18"]
["TP-2015-0753","Actions status from TP17","Karen Hughes, Secretariat","2015-07-19T20:15:51","Draft","INC",null,"TP 18"]
["TP-2015-0754","LWM2M Interworking for OIC/oneM2M Workshop","ALU, Gemalto N.V","2015-07-20T16:32:37","Draft","INC",null,"TP 18"]
["TP-2015-0754R01","Presentation of LWM2M Interworking for OIC/oneM2M Workshop","ALU, Gemalto N.V","2015-07-20T16:51:38","Draft","INC",null,"TP 18"]
["TP-2015-0755","AllSeen interworking introduction for OIC-oneM2M workshop","LG Electronics, Qualcomm","2015-07-20T17:12:50","Draft","INC",null,"TP 18"]
["TP-2015-0756","Showcase Tokyo Report","KDDI","2015-07-20T19:55:56","Draft","MIN",null,"TP 18"]
["TP-2015-0757","Agenda OIC/oneM2M workshop July 20th 2015","Omar Elloumi (ALU), TP Chair","2015-07-20T20:07:01","Draft","AG",null,"TP 18"]
["TP-2015-0757R01","Agenda OIC/oneM2M workshop July 20th 2015","Omar Elloumi (ALU), TP Chair","2015-07-21T11:35:39","Draft","AG",null,"TP 18"]
["TP-2015-0758","OIC input to joint OIC / oneM2M workshop","Omar Elloumi (ALU), TP Chair","2015-07-20T21:54:17","Draft","INC",null,"TP 18"]
["TP-2015-0758R01","OIC input to joint OIC / oneM2M workshop","Omar Elloumi (ALU), TP Chair","2015-07-20T22:18:16","Draft","INC",null,"TP 18"]
["TP-2015-0759","oneM2M Presentation for OIC Workshop","Nicolas Damour, WG2 Chairman","2015-07-20T22:04:36","Draft","INC",null,"TP 18"]
["TP-2015-0760","OneM2M interworking approach overview","Telecom Italia","2015-07-20T22:32:17","Draft","INC",null,"TP 18"]
["TP-2015-0761","CR Pack TS0008 Release 1","WG3/PRO Charirman","2015-07-21T16:53:36","Agreed","CR",null,"TP 18"]
["TP-2015-0762","LSout 3GPP Rel-13 MTC features for Service Capability Exposure","Rajesh Bhalla, ZTE","2015-07-22T14:10:33","Draft","LS",null,"TP 18"]
["TP-2015-0762R01","LSout 3GPP Rel-13 MTC features for Service Capability Exposure","Rajesh Bhalla, ZTE","2015-07-23T15:01:57","Draft","LS",null,"TP 18"]
["TP-2015-0762R02","LSout 3GPP Rel-13 MTC features for Service Capability Exposure","Rajesh Bhalla, ZTE","2015-07-24T13:35:26","Draft","LS",null,"TP 18"]
["TP-2015-0762R03","LSout 3GPP Rel-13 MTC features for Service Capability Exposure","Rajesh Bhalla, ZTE","2015-07-24T15:29:09","Draft","LS",null,"TP 18"]
["TP-2015-0762R04","LSout 3GPP Rel-13 MTC features for Service Capability Exposure","Rajesh Bhalla, ZTE","2015-07-24T16:56:37","Draft","LS",null,"TP 18"]
["TP-2015-0762R05","LSout 3GPP Rel-13 MTC features for Service Capability Exposure","Rajesh Bhalla, ZTE","2015-07-24T17:05:24","Draft","LS",null,"TP 18"]
["TP-2015-0763","LSout Exposure of Network Capabilities to M2M","Rajesh Bhalla, ZTE","2015-07-22T14:12:10","Draft","LS",null,"TP 18"]
["TP-2015-0763R01","LSout Exposure of Network Capabilities to M2M","Rajesh Bhalla, ZTE","2015-07-23T15:02:41","Draft","LS",null,"TP 18"]
["TP-2015-0763R02","LSout Exposure of Network Capabilities to M2M","Rajesh Bhalla, ZTE","2015-07-24T11:13:04","Draft","LS",null,"TP 18"]
["TP-2015-0763R03","LSout Exposure of Network Capabilities to M2M","Rajesh Bhalla, ZTE","2015-07-24T16:53:23","Draft","LS",null,"TP 18"]
["TP-2015-0763R04","LSout Exposure of Network Capabilities to M2M","Rajesh Bhalla, ZTE","2015-07-24T17:08:22","Draft","LS",null,"TP 18"]
["TP-2015-0764","ITU-T presentation to oneM2M SC27","Omar Elloumi (ALU), TP Chair","2015-07-22T14:51:46","Draft","INC",null,"TP 18"]
["TP-2015-0765","WI-0028-Update","hitachi","2015-07-22T16:16:36","Draft","INC",null,"TP 18"]
["TP-2015-0766","WI for OIC interworking","Samsung","2015-07-22T18:22:40","Noted","INC",null,"TP 18"]
["TP-2015-0766R01","WI for OIC interworking","Samsung","2015-07-22T21:01:37","Noted","INC",null,"TP 18"]
["TP-2015-0766R02","WI for OIC interworking","Samsung","2015-07-22T21:44:24","Noted","INC",null,"TP 18"]
["TP-2015-0766R03","WI for OIC interworking","Samsung","2015-07-23T23:46:38","Draft","INC",null,"TP 18"]
["TP-2015-0766R04","WI for OIC interworking","Samsung","2015-07-24T11:45:43","Draft","INC",null,"TP 18"]
["TP-2015-0766R05","WI for OIC interworking","Samsung","2015-07-24T14:48:49","Draft","INC",null,"TP 18"]
["TP-2015-0767","New WI for HGI SH activities integration","Patricia Martigne - ORANGE","2015-07-22T22:24:32","Approved","INC",null,"TP 18"]
["TP-2015-0768","Informal feedback on GSC19 IoT session","Gerry McAuley ETSI","2015-07-22T19:37:12","Draft","INC",null,"TP 18"]
["TP-2015-0768R01","Informal feedback on GSC19 IoT session","Gerry McAuley ETSI","2015-07-22T21:03:22","Draft","MIN",null,"TP 18"]
["TP-2015-0769","WPM_status_report_at_TP18","WPM Convenor (Roland Hechwartner)","2015-07-24T16:53:13","Draft","STR",null,"TP 18"]
["TP-2015-0770","CR Pack TS-0004-Release 1&2","WG3/PRO Chairman","2015-07-23T23:02:09","Draft","CR",null,"TP 18"]
["TP-2015-0771","CR Pack TS0008 Release 1","WG3/PRO Chairman","2015-07-23T21:55:35","Draft","CR",null,"TP 18"]
["TP-2015-0772","CR Pack TS0009 Release 1","WG3/PRO Chairman","2015-07-23T20:47:14","Draft","CR",null,"TP 18"]
["TP-2015-0773","LSout to HGI","Patricia MARTIGNE - Orange","2015-07-24T16:30:21","Draft","LS",null,"TP 18"]
["TP-2015-0773R01","LSout to HGI","Patricia MARTIGNE - Orange","2015-07-24T17:08:47","Draft","LS",null,"TP 18"]
["TP-2015-0774","MAS WG report at TP#18","Yongjing Zhang (Huawei, MAS WG Chair)","2015-07-24T16:52:46","Draft","STR",null,"TP 18"]
["TP-2015-0775","CR Pack TS0005 R1","Yongjing Zhang (Huawei, MAS WG Chair)","2015-07-24T03:08:11","Draft","INC",null,"TP 18"]
["TP-2015-0776","CR Pack TR0007 R2","Yongjing Zhang (Huawei, MAS WG Chair)","2015-07-24T03:11:05","Draft","INC",null,"TP 18"]
["TP-2015-0777","WG2 Status Report at TP18","Nicolas Damour, WG2 Chairman",null,"Draft","MIN",null,"TP 18"]
["TP-2015-0778","update on WI-0030","WI-0030 Rapporter","2015-07-24T18:33:29","Draft","INC",null,"TP 18"]
["TP-2015-0779","WG3/PRO18.0 Status report","WG3/PRO Chairman","2015-07-24T14:34:04","Draft","STR",null,"TP 18"]
["TP-2015-0780","CR Pack TS-0003 R1","Giesecke & Devrient (Rapporteur)","2015-07-24T14:42:09","Draft","CR",null,"TP 18"]
["TP-2015-0781","WG6/TST 18.0 Status report","TST WG Chair","2015-07-24T15:29:56","Draft","STR",null,"TP 18"]
["TP-2015-0782","ETSI annual M2M Workshop featuring oneM2M","ETSI","2015-07-24T16:26:42","Draft","INC",null,"TP 18"]
["TP-2015-0783","Update to WI-0029","Darold Hemphill - iconectiv","2015-07-24T16:34:31","Draft","INC",null,"TP 18"]
["TP-2015-0784","CR Pack for TS-0002","Shelby Kiewel WG1 Chairman","2015-07-24T16:46:14","Draft","CR",null,"TP 18"]
["TP-2015-0785","CR Pack for TS-0002 R1 Maintanence","Shelby Kiewel WG1 Chairman","2015-07-24T16:59:02","Draft","AG",null,"TP 18"]
["TP-2015-0785R01","CR Pack for TS-0002 R1 Maintanence","Shelby Kiewel WG1 Chairman","2015-07-24T17:01:04","Draft","CR",null,"TP 18"]
["TP-2015-0786","CR Pack for TS-0011","Shelby Kiewel WG1 Chairman","2015-07-24T17:00:22","Draft","CR",null,"TP 18"]
["TP-2015-0787","CR Pack for TR-0018","Shelby Kiewel WG1 Chairman","2015-07-24T17:02:28","Draft","CR",null,"TP 18"]
["TP-2015-0788","CR Pack for TR-0001","Shelby Kiewel WG1 Chairman","2015-07-24T17:03:38","Draft","CR",null,"TP 18"]
["TP-2015-0789","SEC 18 Status Report to TP","WG4 chair (Gemalto)","2015-07-24T17:09:22","Draft","INC",null,"TP 18"]
["TP-2015-0790","CR Pack TS-0001 MNT","Nicolas Damour, WG2 Chairman","2015-07-24T17:51:22","Draft","INC",null,"TP 18"]
["TP-2015-0791","WG1 Status Report for TP18","Shelby Kiewel WG1 Chairman","2015-07-24T17:52:39","Draft","STR",null,"TP 18"]
["TP-2015-0792","CR Pack TS-0001 MNT+STE","Nicolas Damour, WG2 Chairman","2015-07-24T17:56:50","Draft","INC",null,"TP 18"]
["TP-2015-0793","Withdrawn","Nicolas Damour, WG2 Chairman","2015-07-24T18:02:45","Withdrawn","INC",null,"TP 18"]
["TP-2015-0794","Standalone MNT CR - ARC-2015-1951","Nicolas Damour, WG2 Chairman","2015-07-24T18:04:33","Draft","INC",null,"TP 18"]
["TP-2015-0795","CR Pack TS-0001 STE","Nicolas Damour, WG2 Chairman","2015-07-24T18:09:40","Draft","INC",null,"TP 18"]
["TP-2015-0796","CR Pack TS-0001 Rel.2","Nicolas Damour, WG2 Chairman","2015-07-24T18:22:37","Draft","INC",null,"TP 18"]
["TP-2015-0797","Decoupling duplicated parts in TS-0001 and TS-0004","WG3 VC","2015-07-24T18:37:19","Draft","INC",null,"TP 18"]
["TST-2015-0148","Minutes TST TP18","secretary",null,"Draft","MIN",null,"TP 18"]

{"sheet":"REQ","index":4,"n_rows":105,"n_cols":8,"rows_kept":105,"cut":false,"hidden":false,"merged":[]}
["SHORT DOC NB","SHORTNAME","SOURCE","UPLOADED","STATUS","DOC TYPE","VERS","MEETING"]
["REQ-2015-0589R01","Usecase on vehicle data wipe service","TOYOTA ITC","2015-07-07T11:35:50","Draft","INC",null,"REQ 18"]
["REQ-2015-0589R02","Usecase on vehicle data wipe service","TOYOTA ITC",null,"Draft","INC",null,"REQ 18"]
["REQ-2015-0589R03","Usecase on vehicle data wipe service","TOYOTA ITC","2015-07-20T07:12:26","Noted","INC",null,"REQ 18"]
["REQ-2015-0589R04","Usecase on vehicle data wipe service","TOYOTA ITC, KDDI, Fujitsu","2015-07-21T20:00:28","Agreed","INC",null,"REQ 18"]
["REQ-2015-0590","SEC_related_CR_to_TS-0002_on_Trust_transfer","NEC","2015-07-10T17:17:49","Draft","INC",null,"REQ 18"]
["REQ-2015-0590R01","SEC_related_CR_to_TS-0002_on_Trust_transfer","NEC","2015-07-22T14:17:03","Agreed","INC",null,"REQ 18"]
["REQ-2015-0590R02","SEC_related_CR_to_TS-0002_on_Trust_transfer","NEC","2015-07-23T15:37:14","Draft","INC",null,"REQ 18"]
["REQ-2015-0591","CR_to_TS-0002_on_dynamic_Verification_of_GW_Processing_Integrity","NEC","2015-07-10T17:37:28","Draft","INC",null,"REQ 18"]
["REQ-2015-0591R01","CR_to_TS-0002_on_dynamic_Verification_of_GW_Processing_Integrity","NEC","2015-07-17T15:13:40","Noted","INC",null,"REQ 18"]
["REQ-2015-0591R02","CR_to_TS-0002_on_dynamic_Verification_of_GW_Processing_Integrity","NEC","2015-07-23T15:41:38","Draft","INC",null,"REQ 18"]
["REQ-2015-0591R03","CR_to_TS-0002_on_dynamic_Verification_of_GW_Processing_Integrity","NEC","2015-07-23T16:51:57","Draft","INC",null,"REQ 18"]
["REQ-2015-0591R04","CR_to_TS-0002_on_dynamic_Verification_of_GW_Processing_Integrity","NEC","2015-07-23T18:56:48","Agreed","INC",null,"REQ 18"]
["REQ-2015-0592","Add App-ID Abbreviations and Definitions","Darold Hemphill - iconectiv","2015-07-10T18:54:44","Draft","CR",null,"REQ 18"]
["REQ-2015-0592R01","Add App-ID Abbreviations and Definitions","Darold Hemphill - iconectiv","2015-07-17T20:54:39","Draft","CR",null,"REQ 18"]
["REQ-2015-0592R02","Add App-ID Abbreviations and Definitions","Darold Hemphill - iconectiv","2015-07-22T20:43:41","Agreed","CR",null,"REQ 18"]
["REQ-2015-0594","External Event Trigger Use Case","FUJITSU",null,"Withdrawn","INC",null,"REQ 18"]
["REQ-2015-0595","External Event Trigger Requirements","FUJITSU","2015-07-12T06:21:38","Draft","CR",null,"REQ 18"]
["REQ-2015-0595R01","External Event Trigger Requirements","FUJITSU","2015-07-20T20:50:10","Draft","CR",null,"REQ 18"]
["REQ-2015-0595R02","External Event Trigger Requirements","FUJITSU","2015-07-21T12:19:24","Noted","CR",null,"REQ 18"]
["REQ-2015-0595R03","External Event Trigger Requirements","FUJITSU","2015-07-23T13:17:45","Noted","CR",null,"REQ 18"]
["REQ-2015-0595R04","External Event Trigger Requirements","FUJITSU","2015-07-23T19:36:49","Agreed","CR",null,"REQ 18"]
["REQ-2015-0596","Event Trigger Use Case Revise","FUJITSU","2015-07-12T06:20:45","Agreed","CR",null,"REQ 18"]
["REQ-2015-0597","Use Case Anycast Somecast","InterDigital","2015-07-12T19:24:33","Noted","CR",null,"REQ 18"]
["REQ-2015-0597R01","Use Case Anycast Somecast","InterDigital","2015-07-22T20:21:11","Noted","CR",null,"REQ 18"]
["REQ-2015-0597R02","Use Case Anycast Somecast","InterDigital","2015-07-23T19:22:29","Draft","CR",null,"REQ 18"]
["REQ-2015-0597R03","Use Case Anycast Somecast","InterDigital","2015-07-23T19:52:55","Noted","CR",null,"REQ 18"]
["REQ-2015-0598","TS-0002 anycast somecast requirements","InterDigital","2015-07-12T19:24:50","Draft","CR",null,"REQ 18"]
["REQ-2015-0598R01","TS-0002 anycast somecast requirements","InterDigital","2015-07-22T20:21:42","Draft","CR",null,"REQ 18"]
["REQ-2015-0598R02","TS-0002 anycast somecast requirements","InterDigital","2015-07-23T19:23:15","Noted","CR",null,"REQ 18"]
["REQ-2015-0599","Sensor Data Quality","Hitachi","2015-07-13T03:30:07","Noted","INC",null,"REQ 18"]
["REQ-2015-0599R01","Sensor Data Quality","Hitachi","2015-07-20T14:09:15","Noted","INC",null,"REQ 18"]
["REQ-2015-0599R02","Sensor Data Quality","Hitachi","2015-07-22T20:21:43","Draft","INC",null,"REQ 18"]
["REQ-2015-0599R03","Sensor Data Quality","Hitachi","2015-07-22T20:25:20","Agreed","INC",null,"REQ 18"]
["REQ-2015-0600","Real Time Data Collection","Hitachi","2015-07-13T03:43:48","Draft","INC",null,"REQ 18"]
["REQ-2015-0600R01","Real Time Data Collection","Hitachi","2015-07-20T14:22:18","Noted","INC",null,"REQ 18"]
["REQ-2015-0600R02","Real Time Data Collection","Hitachi","2015-07-22T15:50:43","Agreed","INC",null,"REQ 18"]
["REQ-2015-0601","Requirement of supporting Real Time Data Collection","Hitachi","2015-07-13T04:10:58","Draft","INC",null,"REQ 18"]
["REQ-2015-0601R01","Requirement of supporting Real Time Data Collection","Hitachi","2015-07-22T15:58:29","Agreed","INC",null,"REQ 18"]
["REQ-2015-0602","Requirement of supporting Quality of Sensor Data","Hitachi","2015-07-13T04:20:52","Draft","INC",null,"REQ 18"]
["REQ-2015-0602R01","Requirement of supporting Quality of Sensor Data","Hitachi","2015-07-22T20:43:07","Agreed","INC",null,"REQ 18"]
["REQ-2015-0603","Data_encryption_in_industrial_domain","Hitachi","2015-07-13T04:59:05","Draft","INC",null,"REQ 18"]
["REQ-2015-0603R01","Data_encryption_in_industrial_domain","Hitachi","2015-07-21T14:05:37","Noted","INC",null,"REQ 18"]
["REQ-2015-0603R02","Data_encryption_in_industrial_domain","Hitachi","2015-07-22T14:56:55","Draft","INC",null,"REQ 18"]
["REQ-2015-0603R03","Data_encryption_in_industrial_domain","Hitachi","2015-07-23T17:35:53","Agreed","INC",null,"REQ 18"]
["REQ-2015-0604","Requirement_of_supporting_data_encryption_in_industrial_domain","Hitachi","2015-07-13T05:01:41","Draft","CR",null,"REQ 18"]
["REQ-2015-0604R01","Requirement_of_supporting_data_encryption_in_industrial_domain","Hitachi","2015-07-22T13:59:05","Draft","CR",null,"REQ 18"]
["REQ-2015-0604R02","Requirement_of_supporting_data_encryption_in_industrial_domain","Hitachi","2015-07-23T17:36:58","Agreed","CR",null,"REQ 18"]
["REQ-2015-0605","TS-0002 E2E integrity confidentiality","InterDigital",null,"Draft","AG",null,"REQ 18"]
["REQ-2015-0605R01","TS-0002 E2E integrity confidentiality","InterDigital","2015-07-13T12:17:56","Draft","CR",null,"REQ 18"]
["REQ-2015-0605R02","TS-0002 E2E integrity confidentiality","InterDigital","2015-07-22T19:13:27","Draft","AG",null,"REQ 18"]
["REQ-2015-0605R03","TS-0002 E2E integrity confidentiality","InterDigital","2015-07-23T17:21:29","Draft","AG",null,"REQ 18"]
["REQ-2015-0605R04","TS-0002 E2E integrity confidentiality","InterDigital","2015-07-23T20:04:34","Agreed","AG",null,"REQ 18"]
["REQ-2015-0606","QoS/QoI monitoring in industrial domain","KETI, LGU+","2015-07-14T16:09:41","Noted","INC",null,"REQ 18"]
["REQ-2015-0606R01","QoS/QoI monitoring in industrial domain","KETI, LGU+","2015-07-23T10:46:15","Agreed","INC",null,"REQ 18"]
["REQ-2015-0607","Use Case for Agricultural Drone","KETI","2015-07-14T16:11:22","Noted","INC",null,"REQ 18"]
["REQ-2015-0607R01","Use Case for Agricultural Drone","KETI","2015-07-23T10:44:57","Agreed","INC",null,"REQ 18"]
["REQ-2015-0608","Requirement of supporting device caching in home domain","KETI","2015-07-14T16:14:34","Agreed","INC",null,"REQ 18"]
["REQ-2015-0609","Requirement of supporting device pairing in home domain","KETI","2015-07-14T16:15:50","Agreed","INC",null,"REQ 18"]
["REQ-2015-0610","Withdrawn","Toyota InfoTechnology Center, KDDI","2015-07-15T09:32:55","Draft","CR",null,"REQ 18"]
["REQ-2015-0611","Requirements to Support Vehicle Data Service","Toyota InfoTechnology Center, KDDI","2015-07-15T09:37:14","Draft","CR",null,"REQ 18"]
["REQ-2015-0611R01","Requirements to Support Vehicle Data Service","Toyota InfoTechnology Center, KDDI, Fujitsu","2015-07-22T11:00:36","Noted","CR",null,"REQ 18"]
["REQ-2015-0611R02","Requirements to Support Vehicle Data Service","Toyota InfoTechnology Center, KDDI, Fujitsu","2015-07-23T14:59:31","Noted","CR",null,"REQ 18"]
["REQ-2015-0612","WG1 REQ Document Allocation","Shelby Kiewel (iconectiv)","2015-07-17T16:33:46","Draft","AG",null,"REQ 18"]
["REQ-2015-0612R01","WG1 REQ Document Allocation","Shelby Kiewel (iconectiv)","2015-07-20T15:19:54","Draft","AG",null,"REQ 18"]
["REQ-2015-0612R02","WG1 REQ Document Allocation","Shelby Kiewel (iconectiv)","2015-07-20T22:50:19","Draft","AG",null,"REQ 18"]
["REQ-2015-0612R03","WG1 REQ Document Allocation","Shelby Kiewel (iconectiv)","2015-07-21T22:06:58","Draft","AG",null,"REQ 18"]
["REQ-2015-0612R04","WG1 REQ Document Allocation","Shelby Kiewel (iconectiv)","2015-07-22T16:20:05","Draft","AG",null,"REQ 18"]
["REQ-2015-0612R05","WG1 REQ Document Allocation","Shelby Kiewel (iconectiv)","2015-07-22T23:05:31","Draft","AG",null,"REQ 18"]
["REQ-2015-0612R06","WG1 REQ Document Allocation","Shelby Kiewel (iconectiv)","2015-07-22T23:46:37","Draft","AG",null,"REQ 18"]
["REQ-2015-0612R07","WG1 REQ Document Allocation","Shelby Kiewel (iconectiv)","2015-07-23T15:16:47","Draft","AG",null,"REQ 18"]
["REQ-2015-0613","WG1 REQ Agenda","Shelby Kiewel (iconectiv)","2015-07-17T16:37:21","Draft","AG",null,"REQ 18"]
["REQ-2015-0614","AppID Comments","IFAST, ILS, Telxxis (TIA TR-50)","2015-07-20T11:49:32","Withdrawn","AG",null,"REQ 18"]
["REQ-2015-0615","AppID CR","IFAST, Telit","2015-07-20T11:52:04","Withdrawn","INC",null,"REQ 18"]
["REQ-2015-0616","AppID CR","IFAST, Telit","2015-07-20T11:56:35","Withdrawn","INC",null,"REQ 18"]
["REQ-2015-0617","MNT CR TS-0002 Provisioning Clarification (R1)","Qualcomm Inc. (TIA)","2015-07-21T04:50:39","Agreed","CR",null,"REQ 18"]
["REQ-2015-0618","MNT CR TS-0002 Provisioning Clarification (R2)","Qualcomm Inc. (TIA)","2015-07-21T04:54:47","Agreed","CR",null,"REQ 18"]
["REQ-2015-0619","Terms And Conditions Markup Language for Privacy Policy Manager","BT Group","2015-07-21T15:31:45","Draft","INC",null,"REQ 18"]
["REQ-2015-0619R01","Terms And Conditions Markup Language for Privacy Policy Manager","BT Group","2015-07-21T20:40:25","Draft","INC",null,"REQ 18"]
["REQ-2015-0619R02","Terms And Conditions Markup Language for Privacy Policy Manager","BT Group","2015-07-23T14:35:23","Agreed","INC",null,"REQ 18"]
["REQ-2015-0620","Requirements to Support Vehicle Data Wipe Service","TOYOTA ITC, KDDI, Fujitsu","2015-07-21T20:21:45","Agreed","CR",null,"REQ 18"]
["REQ-2015-0621","CR TS-0002 add requirements on Privacy Profiles from REQ-2015-0619R01","BT Group","2015-07-21T21:48:59","Draft","CR",null,"REQ 18"]
["REQ-2015-0621R01","CR TS-0002 add requirements on Privacy Profiles from REQ-2015-0619R01","BT Group","2015-07-23T14:48:21","Agreed","CR",null,"REQ 18"]
["REQ-2015-0622","Data Monitoring","FUJITSU","2015-07-23T13:18:53","Draft","CR",null,"REQ 18"]
["REQ-2015-0622R01","Data Monitoring","FUJITSU","2015-07-23T17:17:21","Draft","CR",null,"REQ 18"]
["REQ-2015-0622R02","Data Monitoring","FUJITSU","2015-07-23T22:08:37","Agreed","CR",null,"REQ 18"]
["REQ-2015-0623","Security Administration Functionality","FUJITSU","2015-07-22T12:29:12","Draft","CR",null,"REQ 18"]
["REQ-2015-0623R01","Security Administration Functionality","FUJITSU","2015-07-23T19:47:37","Agreed","CR",null,"REQ 18"]
["REQ-2015-0624","Requirement for OIC interworking","Samsung","2015-07-22T18:24:40","Draft","CR",null,"REQ 18"]
["REQ-2015-0624R01","Requirement for OIC interworking","Samsung","2015-07-22T21:03:23","Withdrawn","CR",null,"REQ 18"]
["REQ-2015-0625","Change_P2P_to_AE_to_AE_in_OSR-003_Rel1-CR","Jasper Technologies, Inc","2015-07-22T22:48:33","Draft","CR",null,"REQ 18"]
["REQ-2015-0625R01","Change_P2P_to_AE_to_AE_in_OSR-003_Rel1-CR","Jasper Technologies, Inc","2015-07-23T16:27:49","Draft","CR",null,"REQ 18"]
["REQ-2015-0626","Change_P2P_to_AE_to_AE_in_OSR-003_Rel2MirrorCR.doc","Jasper Technologies, Inc","2015-07-22T23:02:14","Draft","CR",null,"REQ 18"]
["REQ-2015-0626R01","Change_P2P_to_AE_to_AE_in_OSR-003_Rel2MirrorCR.doc","Jasper Technologies, Inc","2015-07-23T16:28:28","Draft","CR",null,"REQ 18"]
["REQ-2015-0627","TS-0002 E2E security delegation","InterDigital","2015-07-22T23:09:57","Draft","CR",null,"REQ 18"]
["REQ-2015-0627R01","TS-0002 E2E security delegation","InterDigital","2015-07-23T17:04:54","Draft","CR",null,"REQ 18"]
["REQ-2015-0627R02","TS-0002 E2E security delegation","InterDigital","2015-07-23T20:03:32","Agreed","CR",null,"REQ 18"]
["REQ-2015-0628","Security Requirements for Dynamic Authorization","Datang","2015-07-22T23:16:09","Draft","INC",null,"REQ 18"]
["REQ-2015-0628R01","Security Requirements for Dynamic Authorization","Datang","2015-07-23T20:06:38","Agreed","INC",null,"REQ 18"]
["REQ-2015-0629","Requirement for QoS/QoI monitoring in industrial domain","KETI, LGU+","2015-07-23T10:52:11","Agreed","INC",null,"REQ 18"]
["REQ-2015-0630","Requirement for Agricultural Drone Use case","KETI","2015-07-23T10:54:22","Agreed","INC",null,"REQ 18"]
["REQ-2015-0631","Requirements_for_information_model","LG Electronics","2015-07-23T15:11:36","Draft","CR",null,"REQ 18"]
["REQ-2015-0631R01","Requirements_for_information_model","LG Electronics","2015-07-23T21:03:01","Draft","CR",null,"REQ 18"]
["REQ-2015-0631R02","Requirements_for_information_model","LG Electronics, Samsung Electronics","2015-07-23T21:38:13","Agreed","CR",null,"REQ 18"]
["REQ-2015-0632","REQ18_Minutes","Nicole Butler, ATIS","2015-07-23T22:12:02","Draft","MIN",null,"REQ 18"]

{"sheet":"ARC","index":5,"n_rows":200,"n_cols":8,"rows_kept":200,"cut":false,"hidden":false,"merged":[]}
["SHORT DOC NB","SHORTNAME","SOURCE","UPLOADED","STATUS","DOC TYPE","VERS","MEETING"]
["ARC-2015-1902R01","CR_structured_resource_ID_clarification","LG Electronics","2015-07-13T09:07:33","Draft","CR",null,"ARC 18"]
["ARC-2015-1903R01","CR_structured_resource_ID_clarification(R2)","LG Electronics","2015-07-13T09:09:50","Draft","CR",null,"ARC 18"]
["ARC-2015-1934","CR CSEBase resource type (R1)","LG Electronics","2015-06-11T08:42:27","Agreed","CR",null,"ARC 18"]
["ARC-2015-1935","CR CSEBase resource type (R2)","LG Electronics","2015-06-11T08:43:53","Agreed","CR",null,"ARC 18"]
["ARC-2015-1940R01","CR for hostedCSEID attribute name correction","C-DOT","2015-06-25T05:51:19","Draft","CR",null,"ARC 18"]
["ARC-2015-1941","CR for serviceSubscribedNode - ruleLinks attribute","C-DOT (Anupama,Poornima)","2015-06-25T06:30:30","Draft","CR",null,"ARC 18"]
["ARC-2015-1942","CR for CRUD on m2mServiceSubscriptionProfile and serviceSubscribedNode","C-DOT (Anupama,Poornima)","2015-07-02T05:43:50","Draft","CR",null,"ARC 18"]
["ARC-2015-1944","Minutes ARC17-3","Karen Hughes, Secretariat","2015-07-02T15:08:23","Agreed","MIN",null,"ARC 18"]
["ARC-2015-1945","Simple word errors correction","LG Electronics","2015-07-03T09:36:47","Agreed","CR",null,"ARC 18"]
["ARC-2015-1946","TR-0014-oneM2M_and_AllJoyn_interworking-V0_4_0_Draft","LG Electronics","2015-07-08T05:24:56","Noted","INC",null,"ARC 18"]
["ARC-2015-1946R01","TR-0014-oneM2M_and_AllJoyn_interworking-V0_4_0_Draft","LG Electronics","2015-07-20T21:42:10","Draft","INC",null,"ARC 18"]
["ARC-2015-1947","Multiplicity correction to objectAttribute R1","Yongjing Zhang (Huawei)","2015-07-08T03:57:43","Draft","CR",null,"ARC 18"]
["ARC-2015-1948","Multiplicity correction to objectAttribute R2","Yongjing Zhang (Huawei)","2015-07-08T03:57:56","Draft","CR",null,"ARC 18"]
["ARC-2015-1949","Target-Notification-Disposition-Policy-Editorial-Enhancements","Ericsson","2015-07-10T12:14:12","Draft","CR",null,"ARC 18"]
["ARC-2015-1949R01","Target-Notification-Disposition-Policy-Editorial-Enhancements","Ericsson","2015-07-21T19:25:49","Draft","CR",null,"ARC 18"]
["ARC-2015-1950","Procedure-notification-target-removal-Editorial-Enhancements","Ericsson","2015-07-10T12:16:58","Draft","CR",null,"ARC 18"]
["ARC-2015-1950R01","Procedure-notification-target-removal-Editorial-Enhancements","Ericsson","2015-07-23T22:18:42","Draft","CR",null,"ARC 18"]
["ARC-2015-1951","Mirror1915R01-Resource-Request-Attributes-Duplication","Ericsson","2015-07-10T12:18:26","Draft","CR",null,"ARC 18"]
["ARC-2015-1952","Name-Change-Notification-Target-Deletion-Policies","Ericsson","2015-07-10T12:19:37","Noted","CR",null,"ARC 18"]
["ARC-2015-1952R01","Name-Change-Notification-Target-Deletion-Policies","Ericsson","2015-07-21T19:26:35","Noted","CR",null,"ARC 18"]
["ARC-2015-1952R02","Name-Change-Notification-Target-Deletion-Policies","Ericsson","2015-07-23T22:56:47","Draft","CR",null,"ARC 18"]
["ARC-2015-1953","Result-content-parameter-clarification","Ericsson","2015-07-10T12:21:20","Draft","CR",null,"ARC 18"]
["ARC-2015-1953R01","Result-content-parameter-clarification","Ericsson","2015-07-21T21:11:44","Draft","CR",null,"ARC 18"]
["ARC-2015-1953R02","Result-content-parameter-clarification","Ericsson","2015-07-22T12:48:56","Draft","CR",null,"ARC 18"]
["ARC-2015-1953R03","Result-content-parameter-clarification","Ericsson","2015-07-22T15:56:52","Draft","CR",null,"ARC 18"]
["ARC-2015-1953R04","Result-content-parameter-clarification","Ericsson","2015-07-23T22:16:58","Draft","CR",null,"ARC 18"]
["ARC-2015-1954","Discovery-Procedure-Clarification","Ericsson","2015-07-10T12:22:44","Draft","CR",null,"ARC 18"]
["ARC-2015-1954R01","Discovery-Procedure-Clarification","Ericsson","2015-07-23T22:08:17","Draft","CR",null,"ARC 18"]
["ARC-2015-1955","App-ID format and required attributes","Darold Hemphill - iconectiv","2015-07-10T16:52:20","Noted","CR",null,"ARC 18"]
["ARC-2015-1955R01","App-ID format and required attributes","Darold Hemphill - iconectiv","2015-07-17T14:33:31","Noted","CR",null,"ARC 18"]
["ARC-2015-1956","Data Streaming support","FUJITSU","2015-07-12T03:43:16","Noted","INC",null,"ARC 18"]
["ARC-2015-1957","App-ID naming convention","FUJITSU","2015-07-12T07:21:41","Draft","INC",null,"ARC 18"]
["ARC-2015-1958","skeleton of TR for WI0034","Huawei Technologies Co., Ltd.","2015-07-12T06:59:19","Noted","CR",null,"ARC 18"]
["ARC-2015-1958R01","skeleton of TR for WI0034","Huawei Technologies Co., Ltd.; ZTE","2015-07-16T08:03:05","Noted","CR",null,"ARC 18"]
["ARC-2015-1958R02","skeleton of TR for WI0034","Huawei Technologies Co., Ltd.; ZTE","2015-07-20T19:40:43","Agreed","CR",null,"ARC 18"]
["ARC-2015-1959","skeleton of TR for WI0035","Huawei Technologies Co., Ltd.","2015-07-12T07:01:09","Noted","INC",null,"ARC 18"]
["ARC-2015-1959R01","skeleton of TR for WI0035","Huawei Technologies Co., Ltd.; China Unicom","2015-07-13T03:19:28","Agreed","INC",null,"ARC 18"]
["ARC-2015-1960","group access control","Huawei Technologies Co., Ltd.","2015-07-12T07:02:47","Noted","CR",null,"ARC 18"]
["ARC-2015-1960R01","group access control","Huawei Technologies Co., Ltd.; China Unicom","2015-07-13T03:18:41","Noted","CR",null,"ARC 18"]
["ARC-2015-1960R02","group access control","Huawei Technologies Co., Ltd.; China Unicom","2015-07-23T19:45:31","Draft","CR",null,"ARC 18"]
["ARC-2015-1961","group-confirmation","Huawei Technologies Co., Ltd.","2015-07-12T07:04:41","Noted","CR",null,"ARC 18"]
["ARC-2015-1962","group-responses","Huawei Technologies Co., Ltd.","2015-07-12T07:05:38","Noted","CR",null,"ARC 18"]
["ARC-2015-1962R01","group-responses","Huawei Technologies Co., Ltd.","2015-07-23T22:23:15","Draft","CR",null,"ARC 18"]
["ARC-2015-1963","Response Status Code Release 1","KT Corp.","2015-07-12T10:43:57","Noted","CR",null,"ARC 18"]
["ARC-2015-1963R01","Response Status Code Release 1","KT Corp.","2015-07-21T12:03:51","Noted","CR",null,"ARC 18"]
["ARC-2015-1963R02","Response Status Code Release 1","KT Corp.","2015-07-22T13:53:58","Draft","CR",null,"ARC 18"]
["ARC-2015-1964","Response Status Code Release 2","KT Corp.","2015-07-12T10:48:37","Noted","CR",null,"ARC 18"]
["ARC-2015-1964R01","Response Status Code Release 2","KT Corp.","2015-07-21T12:04:39","Noted","CR",null,"ARC 18"]
["ARC-2015-1964R02","Response Status Code Release 2","KT Corp.","2015-07-22T13:55:44","Agreed","CR",null,"ARC 18"]
["ARC-2015-1965","OET parameter and Resource Type schedule Release 2","KT Corp.","2015-07-12T10:54:11","Noted","CR",null,"ARC 18"]
["ARC-2015-1965R01","OET parameter and Resource Type schedule Release 2","KT Corp.","2015-07-21T15:11:27","Draft","CR",null,"ARC 18"]
["ARC-2015-1965R02","OET parameter and Resource Type schedule Release 2","KT Corp.","2015-07-22T06:29:28","Draft","CR",null,"ARC 18"]
["ARC-2015-1965R03","OET parameter and Resource Type schedule Release 2","KT Corp.","2015-07-22T16:41:15","Draft","CR",null,"ARC 18"]
["ARC-2015-1966","Non-Blocking Asynch Target List","Qualcomm Inc. (TIA)","2015-07-13T12:12:18","Noted","CR",null,"ARC 18"]
["ARC-2015-1966R01","Non-Blocking Asynch Target List","Qualcomm Inc. (TIA)","2015-07-13T12:57:13","Agreed","CR",null,"ARC 18"]
["ARC-2015-1967","Mirror CR Non-Blocking Asynch Target List","Qualcomm Inc. (TIA)","2015-07-13T12:55:47","Noted","CR",null,"ARC 18"]
["ARC-2015-1967R01","Mirror CR Non-Blocking Asynch Target List","Qualcomm Inc. (TIA)","2015-07-13T12:57:38","Agreed","CR",null,"ARC 18"]
["ARC-2015-1968","CR for subscription labels multiplicity","InterDigital","2015-07-12T18:48:21","Noted","CR",null,"ARC 18"]
["ARC-2015-1968R01","CR for subscription labels multiplicity","InterDigital","2015-07-12T18:57:05","Agreed","CR",null,"ARC 18"]
["ARC-2015-1969","Mirror-CR for subscription labels multiplicity","InterDigital","2015-07-12T18:54:22","Agreed","CR",null,"ARC 18"]
["ARC-2015-1970","Group update semantics","InterDigital","2015-07-12T19:29:14","Draft","CR",null,"ARC 18"]
["ARC-2015-1970R01","Group update semantics","InterDigital","2015-07-20T15:09:16","Draft","CR",null,"ARC 18"]
["ARC-2015-1970R02","Group update semantics","InterDigital","2015-07-23T16:01:48","Draft","CR",null,"ARC 18"]
["ARC-2015-1971","Node update semantics","InterDigital","2015-07-12T19:29:28","Draft","CR",null,"ARC 18"]
["ARC-2015-1971R01","Node update semantics","InterDigital","2015-07-20T15:10:03","Draft","CR",null,"ARC 18"]
["ARC-2015-1971R02","Node update semantics","InterDigital","2015-07-23T16:01:09","Draft","CR",null,"ARC 18"]
["ARC-2015-1972","location_request_clarification","ZTE","2015-07-13T01:33:00","Draft","CR",null,"ARC 18"]
["ARC-2015-1972R01","location_request_clarification","ZTE","2015-07-23T19:58:33","Draft","CR",null,"ARC 18"]
["ARC-2015-1973","CR_for_resourceID_announce","InterDigital","2015-07-13T01:42:08","Draft","CR",null,"ARC 18"]
["ARC-2015-1974","Mirror_CR_for_resourceID_announce","InterDigital","2015-07-13T01:47:23","Draft","CR",null,"ARC 18"]
["ARC-2015-1975","location_request_clarification_R2_mirror","ZTE","2015-07-13T01:49:48","Draft","CR",null,"ARC 18"]
["ARC-2015-1975R01","location_request_clarification_R2_mirror","ZTE","2015-07-23T19:59:16","Draft","CR",null,"ARC 18"]
["ARC-2015-1976","CR_for_announced_RO_attributes","InterDigital","2015-07-13T01:52:08","Noted","CR",null,"ARC 18"]
["ARC-2015-1976R01","CR_for_announced_RO_attributes_(R1)","InterDigital, LG Eletronics","2015-07-21T14:38:19","Noted","CR",null,"ARC 18"]
["ARC-2015-1976R02","CR_for_announced_RO_attributes_(R2)","InterDigital, LG Eletronics, Ericsson","2015-07-23T16:12:46","Noted","CR",null,"ARC 18"]
["ARC-2015-1976R03","CR_for_announced_RO_attributes_(R3)","InterDigital, LG Eletronics, Ericsson","2015-07-23T16:42:14","Noted","CR",null,"ARC 18"]
["ARC-2015-1976R04","CR_for_announced_RO_attributes","InterDigital, LG Eletronics, Ericsson","2015-07-23T23:17:16","Draft","CR",null,"ARC 18"]
["ARC-2015-1977","Mirror_CR_for_announced_RO_attributes","InterDigital","2015-07-13T01:53:25","Noted","CR",null,"ARC 18"]
["ARC-2015-1977R01","Mirror_CR_for_announced_RO_attributes_(R1)","InterDigital, LG Eletronics","2015-07-21T14:40:46","Noted","CR",null,"ARC 18"]
["ARC-2015-1977R02","Mirror_CR_for_announced_RO_attributes_(R2)","InterDigital, LG Eletronics, Ericsson","2015-07-23T16:14:05","Noted","CR",null,"ARC 18"]
["ARC-2015-1977R03","Mirror_CR_for_announced_RO_attributes_(R3)","InterDigital, LG Eletronics, Ericsson","2015-07-23T16:43:12","Noted","CR",null,"ARC 18"]
["ARC-2015-1977R04","Mirror_CR_for_announced_RO_attributes","InterDigital, LG Eletronics, Ericsson","2015-07-23T23:24:48","Draft","CR",null,"ARC 18"]
["ARC-2015-1979","clause 9.6.1 clarification","ZTE","2015-07-13T03:50:15","Noted","CR",null,"ARC 18"]
["ARC-2015-1979R01","clause 9.6.1 clarification","ZTE","2015-07-13T04:10:35","Noted","CR",null,"ARC 18"]
["ARC-2015-1979R02","clause 9.6.1 clarification","ZTE","2015-07-22T17:51:01","Noted","CR",null,"ARC 18"]
["ARC-2015-1979R03","clause 9.6.1 clarification","ZTE","2015-07-23T22:52:38","Draft","CR",null,"ARC 18"]
["ARC-2015-1980","resource for spooling message","FUJITSU","2015-07-13T03:51:13","Noted","INC",null,"ARC 18"]
["ARC-2015-1981","clause 9.6.1 clarification mirror","ZTE","2015-07-13T03:53:54","Noted","CR",null,"ARC 18"]
["ARC-2015-1981R01","clause 9.6.1 clarification mirror","ZTE","2015-07-22T17:52:12","Noted","CR",null,"ARC 18"]
["ARC-2015-1981R02","clause 9.6.1 clarification mirror","ZTE","2015-07-23T22:54:15","Draft","CR",null,"ARC 18"]
["ARC-2015-1982","CR clause 9.4.2","ZTE","2015-07-13T03:57:25","Noted","CR",null,"ARC 18"]
["ARC-2015-1982R01","CR clause 9.4.2","ZTE","2015-07-21T12:46:54","Agreed","CR",null,"ARC 18"]
["ARC-2015-1983","CR clause 9.4.2 mirror","ZTE","2015-07-13T04:03:55","Noted","CR",null,"ARC 18"]
["ARC-2015-1983R01","CR clause 9.4.2 mirror","ZTE","2015-07-21T12:53:53","Agreed","CR",null,"ARC 18"]
["ARC-2015-1984","Supporting Time Series Data","Huawei Technologies","2015-07-13T04:30:16","Noted","INC",null,"ARC 18"]
["ARC-2015-1984R01","Supporting Time Series Data","Huawei Technologies","2015-07-21T13:47:33","Noted","INC",null,"ARC 18"]
["ARC-2015-1984R02","Supporting Time Series Data","Huawei Technologies","2015-07-22T18:41:49","Noted","INC",null,"ARC 18"]
["ARC-2015-1985","New resource for supporting time series data","Huawei Technologies","2015-07-13T04:32:48","Draft","CR",null,"ARC 18"]
["ARC-2015-1986","CR_for_subscription-_notificationContentType_attribute","Huawei Technologies","2015-07-13T04:51:28","Draft","CR",null,"ARC 18"]
["ARC-2015-1986R01","CR_for_subscription-_notificationContentType_attribute(R2)","Huawei Technologies","2015-07-22T13:30:30","Draft","CR",null,"ARC 18"]
["ARC-2015-1986R02","CR_for_subscription-_notificationContentType_attribute(R2)","Huawei Technologies","2015-07-22T14:44:21","Draft","CR",null,"ARC 18"]
["ARC-2015-1987","CR for subscription- notificationContentType attribute","Huawei Technologies","2015-07-13T04:55:11","Withdrawn","CR",null,"ARC 18"]
["ARC-2015-1988","CR for subscription- notificationContentType attribute","Huawei Technologies","2015-07-13T04:56:40","Withdrawn","CR",null,"ARC 18"]
["ARC-2015-1989","Transit CSE Behavior Correction","LG Electronics","2015-07-13T08:47:24","Draft","CR",null,"ARC 18"]
["ARC-2015-1990","From Parameter When Announcing Resource","LG Electronics","2015-07-13T08:55:05","Noted","CR",null,"ARC 18"]
["ARC-2015-1991","MNT_CR_batchNotify_(R1)","LG Electronics, VIA Telecom","2015-07-13T09:41:53","Noted","CR",null,"ARC 18"]
["ARC-2015-1991R01","MNT_CR_batchNotify_(R1)","LG Electronics, VIA Telecom","2015-07-21T17:03:44","Noted","CR",null,"ARC 18"]
["ARC-2015-1991R02","MNT_CR_batchNotify_(R1)","LG Electronics, VIA Telecom","2015-07-23T22:08:02","Draft","CR",null,"ARC 18"]
["ARC-2015-1992","MNT_CR_batchNotify_(R2)","LG Electronics, VIA Telecom","2015-07-13T09:42:10","Noted","CR",null,"ARC 18"]
["ARC-2015-1992R01","MNT_CR_batchNotify_(R2)","LG Electronics, VIA Telecom","2015-07-21T17:04:06","Draft","CR",null,"ARC 18"]
["ARC-2015-1992R02","MNT_CR_batchNotify_(R2)","LG Electronics, VIA Telecom","2015-07-23T22:09:04","Agreed","CR",null,"ARC 18"]
["ARC-2015-1993","MNT_CR_accessControlPolicy_procedure_(R1)","LG Electronics","2015-07-13T09:43:50","Noted","CR",null,"ARC 18"]
["ARC-2015-1993R01","MNT_CR_accessControlPolicy_procedure_(R1)","LG Electronics","2015-07-23T15:04:41","Draft","CR",null,"ARC 18"]
["ARC-2015-1994","MNT_CR_accessControlPolicy_procedure_(R2)","LG Electronics","2015-07-13T09:44:11","Noted","CR",null,"ARC 18"]
["ARC-2015-1994R01","MNT_CR_accessControlPolicy_procedure_(R2)","LG Electronics","2015-07-23T15:05:02","Draft","CR",null,"ARC 18"]
["ARC-2015-1995","Transit CSE Behavior Correction (R2)","LG Electronics","2015-07-13T09:01:47","Draft","CR",null,"ARC 18"]
["ARC-2015-1996","MNT_CR_locationPolicy_resource_procedure_(R1)","LG Electronics","2015-07-13T09:46:22","Draft","CR",null,"ARC 18"]
["ARC-2015-1997","MNT_CR_locationPolicy_resource_procedure_(R2)","LG Electronics","2015-07-13T09:46:45","Draft","CR",null,"ARC 18"]
["ARC-2015-1998","MNT_CR_polling_response_(R1)","LG Electronics","2015-07-13T09:48:09","Draft","CR",null,"ARC 18"]
["ARC-2015-1999","MNT_CR_polling_response_(R2)","LG Electronics","2015-07-13T09:48:32","Draft","CR",null,"ARC 18"]
["ARC-2015-2000","MNT_CR_pollingChannel_procedure_(R1)","LG Electronics","2015-07-13T09:50:24","Noted","CR",null,"ARC 18"]
["ARC-2015-2000R01","MNT_CR_pollingChannel_procedure_(R1)","LG Electronics","2015-07-23T15:38:35","Draft","CR",null,"ARC 18"]
["ARC-2015-2000R02","MNT_CR_pollingChannel_procedure_(R1)","LG Electronics","2015-07-23T21:12:47","Draft","CR",null,"ARC 18"]
["ARC-2015-2001","From Parameter When Announcing Resource (R2)","LG Electronics","2015-07-13T09:04:09","Noted","CR",null,"ARC 18"]
["ARC-2015-2002","MNT_CR_pollingChannel_procedure_(R2)","LG Electronics","2015-07-13T09:50:46","Noted","CR",null,"ARC 18"]
["ARC-2015-2002R01","MNT_CR_pollingChannel_procedure_(R2)","LG Electronics","2015-07-23T15:39:14","Draft","CR",null,"ARC 18"]
["ARC-2015-2002R02","MNT_CR_pollingChannel_procedure_(R2)","LG Electronics","2015-07-23T21:13:17","Draft","CR",null,"ARC 18"]
["ARC-2015-2003","MNT_CR_resourceID_of_AE_(R1)","LG Electronics","2015-07-13T09:53:06","Noted","CR",null,"ARC 18"]
["ARC-2015-2003R01","MNT_CR_resourceID_of_AE_(R1)","LG Electronics","2015-07-20T21:49:45","Agreed","CR",null,"ARC 18"]
["ARC-2015-2004","MNT_CR_resourceID_of_AE_(R2)","LG Electronics","2015-07-13T09:53:28","Noted","CR",null,"ARC 18"]
["ARC-2015-2004R01","MNT_CR_resourceID_of_AE_(R2)","LG Electronics","2015-07-20T21:50:19","Agreed","CR",null,"ARC 18"]
["ARC-2015-2005","STE_CR_container_for_locationPolicy","LG Electronics","2015-07-13T09:54:48","Draft","CR",null,"ARC 18"]
["ARC-2015-2006","MNT_CR_request_ID_clarification_(R1)","LG Electronics","2015-07-15T06:51:49","Noted","CR",null,"ARC 18"]
["ARC-2015-2007","MNT_CR_request_ID_clarification_(R2)","LG Electronics","2015-07-15T06:52:11","Noted","CR",null,"ARC 18"]
["ARC-2015-2008","Simple word errors correction(R2)","LG Electronics","2015-07-13T10:43:54","Agreed","CR",null,"ARC 18"]
["ARC-2015-2009","CR for AE Registration Bug fix(R1)","LG Electronics","2015-07-13T10:43:34","Noted","CR",null,"ARC 18"]
["ARC-2015-2009R01","CR for AE Registration Bug fix(R1)","LG Electronics","2015-07-23T15:19:30","Noted","CR",null,"ARC 18"]
["ARC-2015-2009R02","CR for AE Registration Bug fix(R1)","LG Electronics","2015-07-23T22:00:57","Draft","CR",null,"ARC 18"]
["ARC-2015-2010","CR for AE Registration Bug fix(R2)","LG Electronics","2015-07-13T10:43:12","Noted","CR",null,"ARC 18"]
["ARC-2015-2010R01","CR for AE Registration Bug fix(R2)","LG Electronics","2015-07-23T15:19:55","Noted","CR",null,"ARC 18"]
["ARC-2015-2010R02","CR for AE Registration Bug fix(R2)","LG Electronics","2015-07-23T22:01:37","Draft","CR",null,"ARC 18"]
["ARC-2015-2011","CR for Announced resource introduction(R1)","LG Electronics","2015-07-13T10:42:18","Noted","CR",null,"ARC 18"]
["ARC-2015-2011R01","CR for Announced resource introduction(R1)","LG Electronics","2015-07-21T15:47:37","Noted","CR",null,"ARC 18"]
["ARC-2015-2011R02","CR for Announced resource introduction(R1)","LG Electronics","2015-07-23T22:46:59","Draft","CR",null,"ARC 18"]
["ARC-2015-2011R03","CR for Announced resource introduction(R1)","LG Electronics","2015-07-23T23:23:02","Draft","CR",null,"ARC 18"]
["ARC-2015-2012","CR for Announced resource introduction(R2)","LG Electronics","2015-07-13T10:41:58","Noted","CR",null,"ARC 18"]
["ARC-2015-2012R01","CR for Announced resource introduction(R2)","LG Electronics","2015-07-21T15:48:04","Noted","CR",null,"ARC 18"]
["ARC-2015-2012R02","CR for Announced resource introduction(R2)","LG Electronics","2015-07-23T22:47:26","Noted","CR",null,"ARC 18"]
["ARC-2015-2012R03","CR for Announced resource introduction(R2)","LG Electronics","2015-07-23T23:26:05","Draft","CR",null,"ARC 18"]
["ARC-2015-2013","CR for group memberType clarification(R1)","LG Electronics","2015-07-13T10:41:24","Draft","CR",null,"ARC 18"]
["ARC-2015-2013R01","CR for group memberType clarification(R1)","LG Electronics","2015-07-23T20:13:01","Draft","CR",null,"ARC 18"]
["ARC-2015-2014","CR for group memberType clarification(R2)","LG Electronics","2015-07-13T10:41:02","Draft","CR",null,"ARC 18"]
["ARC-2015-2014R01","CR for group memberType clarification(R2)","LG Electronics","2015-07-23T20:14:31","Draft","CR",null,"ARC 18"]
["ARC-2015-2015","CR for Remote CSE ACP Check(R1)","LG Electronics","2015-07-13T10:40:16","Draft","CR",null,"ARC 18"]
["ARC-2015-2016","CR for Remote CSE ACP Check(R2)","LG Electronics","2015-07-13T10:40:39","Draft","CR",null,"ARC 18"]
["ARC-2015-2017","CR on cmdhPolicyName attribute in CMDH Policy R1","Qualcomm Inc. (TIA)","2015-07-13T10:53:43","Agreed","CR",null,"ARC 18"]
["ARC-2015-2018","Mirror CR on cmdhPolicyName attribute in CMDH Policy R2","Qualcomm Inc. (TIA)","2015-07-13T10:55:40","Agreed","CR",null,"ARC 18"]
["ARC-2015-2019","SemanticFilterCriteria","NEC","2015-07-13T13:22:22","Draft","CR",null,"ARC 18"]
["ARC-2015-2020","CR on correcting ID examples R1","Qualcomm Inc. (TIA)","2015-07-13T14:29:13","Draft","CR",null,"ARC 18"]
["ARC-2015-2021","Mirror CR on correcting ID examples R2","Qualcomm Inc. (TIA)","2015-07-13T14:31:01","Draft","CR",null,"ARC 18"]
["ARC-2015-2022","Experience and discussion on IPE Implementation","KETI","2015-07-13T15:48:33","Noted","INC",null,"ARC 18"]
["ARC-2015-2023","STE Discussion Hierarchical Adressing","Qualcomm Inc. (TIA)","2015-07-14T00:01:35","Draft","INC",null,"ARC 18"]
["ARC-2015-2024","STE CR resourceName vs resourceId vs AE-ID vs CSE-ID R2","Qualcomm Inc. (TIA)","2015-07-14T00:00:28","Draft","CR",null,"ARC 18"]
["ARC-2015-2024R01","STE CR resourceName vs resourceId vs AE-ID vs CSE-ID R2","Qualcomm Inc. (TIA)","2015-07-23T16:31:49","Draft","CR",null,"ARC 18"]
["ARC-2015-2025","MNT_CR_S-type_AE-ID_for_ACP_(R1)","LG Electronics","2015-07-14T09:47:33","Draft","CR",null,"ARC 18"]
["ARC-2015-2026","MNT_CR_S-type_AE-ID_for_ACP_(R2)","LG Electronics","2015-07-14T09:47:51","Draft","CR",null,"ARC 18"]
["ARC-2015-2027","appObj_new_resource_type","LG Electronics","2015-07-14T09:47:15","Draft","CR",null,"ARC 18"]
["ARC-2015-2028","CR_for_resourceType_Access_Mode(R1)","LG Electronics","2015-07-15T01:36:29","Agreed","CR",null,"ARC 18"]
["ARC-2015-2029","CR_for_resourceType_Access_Mode(R2)","LG Electronics","2015-07-15T01:37:09","Agreed","CR",null,"ARC 18"]
["ARC-2015-2030","ARC#18 Agenda","Nicolas Damour, WG2 Chairman","2015-07-16T13:57:37","Noted","AG",null,"ARC 18"]
["ARC-2015-2030R01","ARC#18 Agenda","Nicolas Damour, WG2 Chairman","2015-07-20T18:48:36","Agreed","AG",null,"ARC 18"]
["ARC-2015-2031","ARC#18 Document allocation","Nicolas Damour, WG2 Chairman","2015-07-17T14:41:24","Noted","AG",null,"ARC 18"]
["ARC-2015-2031R01","ARC#18 Document allocation","Nicolas Damour, WG2 Chairman","2015-07-20T18:05:27","Noted","AG",null,"ARC 18"]
["ARC-2015-2031R02","ARC#18 Document allocation","Nicolas Damour, WG2 Chairman","2015-07-23T18:07:17","Draft","AG",null,"ARC 18"]
["ARC-2015-2032","MNT CR resourceId attribute clarification R1","Qualcomm Inc. (TIA)","2015-07-16T18:02:21","Draft","CR",null,"ARC 18"]
["ARC-2015-2033","Mirror MNT CR resourceId attribute clarification R2","Qualcomm Inc. (TIA)","2015-07-16T18:04:15","Draft","CR",null,"ARC 18"]
["ARC-2015-2034","CR Add Response Code","KT","2015-07-17T16:17:04","Noted","CR",null,"ARC 18"]
["ARC-2015-2034R01","CR Add Response Code","KT","2015-07-20T14:47:04","Noted","CR",null,"ARC 18"]
["ARC-2015-2034R02","CR Add Response Code","KT","2015-07-21T20:40:24","Noted","CR",null,"ARC 18"]
["ARC-2015-2035","AppID Comments","IFAST, ILS, Telxxis (TIA TR-50)","2015-07-20T11:54:03","Noted","INC",null,"ARC 18"]
["ARC-2015-2036","AppID CR","IFAST, Telit","2015-07-20T15:48:25","Noted","INC",null,"ARC 18"]
["ARC-2015-2037","CR_for_announced_RO_attributes_(R1)","InterDigital, LG Electronics","2015-07-21T14:34:01","Withdrawn","CR",null,"ARC 18"]
["ARC-2015-2038","3GPP Rel-13 Interworking discussions","Rajesh Bhalla, ZTE","2015-07-22T14:14:04","Noted","INC",null,"ARC 18"]
["ARC-2015-2038R01","3GPP Rel-13 Interworking discussions","Rajesh Bhalla, ZTE","2015-07-23T15:05:14","Noted","INC",null,"ARC 18"]
["ARC-2015-2038R02","3GPP Rel-13 Interworking discussions","Rajesh Bhalla, ZTE","2015-07-23T20:30:42","Noted","INC",null,"ARC 18"]
["ARC-2015-2039","MNT_CR_polling_mechanism_diagram(R1)","LG Electronics","2015-07-22T09:49:55","Draft","CR",null,"ARC 18"]
["ARC-2015-2039R01","MNT_CR_polling_mechanism_diagram(R1)","LG Electronics","2015-07-23T15:36:53","Draft","CR",null,"ARC 18"]
["ARC-2015-2040","MNT scheduleElement attribute Release 1","KT","2015-07-22T06:25:38","Noted","CR",null,"ARC 18"]
["ARC-2015-2040R01","MNT scheduleElement attribute Release 1","KT","2015-07-22T15:25:26","Noted","CR",null,"ARC 18"]
["ARC-2015-2040R02","MNT scheduleElement attribute Release 1","KT","2015-07-22T15:51:48","Draft","CR",null,"ARC 18"]
["ARC-2015-2041","MNT scheduleElement attribute Release 2","KT","2015-07-22T06:27:45","Noted","CR",null,"ARC 18"]
["ARC-2015-2041R01","MNT scheduleElement attribute Release 2","KT","2015-07-22T15:20:28","Noted","CR",null,"ARC 18"]
["ARC-2015-2041R02","MNT scheduleElement attribute Release 2","KT","2015-07-22T16:14:48","Draft","CR",null,"ARC 18"]
["ARC-2015-2042","MNT_CR_polling_mechanism_diagram(R2)","LG Electronics","2015-07-22T09:51:51","Draft","CR",null,"ARC 18"]
["ARC-2015-2042R01","MNT_CR_polling_mechanism_diagram(R2)","LG Electronics","2015-07-23T15:37:19","Draft","CR",null,"ARC 18"]
["ARC-2015-2043","CR_for_subscription-_notificationContentType_attribute(R1)","Huawei","2015-07-22T13:22:36","Draft","CR",null,"ARC 18"]
["ARC-2015-2043R01","CR_for_subscription-_notificationContentType_attribute(R1)","Huawei","2015-07-22T14:41:36","Draft","CR",null,"ARC 18"]
["ARC-2015-2044","Multiplicity Naming Convention Alignment R1","Huawei","2015-07-22T20:33:33","Draft","CR",null,"ARC 18"]
["ARC-2015-2045","Multiplicity Naming Convention Alignment R2","Huawei","2015-07-22T20:33:58","Draft","CR",null,"ARC 18"]

{"sheet":"PRO","index":6,"n_rows":103,"n_cols":8,"rows_kept":103,"cut":false,"hidden":false,"merged":[]}
["SHORT DOC NB","SHORTNAME","SOURCE","UPLOADED","STATUS","DOC TYPE","VERS","MEETING"]
["ARC-2015-1978","WebSocket registration procedure","FUJITSU",null,"Draft","CR",null,"PRO 18"]
["PRO-2015-0768R03","CR_parameter_default_values","LG Electronics","2015-06-11T08:30:01","Noted","CR",null,"PRO 18"]
["PRO-2015-0768R04","CR_parameter_default_values","LG Electronics","2015-07-21T20:36:51","Agreed","CR",null,"PRO 18"]
["PRO-2015-0779","Generic response procedure for receiver","KT","2015-05-10T13:33:20","Draft","CR",null,"PRO 18"]
["PRO-2015-0783R02","Clarification_on_XSD_usage","Qualcomm Inc. (TIA), FUJITSU","2015-06-05T19:57:22","Noted","CR",null,"PRO 18"]
["PRO-2015-0783R03","Clarification_on_XSD_usage","Qualcomm Inc. (TIA), FUJITSU","2015-07-23T15:26:24","Agreed","CR",null,"PRO 18"]
["PRO-2015-0792","Virtual_Resource_XSD_Correction","LG Electronics","2015-05-13T01:56:23","Noted","CR",null,"PRO 18"]
["PRO-2015-0808R01","CR_TS-0009_response_code_mapping_enhancement","LG Electronics","2015-07-03T06:13:42","Draft","CR",null,"PRO 18"]
["PRO-2015-0811R02","CR_TS0004_primitiveContent","Qualcomm Inc. (TIA)","2015-07-21T15:34:22","Draft","CR",null,"PRO 18"]
["PRO-2015-0815","CR schedule resource type","LG Electronics","2015-06-11T08:29:21","Agreed","CR",null,"PRO 18"]
["PRO-2015-0819R01","Step value syntax for scheduleElement","QUALCOMM","2015-06-30T15:12:16","Noted","CR",null,"PRO 18"]
["PRO-2015-0819R02","Step value syntax for scheduleElement","QUALCOMM","2015-07-20T21:47:19","Noted","CR",null,"PRO 18"]
["PRO-2015-0819R03","Step value syntax for scheduleElement","QUALCOMM","2015-07-21T14:25:31","Draft","CR",null,"PRO 18"]
["PRO-2015-0820R01","Draft_TS-0004_v.1.2.1","TS-0004 Rapportuers","2015-06-30T11:08:39","Reserved","INC",null,"PRO 18"]
["PRO-2015-0822","CR_poa_for_mqtt","LG Electronics","2015-07-03T09:14:29","Postponed","CR",null,"PRO 18"]
["PRO-2015-0823","CR_accessControlRule_data_type","LG Electronics","2015-07-03T09:15:30","Agreed","CR",null,"PRO 18"]
["PRO-2015-0824","CR_missing_shortnames","FUJITSU","2015-07-05T03:28:30","Noted","CR",null,"PRO 18"]
["PRO-2015-0824R01","CR_missing_shortnames","FUJITSU","2015-07-05T10:54:35","Noted","CR",null,"PRO 18"]
["PRO-2015-0824R02","CR_missing_shortnames","FUJITSU","2015-07-05T11:37:59","Noted","CR",null,"PRO 18"]
["PRO-2015-0824R03","CR_missing_shortnames","FUJITSU","2015-07-21T15:14:55","Draft","CR",null,"PRO 18"]
["PRO-2015-0825","CR_missing_shortnames(Mirrored)","FUJITSU","2015-07-05T03:31:22","Noted","CR",null,"PRO 18"]
["PRO-2015-0825R01","CR_missing_shortnames(Mirrored)","FUJITSU","2015-07-05T10:57:42","Noted","CR",null,"PRO 18"]
["PRO-2015-0825R02","CR_missing_shortnames(Mirrored)","FUJITSU","2015-07-05T11:41:07","Noted","CR",null,"PRO 18"]
["PRO-2015-0826","XSD long to short conversion","FUJITSU","2015-07-05T11:58:16","Noted","INC",null,"PRO 18"]
["PRO-2015-0826R01","XSD long to short conversion","FUJITSU","2015-07-20T16:31:50","Noted","INC",null,"PRO 18"]
["PRO-2015-0827","CR TS-0008 TokenSize BlockTransfer","Giesecke & Devrient","2015-07-07T12:01:35","Noted","INC",null,"PRO 18"]
["PRO-2015-0827R01","CR TS-0008 TokenSize BlockTransfer","Giesecke & Devrient","2015-07-21T15:07:31","Draft","INC",null,"PRO 18"]
["PRO-2015-0828","CR TS-0004 Diameter Charging Code Points Correction","Ericsson","2015-07-09T16:13:58","Noted","CR",null,"PRO 18"]
["PRO-2015-0828R01","CR TS-0004 Diameter Charging Code Points Correction","Ericsson","2015-07-11T11:50:54","Agreed","CR",null,"PRO 18"]
["PRO-2015-0829","CR TS-0004 Diameter Charging Code Points Correction(Mirror)","Ericsson","2015-07-11T11:52:34","Agreed","CR",null,"PRO 18"]
["PRO-2015-0830","LSout 3GPP SA5 Code Point","Ericsson","2015-07-09T16:17:20","Noted","LS",null,"PRO 18"]
["PRO-2015-0830R01","LSout 3GPP SA5 Code Point","Ericsson","2015-07-21T13:50:53","Agreed","LS",null,"PRO 18"]
["PRO-2015-0831","Draft_TS-0004_v.2.0.0","TS-0004 Rapportuers","2015-07-10T05:13:47","Agreed","INC",null,"PRO 18"]
["PRO-2015-0832","group-access control-stage3","Huawei Technologies Co., Ltd.","2015-07-12T07:07:06","Draft","CR",null,"PRO 18"]
["PRO-2015-0833","HTTP Method","KT","2015-07-12T11:27:13","Noted","CR",null,"PRO 18"]
["PRO-2015-0834","X-M2M-OP header","KT","2015-07-12T11:39:01","Noted","CR",null,"PRO 18"]
["PRO-2015-0834R01","X-M2M-OP header","KT","2015-07-23T13:47:16","Draft","CR",null,"PRO 18"]
["PRO-2015-0835","scheduleEntry Data Type Release 2","KT","2015-07-12T11:47:48","Noted","CR",null,"PRO 18"]
["PRO-2015-0836","Generic procedure of Originator","KT","2015-07-12T12:28:43","Noted","CR",null,"PRO 18"]
["PRO-2015-0837","Notification-Originator-Operation","InterDigital","2015-07-12T17:21:24","Noted","CR",null,"PRO 18"]
["PRO-2015-0837R01","Notification-Originator-Operation","InterDigital","2015-07-21T20:28:08","Agreed","CR",null,"PRO 18"]
["PRO-2015-0838","Notification-Originator-Operation-Mirror","InterDigital","2015-07-12T17:23:47","Noted","CR",null,"PRO 18"]
["PRO-2015-0838R01","Notification-Originator-Operation-Mirror","InterDigital","2015-07-21T20:28:34","Agreed","CR",null,"PRO 18"]
["PRO-2015-0839","announcedResource-expirationTime","InterDigital","2015-07-12T17:55:52","Noted","CR",null,"PRO 18"]
["PRO-2015-0839R01","announcedResource-expirationTime","InterDigital","2015-07-21T13:59:36","Agreed","CR",null,"PRO 18"]
["PRO-2015-0840","announcedResource-expirationTime-Mirror","InterDigital","2015-07-12T18:01:51","Noted","CR",null,"PRO 18"]
["PRO-2015-0840R01","announcedResource-expirationTime-Mirror","InterDigital","2015-07-21T14:04:12","Agreed","CR",null,"PRO 18"]
["PRO-2015-0841","XSD-List_cardinality","Qualcomm Inc., IBM","2015-07-12T22:25:23","Noted","CR",null,"PRO 18"]
["PRO-2015-0841R01","XSD-List_cardinality","Qualcomm Inc., IBM","2015-07-20T17:27:03","Agreed","CR",null,"PRO 18"]
["PRO-2015-0842","FilterCriteria_corrections","Qualcomm","2015-07-12T22:30:12","Noted","CR",null,"PRO 18"]
["PRO-2015-0842R01","FilterCriteria_corrections","Qualcomm","2015-07-23T21:20:35","Draft","CR",null,"PRO 18"]
["PRO-2015-0842R02","FilterCriteria_corrections","Qualcomm","2015-07-23T22:06:53","Draft","CR",null,"PRO 18"]
["PRO-2015-0843","TS-0009v1_1_0-corrections","Qualcomm Inc.","2015-07-12T22:35:01","Noted","CR",null,"PRO 18"]
["PRO-2015-0843R01","TS-0009v1_1_0-corrections","Qualcomm Inc.","2015-07-22T18:15:26","Noted","CR",null,"PRO 18"]
["PRO-2015-0843R02","TS-0009v1_1_0-corrections","Qualcomm Inc.","2015-07-23T18:19:00","Agreed","CR",null,"PRO 18"]
["PRO-2015-0844","TS-0004-primitive_content_clarification","Qualcomm Inc.","2015-07-12T22:41:57","Noted","CR",null,"PRO 18"]
["PRO-2015-0844R01","TS-0004-primitive_content_clarification","Qualcomm Inc.","2015-07-23T15:23:04","Noted","CR",null,"PRO 18"]
["PRO-2015-0844R02","TS-0004-primitive_content_clarification","Qualcomm Inc.","2015-07-23T18:28:38","Noted","CR",null,"PRO 18"]
["PRO-2015-0844R03","TS-0004-primitive_content_clarification","Qualcomm Inc.","2015-07-23T22:12:28","Draft","CR",null,"PRO 18"]
["PRO-2015-0845","Timestamp_format_in_primitives","Qualcomm Inc.","2015-07-12T22:49:10","Agreed","CR",null,"PRO 18"]
["PRO-2015-0846","WebSocket registration procedure","FUJITSU","2015-07-13T03:20:35","Noted","CR",null,"PRO 18"]
["PRO-2015-0846R01","WebSocket registration procedure","FUJITSU","2015-07-21T12:31:09","Noted","CR",null,"PRO 18"]
["PRO-2015-0846R02","WebSocket registration procedure","FUJITSU","2015-07-21T19:51:22","Agreed","CR",null,"PRO 18"]
["PRO-2015-0848","Update Operation Mapping in HTTP","LG Electronics","2015-07-13T07:49:50","Noted","CR",null,"PRO 18"]
["PRO-2015-0848R01","Update Operation Mapping in HTTP","LG Electronics","2015-07-21T09:52:45","Noted","CR",null,"PRO 18"]
["PRO-2015-0848R02","Update Operation Mapping in HTTP","LG Electronics","2015-07-21T18:52:33","Agreed","CR",null,"PRO 18"]
["PRO-2015-0851","CR_locationPolicy","LG Electronics","2015-07-16T03:32:21","Agreed","CR",null,"PRO 18"]
["PRO-2015-0852","CR TS0004 Alignment with TS0001 and TS0003 on Role parameter","Oberthur Technologies, Qualcomm Inc.","2015-07-13T09:33:49","Agreed","INC",null,"PRO 18"]
["PRO-2015-0853","Mirror CR TS0004 Alignment with TS0001 and TS0003 on Role parameter","Oberthur Technologies, Qualcomm Inc.","2015-07-13T09:37:25","Agreed","INC",null,"PRO 18"]
["PRO-2015-0854","CR for creator request optionality","LG Electronics","2015-07-15T01:38:38","Noted","CR",null,"PRO 18"]
["PRO-2015-0854R01","CR for creator request optionality","LG Electronics","2015-07-23T10:34:13","Agreed","CR",null,"PRO 18"]
["PRO-2015-0855","PRO18.0 Agenda","WG3/PRO Charirman","2015-07-15T12:56:14","Noted","AG",null,"PRO 18"]
["PRO-2015-0855R01","PRO18.0 Agenda","WG3/PRO Charirman","2015-07-17T14:38:27","Agreed","AG",null,"PRO 18"]
["PRO-2015-0855R02","PRO18.0 Agenda","WG3/PRO Charirman","2015-07-20T22:24:50","Agreed","AG",null,"PRO 18"]
["PRO-2015-0855R03","PRO18.0 Agenda","WG3/PRO Charirman","2015-07-22T03:29:56","Agreed","AG",null,"PRO 18"]
["PRO-2015-0855R04","PRO18.0 Agenda","WG3/PRO Charirman","2015-07-23T14:48:00","Agreed","AG",null,"PRO 18"]
["PRO-2015-0855R05","PRO18.0 Agenda","WG3/PRO Charirman","2015-07-23T21:57:49","Draft","AG",null,"PRO 18"]
["PRO-2015-0856","CR_batchNotify","LG Electronics","2015-07-15T08:31:38","Noted","CR",null,"PRO 18"]
["PRO-2015-0856R01","CR_batchNotify","LG Electronics","2015-07-23T21:53:32","Draft","CR",null,"PRO 18"]
["PRO-2015-0857","STE_CR_locationUpdatePeriod_(R2)","LG Electronics","2015-07-15T08:30:47","Noted","CR",null,"PRO 18"]
["PRO-2015-0857R01","STE_CR_locationUpdatePeriod_(R2)","LG Electronics","2015-07-15T08:56:08","Withdrawn","CR",null,"PRO 18"]
["PRO-2015-0858","Draft_baseline_TS-0010_V-1_2_0","MQTT Protocol TS Rapporteur","2015-07-19T01:36:05","Draft","INC",null,"PRO 18"]
["PRO-2015-0860","Minutes PRO 18.0","Secretary",null,"Draft","MIN",null,"PRO 18"]
["PRO-2015-0861","CR_schedule_resource_type(R2)","LG Electronics","2015-07-20T16:44:40","Agreed","CR",null,"PRO 18"]
["PRO-2015-0862","CR_CSEBase_resource_type(R1)","LG Electronics","2015-07-20T22:12:57","Agreed","CR",null,"PRO 18"]
["PRO-2015-0863","CR_CSEBase_resource_type(R2)","LG Electronics","2015-07-20T22:14:39","Agreed","CR",null,"PRO 18"]
["PRO-2015-0866","MNT data type for scheduleEntry Release 1","KT","2015-07-22T19:23:12","Noted","CR",null,"PRO 18"]
["PRO-2015-0867","MNT data type for scheduleEntry Release 2","KT","2015-07-22T19:27:12","Noted","CR",null,"PRO 18"]
["PRO-2015-0868","CR_batchNotify (R2)","LG Electronics","2015-07-23T09:49:25","Agreed","CR",null,"PRO 18"]
["PRO-2015-0870","CR for creator request optionality (R2)","LG Electronics","2015-07-23T10:38:21","Agreed","CR",null,"PRO 18"]
["PRO-2015-0871","CR_parameter_default_values_(R2)","LG Electronics","2015-07-23T10:44:46","Agreed","CR",null,"PRO 18"]
["PRO-2015-0872","Resource_Type_Mapping_For_CoAP","LG Electronics","2015-07-23T11:37:29","Agreed","CR",null,"PRO 18"]
["PRO-2015-0872R01","Resource_Type_Mapping_For_CoAP","LG Electronics","2015-07-23T21:52:17","Draft","CR",null,"PRO 18"]
["PRO-2015-0873","CR for NonBlocking Async Target List","QUALCOMM","2015-07-23T14:10:37","Noted","CR",null,"PRO 18"]
["PRO-2015-0873R01","CR for NonBlocking Async Target List","QUALCOMM","2015-07-23T18:08:29","Agreed","CR",null,"PRO 18"]
["PRO-2015-0875","CR for NonBlocking Async Target List (Mirror)","QUALCOMM","2015-07-23T14:15:53","Noted","CR",null,"PRO 18"]
["PRO-2015-0875R01","CR for NonBlocking Async Target List (Mirror)","QUALCOMM","2015-07-23T18:08:47","Agreed","CR",null,"PRO 18"]
["PRO-2015-0876","FilterCriteria_corrections","Qualcomm","2015-07-23T21:28:27","Draft","CR",null,"PRO 18"]
["PRO-2015-0877","TS-0004-primitive_content_clarification.","Qualcomm",null,"Draft","CR",null,"PRO 18"]
["PRO-2015-0878","TS-0004-primitive_content_clarification(R2mirror)","Qualcomm","2015-07-23T22:22:31","Draft","CR",null,"PRO 18"]
["PRO-2015-0879","Timestamp_format_in_primitives(R2mirror)","Qualcomm","2015-07-23T22:29:28","Draft","CR",null,"PRO 18"]
["PRO-2015-0880","Clarification_on_XSD_usage(R2mirror)","Qualcomm Inc., Fujitsu","2015-07-23T22:38:13","Draft","CR",null,"PRO 18"]

{"sheet":"SEC","index":7,"n_rows":51,"n_cols":8,"rows_kept":51,"cut":false,"hidden":false,"merged":[]}
["SHORT DOC NB","SHORTNAME","SOURCE","UPLOADED","STATUS","DOC TYPE","VERS","MEETING"]
["SEC-2015-0549R01","Certificate Enrolment STEs","Phil Hawkes, Qualcomm","2015-07-13T12:50:10","Noted","INC",null,"SEC 18"]
["SEC-2015-0549R02","Certificate Enrolment STEs","Phil Hawkes, Qualcomm","2015-07-20T08:40:10","Noted","INC",null,"SEC 18"]
["SEC-2015-0551","CR for naming correction in figures","C-DOT (Anupama,Poornima)","2015-07-08T06:13:26","Agreed","CR",null,"SEC 18"]
["SEC-2015-0552","CR for section reference corrections","C-DOT (Anupama,Poornima)","2015-07-08T06:37:11","Agreed","CR",null,"SEC 18"]
["SEC-2015-0553","SE reference point","Giesecke & Devrient","2015-07-08T07:54:36","Draft","INC",null,"SEC 18"]
["SEC-2015-0553R01","SE reference point","Giesecke & Devrient","2015-07-22T19:34:37","Draft","INC",null,"SEC 18"]
["SEC-2015-0554","SE abstraction architecture","Giesecke & Devrient","2015-07-08T07:55:21","Draft","INC",null,"SEC 18"]
["SEC-2015-0554R01","SE abstraction architecture","Giesecke & Devrient","2015-07-22T19:33:56","Draft","INC",null,"SEC 18"]
["SEC-2015-0555","Types of SEs","Giesecke & Devrient","2015-07-08T08:03:59","Draft","INC",null,"SEC 18"]
["SEC-2015-0555R01","Types of SEs","Giesecke & Devrient","2015-07-22T19:33:01","Draft","INC",null,"SEC 18"]
["SEC-2015-0556","CR for word correction provisioned to pre-provisioned","C-DOT (Suman,Poornima)","2015-07-08T09:20:56","Agreed","CR",null,"SEC 18"]
["SEC-2015-0557","TACML-PPM","BT Group","2015-07-12T12:27:29","Draft","INC",null,"SEC 18"]
["SEC-2015-0558","use-case-requirements-end-to-end-authentication-using-delegation","InterDigital","2015-07-13T02:18:05","Noted","CR",null,"SEC 18"]
["SEC-2015-0558R01","use-case-requirements-end-to-end-authentication-using-delegation","InterDigital","2015-07-22T22:15:51","Draft","CR",null,"SEC 18"]
["SEC-2015-0559","discussions-on-end-to-end-data-security","InterDigital","2015-07-13T02:23:14","Agreed","CR",null,"SEC 18"]
["SEC-2015-0560","definitions-for-end-to-end-data-security","InterDigital","2015-07-13T02:26:29","Noted","CR",null,"SEC 18"]
["SEC-2015-0560R01","definitions-for-end-to-end-data-security","InterDigital","2015-07-22T13:55:22","Agreed","CR",null,"SEC 18"]
["SEC-2015-0561","use-case-requirements-for-end-to-end-data-integrity","InterDigital","2015-07-13T02:29:20","Noted","CR",null,"SEC 18"]
["SEC-2015-0561R01","use-case-requirements-for-end-to-end-data-integrity","InterDigital","2015-07-22T17:16:01","Draft","CR",null,"SEC 18"]
["SEC-2015-0561R02","use-case-requirements-for-end-to-end-data-integrity","InterDigital","2015-07-23T15:33:13","Agreed","CR",null,"SEC 18"]
["SEC-2015-0562","use-case-requirements-for-end-to-end-data-confidentiality","InterDigital","2015-07-13T02:32:26","Draft","CR",null,"SEC 18"]
["SEC-2015-0562R01","use-case-requirements-for-end-to-end-data-confidentiality","InterDigital","2015-07-21T20:39:16","Noted","CR",null,"SEC 18"]
["SEC-2015-0562R02","use-case-requirements-for-end-to-end-data-confidentiality","InterDigital","2015-07-22T14:09:31","Withdrawn","CR",null,"SEC 18"]
["SEC-2015-0563","Group Authentication Solution","China Mobile","2015-07-13T06:47:54","Noted","INC",null,"SEC 18"]
["SEC-2015-0563R01","Group Authentication Solution","China Mobile","2015-07-23T20:01:39","Agreed","INC",null,"SEC 18"]
["SEC-2015-0564","TR-0019 Role Token Use Case for Dynamic Authorization","Datang, CATR","2015-07-13T08:02:24","Draft","INC",null,"SEC 18"]
["SEC-2015-0564R01","TR-0019 Role Token Use Case for Dynamic Authorization","Datang, CATR","2015-07-21T20:44:15","Draft","INC",null,"SEC 18"]
["SEC-2015-0564R02","TR-0019 Role Token Use Case for Dynamic Authorization","Datang, CATR","2015-07-22T20:32:42","Draft","INC",null,"SEC 18"]
["SEC-2015-0565","TR-0019 Access Token Use Case for Dynamic Authorization","Datang, China Unicom","2015-07-13T08:08:07","Draft","INC",null,"SEC 18"]
["SEC-2015-0565R01","TR-0019 Access Token Use Case for Dynamic Authorization","Datang, China Unicom","2015-07-21T20:45:19","Draft","INC",null,"SEC 18"]
["SEC-2015-0565R02","TR-0019 Access Token Use Case for Dynamic Authorization","Datang, China Unicom","2015-07-22T20:33:27","Draft","INC",null,"SEC 18"]
["SEC-2015-0566","Access Control Bug Fix For Discovery","LG Electronics","2015-07-13T08:49:58","Agreed","CR",null,"SEC 18"]
["SEC-2015-0568","SEC 18 Agenda","WG Chair","2015-07-16T18:25:56","Draft","AG",null,"SEC 18"]
["SEC-2015-0568R01","SEC 18 Agenda","WG Chair","2015-07-17T17:55:59","Draft","AG",null,"SEC 18"]
["SEC-2015-0568R02","SEC 18 Agenda","WG Chair","2015-07-20T14:14:33","Draft","AG",null,"SEC 18"]
["SEC-2015-0568R03","SEC 18 Agenda","WG Chair","2015-07-22T16:27:53","Draft","AG",null,"SEC 18"]
["SEC-2015-0570","TR-0019 A Proposal for Token Issuance Architecture Part","Datang","2015-07-17T10:01:33","Draft","INC",null,"SEC 18"]
["SEC-2015-0570R01","TR-0019 A Proposal for Token Issuance Architecture Part","Datang","2015-07-22T20:34:40","Draft","INC",null,"SEC 18"]
["SEC-2015-0571","TR-0019 A Proposal of Token Issuance General Procedure Part","Datang","2015-07-17T10:05:08","Draft","INC",null,"SEC 18"]
["SEC-2015-0571R01","TR-0019 A Proposal of Token Issuance General Procedure Part","Datang","2015-07-22T20:35:39","Draft","INC",null,"SEC 18"]
["SEC-2015-0572","TR-0019 A Proposal of Token Issuance Resource Definition Part","Datang","2015-07-17T10:09:29","Draft","INC",null,"SEC 18"]
["SEC-2015-0572R01","TR-0019 A Proposal of Token Issuance Resource Definition Part","Datang","2015-07-22T20:36:20","Draft","INC",null,"SEC 18"]
["SEC-2015-0573","TR-0019 A Proposal of Token Issuance Resource Procedure Part","Datang","2015-07-17T10:11:48","Draft","INC",null,"SEC 18"]
["SEC-2015-0573R01","TR-0019 A Proposal of Token Issuance Resource Procedure Part","Datang","2015-07-22T20:36:59","Draft","INC",null,"SEC 18"]
["SEC-2015-0574","TR-0016 Overview of Authorization System","Datang","2015-07-21T05:35:59","Draft","INC",null,"SEC 18"]
["SEC-2015-0575","TR-0016 Distributed Authorization Use Case","Datang","2015-07-21T05:38:11","Draft","INC",null,"SEC 18"]
["SEC-2015-0576","CR_TS-0003_SecureEnvironment_definition","Giesecke & Devrient, Qualcomm, Oberthur Technologies","2015-07-22T15:31:11","Draft","CR",null,"SEC 18"]
["SEC-2015-0576R01","CR_TS-0003_SecureEnvironment_definition","Giesecke & Devrient, Qualcomm, Oberthur Technologies","2015-07-22T20:30:44","Noted","CR",null,"SEC 18"]
["SEC-2015-0576R02","CR_TS-0003_SecureEnvironment_definition","Giesecke & Devrient, Qualcomm, Oberthur Technologies","2015-07-23T16:14:02","Agreed","CR",null,"SEC 18"]
["SEC-2015-0577","TR-0012 JOSE RFC References","Qualcomm Inc. (TIA)","2015-07-23T06:08:27","Draft","INC",null,"SEC 18"]

{"sheet":"MAS","index":8,"n_rows":44,"n_cols":8,"rows_kept":44,"cut":false,"hidden":false,"merged":[]}
["SHORT DOC NB","SHORTNAME","SOURCE","UPLOADED","STATUS","DOC TYPE","VERS","MEETING"]
["MAS-2015-0591","TS-0012-V0_3_0 Base Ontology update after MAS#17.3","NEC (rapporteur)","2015-07-07T10:23:36","Agreed","INC",null,"MAS 18"]
["MAS-2015-0592","Modeling M2M app data","FUJITSU","2015-07-12T02:39:38","Draft","INC",null,"MAS 18"]
["MAS-2015-0592R01","Modeling M2M app data","FUJITSU","2015-07-20T16:17:14","Draft","INC",null,"MAS 18"]
["MAS-2015-0593","TS-0005 Align Resource Names and Attributes","Gemalto N.V","2015-07-10T21:17:53","Draft","CR",null,"MAS 18"]
["MAS-2015-0593R01","TS-0005 Align Resource Names and Attributes","Gemalto N.V","2015-07-20T19:13:26","Agreed","CR",null,"MAS 18"]
["MAS-2015-0594","Discussions on semantic description  rules","China Unicom","2015-07-10T15:44:34","Draft","INC",null,"MAS 18"]
["MAS-2015-0595","TS-0012 Update on Base Ontology and Mapping to oneM2M Resources","NEC","2015-07-13T15:25:39","Draft","INC",null,"MAS 18"]
["MAS-2015-0595R01","TS-0012 Update on Base Ontology and Mapping to oneM2M Resources","NEC","2015-07-21T14:52:02","Draft","INC",null,"MAS 18"]
["MAS-2015-0595R02","TS-0012 Update on Base Ontology and Mapping to oneM2M Resources","NEC","2015-07-21T20:44:15","Draft","INC",null,"MAS 18"]
["MAS-2015-0595R03","TS-0012 Update on Base Ontology and Mapping to oneM2M Resources","NEC","2015-07-22T13:28:55","Draft","INC",null,"MAS 18"]
["MAS-2015-0595R04","TS-0012 Update on Base Ontology and Mapping to oneM2M Resources","NEC","2015-07-23T13:36:57","Draft","INC",null,"MAS 18"]
["MAS-2015-0595R05","TS-0012 Update on Base Ontology and Mapping to oneM2M Resources","NEC","2015-07-24T12:57:44","Draft","INC",null,"MAS 18"]
["MAS-2015-0595R06","TS-0012 Update on Base Ontology and Mapping to oneM2M Resources","NEC","2015-07-24T15:24:38","Draft","INC",null,"MAS 18"]
["MAS-2015-0595R07","TS-0012 Update on Base Ontology and Mapping to oneM2M Resources","NEC","2015-07-24T16:09:51","Draft","INC",null,"MAS 18"]
["MAS-2015-0596","Proposed modification for Section 7 on mapping of the base ontoloy and external ontologies","Modacom","2015-07-11T12:48:04","Draft","INC",null,"MAS 18"]
["MAS-2015-0596R01","Proposed modification for Section 7 on mapping of the base ontoloy and external ontologies","Modacom","2015-07-21T14:34:37","Draft","INC",null,"MAS 18"]
["MAS-2015-0596R02","Proposed modification for Section 7 on mapping of the base ontoloy and external ontologies","Modacom","2015-07-21T21:04:16","Draft","INC",null,"MAS 18"]
["MAS-2015-0596R03","Proposed modification for Section 7 on mapping of the base ontoloy and external ontologies","Modacom","2015-07-22T18:56:04","Agreed","INC",null,"MAS 18"]
["MAS-2015-0597","TR-0017 Home Domain Abstract Information Model V0.5.0 Draft Baseline","KETI","2015-07-14T06:38:28","Agreed","INC",null,"MAS 18"]
["MAS-2015-0598","Semantic_Filtering_and_Discovery","NEC","2015-07-14T14:58:45","Agreed","CR",null,"MAS 18"]
["MAS-2015-0599","HGI activities transfer to oneM2M WG5","Patricia MARTIGNE, ORANGE","2015-07-20T00:36:15","Draft","INC",null,"MAS 18"]
["MAS-2015-0599R01","HGI activities transfer to oneM2M WG5","Patricia MARTIGNE, ORANGE","2015-07-21T22:49:56","Draft","INC",null,"MAS 18"]
["MAS-2015-0600","Agenda MAS#18","Yongjing Zhang (Huawei, Chair)","2015-07-16T06:58:24","Draft","AG",null,"MAS 18"]
["MAS-2015-0600R01","Agenda MAS#18","Yongjing Zhang (Huawei, Chair)","2015-07-20T03:12:38","Draft","AG",null,"MAS 18"]
["MAS-2015-0600R02","Agenda MAS#18","Yongjing Zhang (Huawei, Chair)","2015-07-20T16:28:15","Draft","AG",null,"MAS 18"]
["MAS-2015-0600R03","Agenda MAS#18","Yongjing Zhang (Huawei, Chair)","2015-07-20T18:57:48","Draft","AG",null,"MAS 18"]
["MAS-2015-0601","MAS#18 Doc allocation","Yongjing Zhang (Huawei, Chair)","2015-07-16T06:58:36","Draft","AG",null,"MAS 18"]
["MAS-2015-0601R01","MAS#18 Doc allocation","Yongjing Zhang (Huawei, Chair)","2015-07-20T03:00:12","Draft","AG",null,"MAS 18"]
["MAS-2015-0601R02","MAS#18 Doc allocation","Yongjing Zhang (Huawei, Chair)","2015-07-20T16:27:34","Draft","AG",null,"MAS 18"]
["MAS-2015-0601R03","MAS#18 Doc allocation","Yongjing Zhang (Huawei, Chair)","2015-07-20T18:57:01","Draft","AG",null,"MAS 18"]
["MAS-2015-0601R04","MAS#18 Doc allocation","Yongjing Zhang (Huawei, Chair)","2015-07-20T20:47:20","Draft","AG",null,"MAS 18"]
["MAS-2015-0601R05","MAS#18 Doc allocation","Yongjing Zhang (Huawei, Chair)","2015-07-22T03:26:47","Draft","AG",null,"MAS 18"]
["MAS-2015-0601R06","MAS#18 Doc allocation","Yongjing Zhang (Huawei, Chair)","2015-07-22T21:53:26","Draft","AG",null,"MAS 18"]
["MAS-2015-0601R07","MAS#18 Doc allocation","Yongjing Zhang (Huawei, Chair)","2015-07-24T03:51:42","Draft","AG",null,"MAS 18"]
["MAS-2015-0603","Ontology Resource Discussion","InterDigital","2015-07-20T16:39:31","Draft","INC",null,"MAS 18"]
["MAS-2015-0604","SemanticFilteringUsingDistributedSemanticDescriptors","NEC","2015-07-21T12:18:37","Draft","CR",null,"MAS 18"]
["MAS-2015-0604R01","SemanticFilteringUsingDistributedSemanticDescriptors","NEC","2015-07-24T03:31:28","Draft","CR",null,"MAS 18"]
["MAS-2015-0605","Proposal for a new WI","Patricia Martigne (Orange)","2015-07-21T19:50:45","Draft","INC",null,"MAS 18"]
["MAS-2015-0605R01","Proposal for a new WI","Patricia Martigne (Orange)","2015-07-22T18:14:21","Draft","INC",null,"MAS 18"]
["MAS-2015-0606","oneM2MBaseOntology-AssumptionsAndApproaches","NEC","2015-07-24T04:59:03","Draft","CR",null,"MAS 18"]
["REQ-2015-0593","Requirement for collecting data from M2M device","FUJITSU","2015-07-12T02:53:39","Draft","CR",null,"MAS 18"]
["REQ-2015-0593R01","Requirement for collecting data from M2M device","FUJITSU","2015-07-23T20:30:36","Draft","CR",null,"MAS 18"]
["REQ-2015-0593R02","Requirement for collecting data from M2M device","FUJITSU","2015-07-23T22:12:43","Agreed","CR",null,"MAS 18"]

{"sheet":"TST","index":9,"n_rows":56,"n_cols":8,"rows_kept":56,"cut":false,"hidden":false,"merged":[]}
["SHORT DOC NB","SHORTNAME","SOURCE","UPLOADED","STATUS","DOC TYPE","VERS","MEETING"]
["TST-2015-0117","TST_18_docs_allocation","TST WG Chair","2015-07-17T13:10:14","Draft","AG",null,"TST 18"]
["TST-2015-0117R01","TST_18_docs_allocation","TST WG Chair","2015-07-19T00:37:33","Draft","AG",null,"TST 18"]
["TST-2015-0117R02","TST_18_docs_allocation","TST WG Chair","2015-07-19T23:16:54","Draft","AG",null,"TST 18"]
["TST-2015-0117R03","TST_18_docs_allocation","TST WG Chair","2015-07-20T04:38:00","Draft","AG",null,"TST 18"]
["TST-2015-0117R04","TST_18_docs_allocation","TST WG Chair","2015-07-20T23:36:39","Draft","AG",null,"TST 18"]
["TST-2015-0117R05","TST_18_docs_allocation","TST WG Chair","2015-07-22T12:27:19","Draft","AG",null,"TST 18"]
["TST-2015-0118","TST-18-Agenda","TST WG Chair","2015-07-17T12:43:15","Draft","AG",null,"TST 18"]
["TST-2015-0118R01","TST-18-Agenda","TST WG Chair","2015-07-19T00:36:44","Draft","AG",null,"TST 18"]
["TST-2015-0118R02","TST-18-Agenda","TST WG Chair","2015-07-19T23:16:22","Draft","AG",null,"TST 18"]
["TST-2015-0119","draft TST WG progress report at TP18","TST WG Chair",null,"Draft","INC",null,"TST 18"]
["TST-2015-0123","ICS baseline v0.0.2","KETI","2015-07-08T13:47:03","Draft","INC",null,"TST 18"]
["TST-2015-0123R01","ICS baseline v0.0.2","KETI","2015-07-21T20:19:03","Draft","INC",null,"TST 18"]
["TST-2015-0124","Issues_pertaining_to_IOP_test","Huawei Technologies Co., Ltd.","2015-07-12T06:49:01","Noted","INC",null,"TST 18"]
["TST-2015-0124R01","Issues_pertaining_to_IOP_test","Huawei Technologies Co., Ltd.","2015-07-22T15:37:43","Draft","INC",null,"TST 18"]
["TST-2015-0125","Collection of pre-conditions","Huawei Technologies Co., Ltd.","2015-07-12T06:50:37","Agreed","INC",null,"TST 18"]
["TST-2015-0126","Rearangement_of_clause_7_of_TS0013","Huawei Technologies Co., Ltd.","2015-07-12T06:52:22","Noted","INC",null,"TST 18"]
["TST-2015-0127","Test_Description_Restructuring","Huawei Technologies Co., Ltd.","2015-07-12T06:54:34","Postponed","INC",null,"TST 18"]
["TST-2015-0128","Test_Description_for_CRUDN","Huawei Technologies Co., Ltd.","2015-07-12T06:55:42","Postponed","INC",null,"TST 18"]
["TST-2015-0129","Test_Description_for_NonBlockingRequest","Huawei Technologies Co., Ltd.","2015-07-12T06:56:33","Postponed","INC",null,"TST 18"]
["TST-2015-0130","Test_Description_for_node","Huawei Technologies Co., Ltd.","2015-07-12T06:57:20","Postponed","INC",null,"TST 18"]
["TST-2015-0131","TS-0013-No-Hop-Tests-Update","InterDigital","2015-07-12T16:51:02","Noted","INC",null,"TST 18"]
["TST-2015-0132","TS-0013-Group-FanoutPoint-Tests","InterDigital","2015-07-12T16:54:38","Agreed","INC",null,"TST 18"]
["TST-2015-0133","TS-0013-Notification-Tests","InterDigital","2015-07-12T16:57:11","Draft","INC",null,"TST 18"]
["TST-2015-0134","TS-00015-Interop testing methodology","ETSI","2015-07-12T21:49:25","Draft","INC",null,"TST 18"]
["TST-2015-0134R01","TS-00015-Interop testing methodology","ETSI","2015-07-21T21:26:19","Draft","INC",null,"TST 18"]
["TST-2015-0135","TS-0013-Test Description proforma","ETSI","2015-07-12T22:20:01","Agreed","INC",null,"TST 18"]
["TST-2015-0136","Test_Description_for_fanOutPoint","Huawei Technologies Co., Ltd.","2015-07-13T07:16:00","Draft","INC",null,"TST 18"]
["TST-2015-0136R01","Test_Description_for_fanOutPoint","Huawei Technologies Co., Ltd.","2015-07-21T19:33:47","Draft","INC",null,"TST 18"]
["TST-2015-0137","Test_Description_for_mgmtObj","Huawei Technologies Co., Ltd.","2015-07-13T07:17:11","Draft","INC",null,"TST 18"]
["TST-2015-0137R01","Test_Description_for_mgmtObj","Huawei Technologies Co., Ltd.","2015-07-21T19:34:05","Draft","INC",null,"TST 18"]
["TST-2015-0138","TSS List and Test_Purposes_contributions","TTA","2015-07-13T09:32:22","Draft","INC",null,"TST 18"]
["TST-2015-0138R01","TSS List and Test_Purposes_contributions","TTA","2015-07-20T16:32:56","Draft","INC",null,"TST 18"]
["TST-2015-0138R02","TSS List and Test Purposes contributions","TTA","2015-07-22T11:09:46","Draft","INC",null,"TST 18"]
["TST-2015-0139","single_hop_CSEBase_mgmt","Mahdi Ben Alaya (LAAS-CNRS)","2015-07-13T17:27:44","Draft","CR",null,"TST 18"]
["TST-2015-0139R01","single_hop_CSEBase_mgmt","Mahdi Ben Alaya (LAAS-CNRS)","2015-07-21T11:41:48","Draft","CR",null,"TST 18"]
["TST-2015-0140","No_hop_remoteCSE_mgmt","Mahdi Ben Alaya (LAAS-CNRS)","2015-07-13T20:27:55","Draft","CR",null,"TST 18"]
["TST-2015-0140R01","No_hop_remoteCSE_mgmt","Mahdi Ben Alaya (LAAS-CNRS)","2015-07-21T11:44:57","Draft","CR",null,"TST 18"]
["TST-2015-0141","oneM2M Wireshark Dissector","InterDigital","2015-07-14T22:09:00","Draft","INC",null,"TST 18"]
["TST-2015-0141R01","oneM2M Wireshark Dissector","InterDigital",null,"Draft","INC",null,"TST 18"]
["TST-2015-0142","TS-0018 TSS&TP baseline v0.0.2","KETI","2015-07-15T11:30:18","Draft","INC",null,"TST 18"]
["TST-2015-0142R01","TS-0018 TSS&TP baseline v0.0.2","KETI","2015-07-22T15:59:36","Draft","INC",null,"TST 18"]
["TST-2015-0143","non blocking synch requests update","Mahdi Ben Alaya (LAAS-CNRS)","2015-07-15T20:27:11","Draft","CR",null,"TST 18"]
["TST-2015-0144","Non blocking asynch requests update","Mahdi Ben Alaya (LAAS-CNRS)","2015-07-16T17:48:21","Draft","CR",null,"TST 18"]
["TST-2015-0145","ICS-ICS Proforma Annex","KETI","2015-07-17T04:50:29","Draft","INC",null,"TST 18"]
["TST-2015-0145R01","ICS-ICS Proforma Annex","KETI","2015-07-17T09:50:57","Draft","INC",null,"TST 18"]
["TST-2015-0145R02","ICS-ICS Proforma Annex","KETI","2015-07-21T20:12:55","Draft","INC",null,"TST 18"]
["TST-2015-0146","High Prioritized Test Case List for oneM2M Test Event","TTA","2015-07-17T08:52:37","Noted","INC",null,"TST 18"]
["TST-2015-0147","TS-0015-Clarification of conformance introduction clause","ETSI","2015-07-17T12:44:52","Draft","INC",null,"TST 18"]
["TST-2015-0147R01","TS-0015-Clarification of conformance introduction clause","ETSI","2015-07-21T21:27:06","Draft","INC",null,"TST 18"]
["TST-2015-0149","Questions on certification","WG6 Chair","2015-07-19T23:14:28","Noted","INC",null,"TST 18"]
["TST-2015-0150","TS-0013-Removal_of_Single-Hop_AE create_TD","ETSI","2015-07-21T21:41:54","Draft","CR",null,"TST 18"]
["TST-2015-0151","Convention template","Huawei Technologies Co., Ltd.","2015-07-22T15:39:38","Draft","INC",null,"TST 18"]
["TST-2015-0151R01","Convention template","Huawei Technologies Co., Ltd.","2015-07-23T18:53:14","Draft","INC",null,"TST 18"]
["TST-2015-0152","MQTT binding Requirement","Seon H. Kim (DT&C)","2015-07-22T20:40:45","Draft","CR",null,"TST 18"]
["TST-2015-0153","WG3/PRO18.0 Status report","WG3/PRO Chairman","2015-07-24T03:51:34","Draft","INC",null,"TST 18"]